Workbook

Sheet 1.사업팀제공
G3: *소득액(원)은 절대 손대지 말것
A4: 2014년도 기준(전국가구평균소득 40%)
A6: 가구원수 | B6: 소득기준(가져오는 값) | C6: 건강보험료 본인부담금 | G6: 소득액(원)
C7: 직장가입자 | D7: 지역가입자 | E7: 혼합
A8: 1인 | B8: ='3.소득기준금액계산'!D21 -> 615,000 | C8: =VLOOKUP($G8,'2.사업팀제공'!$A:$D,2,FALSE) -> 19,698 | D8: =VLOOKUP($G8,'2.사업팀제공'!$A:$D,3,FALSE) -> 3,080 | E8: =VLOOKUP($G8,'2.사업팀제공'!$A:$D,4,FALSE) -> 20,972 | G8: =MIN(IF('2.사업팀제공'!$A$6:$A$205>='1.사업팀제공'!B8:B8,'2.사업팀제공'!$A$6:$A$205,"")) -> 657,701
C9: =C8*1.0655 -> 20,988 | D9: =D8*1.0655 -> 3,282 | E9: =E8*1.0655 -> 22,346 | F9: 노인장기요양보험료 포함
A10: 2인 | B10: ='3.소득기준금액계산'!E21 -> 1,165,000 | C10: =VLOOKUP($G10,'2.사업팀제공'!$A:$D,2,FALSE) -> 35,197 | D10: =VLOOKUP($G10,'2.사업팀제공'!$A:$D,3,FALSE) -> 15,704 | E10: =VLOOKUP($G10,'2.사업팀제공'!$A:$D,4,FALSE) -> 35,830 | G10: =MIN(IF('2.사업팀제공'!$A$6:$A$205>='1.사업팀제공'!B10:B10,'2.사업팀제공'!$A$6:$A$205,"")) -> 1,175,183
C11: =C10*1.0655 -> 37,502 | D11: =D10*1.0655 -> 16,733 | E11: =E10*1.0655 -> 38,177
A12: 3인 | B12: ='3.소득기준금액계산'!F21 -> 1,713,000 | C12: =VLOOKUP($G12,'2.사업팀제공'!$A:$D,2,FALSE) -> 51,352 | D12: =VLOOKUP($G12,'2.사업팀제공'!$A:$D,3,FALSE) -> 36,722 | E12: =VLOOKUP($G12,'2.사업팀제공'!$A:$D,4,FALSE) -> 52,041 | G12: =MIN(IF('2.사업팀제공'!$A$6:$A$205>='1.사업팀제공'!B12:B12,'2.사업팀제공'!$A$6:$A$205,"")) -> 1,714,603
C13: =C12*1.0655 -> 54,716 | D13: =D12*1.0655 -> 39,127 | E13: =E12*1.0655 -> 55,450
A14: 4인 | B14: ='3.소득기준금액계산'!G21 -> 1,934,000 | C14: =VLOOKUP($G14,'2.사업팀제공'!$A:$D,2,FALSE) -> 58,590 | D14: =VLOOKUP($G14,'2.사업팀제공'!$A:$D,3,FALSE) -> 47,492 | E14: =VLOOKUP($G14,'2.사업팀제공'!$A:$D,4,FALSE) -> 59,375 | G14: =MIN(IF('2.사업팀제공'!$A$6:$A$205>='1.사업팀제공'!B14:B14,'2.사업팀제공'!$A$6:$A$205,"")) -> 1,956,276
C15: =C14*1.0655 -> 62,428 | D15: =D14*1.0655 -> 50,603 | E15: =E14*1.0655 -> 63,264
A16: 5인 | B16: ='3.소득기준금액계산'!H21 -> 2,017,000 | C16: =VLOOKUP($G16,'2.사업팀제공'!$A:$D,2,FALSE) -> 60,574 | D16: =VLOOKUP($G16,'2.사업팀제공'!$A:$D,3,FALSE) -> 52,181 | E16: =VLOOKUP($G16,'2.사업팀제공'!$A:$D,4,FALSE) -> 61,372 | G16: =MIN(IF('2.사업팀제공'!$A$6:$A$205>='1.사업팀제공'!B16:B16,'2.사업팀제공'!$A$6:$A$205,"")) -> 2,022,517
C17: =C16*1.0655 -> 64,542 | D17: =D16*1.0655 -> 55,599 | E17: =E16*1.0655 -> 65,392
A18: 6인 | B18: ='3.소득기준금액계산'!I21 -> 2,099,000 | C18: =VLOOKUP($G18,'2.사업팀제공'!$A:$D,2,FALSE) -> 63,226 | D18: =VLOOKUP($G18,'2.사업팀제공'!$A:$D,3,FALSE) -> 56,203 | E18: =VLOOKUP($G18,'2.사업팀제공'!$A:$D,4,FALSE) -> 64,087 | G18: =MIN(IF('2.사업팀제공'!$A$6:$A$205>='1.사업팀제공'!B18:B18,'2.사업팀제공'!$A$6:$A$205,"")) -> 2,111,042
C19: =C18*1.0655 -> 67,367 | D19: =D18*1.0655 -> 59,884 | E19: =E18*1.0655 -> 68,285
A20: 7인 | B20: ='3.소득기준금액계산'!J21 -> 2,181,000 | C20: =VLOOKUP($G20,'2.사업팀제공'!$A:$D,2,FALSE) -> 65,650 | D20: =VLOOKUP($G20,'2.사업팀제공'!$A:$D,3,FALSE) -> 59,374 | E20: =VLOOKUP($G20,'2.사업팀제공'!$A:$D,4,FALSE) -> 65,927 | G20: =MIN(IF('2.사업팀제공'!$A$6:$A$205>='1.사업팀제공'!B20:B20,'2.사업팀제공'!$A$6:$A$205,"")) -> 2,191,994
C21: =C20*1.0655 -> 69,950 | D21: =D20*1.0655 -> 63,263 | E21: =E20*1.0655 -> 70,245
A22: 8인 | B22: ='3.소득기준금액계산'!K21 -> 2,263,000 | C22: =VLOOKUP($G22,'2.사업팀제공'!$A:$D,2,FALSE) -> 68,222 | D22: =VLOOKUP($G22,'2.사업팀제공'!$A:$D,3,FALSE) -> 64,218 | E22: =VLOOKUP($G22,'2.사업팀제공'!$A:$D,4,FALSE) -> 68,874 | G22: =MIN(IF('2.사업팀제공'!$A$6:$A$205>='1.사업팀제공'!B22:B22,'2.사업팀제공'!$A$6:$A$205,"")) -> 2,277,858
C23: =C22*1.0655 -> 72,691 | D23: =D22*1.0655 -> 68,424 | E23: =E22*1.0655 -> 73,385
A24: 9인 | B24: ='3.소득기준금액계산'!L21 -> 2,345,000 | C24: =VLOOKUP($G24,'2.사업팀제공'!$A:$D,2,FALSE) -> 70,294 | D24: =VLOOKUP($G24,'2.사업팀제공'!$A:$D,3,FALSE) -> 67,703 | E24: =VLOOKUP($G24,'2.사업팀제공'!$A:$D,4,FALSE) -> 71,188 | G24: =MIN(IF('2.사업팀제공'!$A$6:$A$205>='1.사업팀제공'!B24:B24,'2.사업팀제공'!$A$6:$A$205,"")) -> 2,347,059
C25: =C24*1.0655 -> 74,898 | D25: =D24*1.0655 -> 72,138 | E25: =E24*1.0655 -> 75,851
A26: 10인 | B26: ='3.소득기준금액계산'!M21 -> 2,428,000 | C26: =VLOOKUP($G26,'2.사업팀제공'!$A:$D,2,FALSE) -> 73,321 | D26: =VLOOKUP($G26,'2.사업팀제공'!$A:$D,3,FALSE) -> 72,404 | E26: =VLOOKUP($G26,'2.사업팀제공'!$A:$D,4,FALSE) -> 74,266 | G26: =MIN(IF('2.사업팀제공'!$A$6:$A$205>='1.사업팀제공'!B26:B26,'2.사업팀제공'!$A$6:$A$205,"")) -> 2,448,114
C27: =C26*1.0655 -> 78,124 | D27: =D26*1.0655 -> 77,146 | E27: =E26*1.0655 -> 79,130
A32: 2014년도 기준(전국가구평균소득 50%)
A34: 가구원수 | B34: 소득기준 | C34: 건강보험료 본인부담금 | G34: 소득액(원)
C35: 직장가입자 | D35: 지역가입자 | E35: 혼합
A36: 1인 | B36: ='3.소득기준금액계산'!D27 -> 769,000 | C36: =VLOOKUP($G36,'2.사업팀제공'!$A:$D,2,FALSE) -> 23,463 | D36: =VLOOKUP($G36,'2.사업팀제공'!$A:$D,3,FALSE) -> 3,697 | E36: =VLOOKUP($G36,'2.사업팀제공'!$A:$D,4,FALSE) -> 23,960 | G36: =MIN(IF('2.사업팀제공'!$A$6:$A$205>='1.사업팀제공'!B36:B36,'2.사업팀제공'!$A$6:$A$205,"")) -> 783,389
C37: =C36*1.0655 -> 25,000 | D37: =D36*1.0655 -> 3,939 | E37: =E36*1.0655 -> 25,529
A38: 2인 | B38: ='3.소득기준금액계산'!E27 -> 1,456,000 | C38: =VLOOKUP($G38,'2.사업팀제공'!$A:$D,2,FALSE) -> 44,196 | D38: =VLOOKUP($G38,'2.사업팀제공'!$A:$D,3,FALSE) -> 25,248 | E38: =VLOOKUP($G38,'2.사업팀제공'!$A:$D,4,FALSE) -> 44,821 | G38: =MIN(IF('2.사업팀제공'!$A$6:$A$205>='1.사업팀제공'!B38:B38,'2.사업팀제공'!$A$6:$A$205,"")) -> 1,475,672
C39: =C38*1.0655 -> 47,091 | D39: =D38*1.0655 -> 26,902 | E39: =E38*1.0655 -> 47,757
A40: 3인 | B40: ='3.소득기준금액계산'!F27 -> 2,141,000 | C40: =VLOOKUP($G40,'2.사업팀제공'!$A:$D,2,FALSE) -> 64,818 | D40: =VLOOKUP($G40,'2.사업팀제공'!$A:$D,3,FALSE) -> 58,462 | E40: =VLOOKUP($G40,'2.사업팀제공'!$A:$D,4,FALSE) -> 65,650 | G40: =MIN(IF('2.사업팀제공'!$A$6:$A$205>='1.사업팀제공'!B40:B40,'2.사업팀제공'!$A$6:$A$205,"")) -> 2,164,216
C41: =C40*1.0655 -> 69,064 | D41: =D40*1.0655 -> 62,291 | E41: =E40*1.0655 -> 69,950
A42: 4인 | B42: ='3.소득기준금액계산'!G27 -> 2,418,000 | C42: =VLOOKUP($G42,'2.사업팀제공'!$A:$D,2,FALSE) -> 73,321 | D42: =VLOOKUP($G42,'2.사업팀제공'!$A:$D,3,FALSE) -> 72,404 | E42: =VLOOKUP($G42,'2.사업팀제공'!$A:$D,4,FALSE) -> 74,266 | G42: =MIN(IF('2.사업팀제공'!$A$6:$A$205>='1.사업팀제공'!B42:B42,'2.사업팀제공'!$A$6:$A$205,"")) -> 2,448,114
C43: =C42*1.0655 -> 78,124 | D43: =D42*1.0655 -> 77,146 | E43: =E42*1.0655 -> 79,130
A44: 5인 | B44: ='3.소득기준금액계산'!H27 -> 2,521,000 | C44: =VLOOKUP($G44,'2.사업팀제공'!$A:$D,2,FALSE) -> 75,950 | D44: =VLOOKUP($G44,'2.사업팀제공'!$A:$D,3,FALSE) -> 77,176 | E44: =VLOOKUP($G44,'2.사업팀제공'!$A:$D,4,FALSE) -> 76,909 | G44: =MIN(IF('2.사업팀제공'!$A$6:$A$205>='1.사업팀제공'!B44:B44,'2.사업팀제공'!$A$6:$A$205,"")) -> 2,535,908
C45: =C44*1.0655 -> 80,925 | D45: =D44*1.0655 -> 82,231 | E45: =E44*1.0655 -> 81,947
A46: 6인 | B46: ='3.소득기준금액계산'!I27 -> 2,623,000 | C46: =VLOOKUP($G46,'2.사업팀제공'!$A:$D,2,FALSE) -> 78,595 | D46: =VLOOKUP($G46,'2.사업팀제공'!$A:$D,3,FALSE) -> 80,839 | E46: =VLOOKUP($G46,'2.사업팀제공'!$A:$D,4,FALSE) -> 79,565 | G46: =MIN(IF('2.사업팀제공'!$A$6:$A$205>='1.사업팀제공'!B46:B46,'2.사업팀제공'!$A$6:$A$205,"")) -> 2,624,208
C47: =C46*1.0655 -> 83,743 | D47: =D46*1.0655 -> 86,134 | E47: =E46*1.0655 -> 84,777
A48: 7인 | B48: ='3.소득기준금액계산'!J27 -> 2,726,000 | C48: =VLOOKUP($G48,'2.사업팀제공'!$A:$D,2,FALSE) -> 82,032 | D48: =VLOOKUP($G48,'2.사업팀제공'!$A:$D,3,FALSE) -> 85,032 | E48: =VLOOKUP($G48,'2.사업팀제공'!$A:$D,4,FALSE) -> 82,979 | G48: =MIN(IF('2.사업팀제공'!$A$6:$A$205>='1.사업팀제공'!B48:B48,'2.사업팀제공'!$A$6:$A$205,"")) -> 2,738,962
C49: =C48*1.0655 -> 87,405 | D49: =D48*1.0655 -> 90,602 | E49: =E48*1.0655 -> 88,414
A50: 8인 | B50: ='3.소득기준금액계산'!K27 -> 2,829,000 | C50: =VLOOKUP($G50,'2.사업팀제공'!$A:$D,2,FALSE) -> 84,748 | D50: =VLOOKUP($G50,'2.사업팀제공'!$A:$D,3,FALSE) -> 88,973 | E50: =VLOOKUP($G50,'2.사업팀제공'!$A:$D,4,FALSE) -> 85,798 | G50: =MIN(IF('2.사업팀제공'!$A$6:$A$205>='1.사업팀제공'!B50:B50,'2.사업팀제공'!$A$6:$A$205,"")) -> 2,829,665
C51: =C50*1.0655 -> 90,299 | D51: =D50*1.0655 -> 94,801 | E51: =E50*1.0655 -> 91,418
A52: 9인 | B52: ='3.소득기준금액계산'!L27 -> 2,932,000 | C52: =VLOOKUP($G52,'2.사업팀제공'!$A:$D,2,FALSE) -> 88,738 | D52: =VLOOKUP($G52,'2.사업팀제공'!$A:$D,3,FALSE) -> 94,627 | E52: =VLOOKUP($G52,'2.사업팀제공'!$A:$D,4,FALSE) -> 89,734 | G52: =MIN(IF('2.사업팀제공'!$A$6:$A$205>='1.사업팀제공'!B52:B52,'2.사업팀제공'!$A$6:$A$205,"")) -> 2,962,877
C53: =C52*1.0655 -> 94,550 | D53: =D52*1.0655 -> 100,825 | E53: =E52*1.0655 -> 95,612
A54: 10인 | B54: ='3.소득기준금액계산'!M27 -> 3,034,000 | C54: =VLOOKUP($G54,'2.사업팀제공'!$A:$D,2,FALSE) -> 91,149 | D54: =VLOOKUP($G54,'2.사업팀제공'!$A:$D,3,FALSE) -> 99,031 | E54: =VLOOKUP($G54,'2.사업팀제공'!$A:$D,4,FALSE) -> 92,298 | G54: =MIN(IF('2.사업팀제공'!$A$6:$A$205>='1.사업팀제공'!B54:B54,'2.사업팀제공'!$A$6:$A$205,"")) -> 3,043,368
C55: =C54*1.0655 -> 97,119 | D55: =D54*1.0655 -> 105,518 | E55: =E54*1.0655 -> 98,344
A60: 2014년도 기준(전국가구평균소득 60%)
A62: 가구원수 | B62: 소득기준 | C62: 건강보험료 본인부담금 | G62: 소득액(원)
C63: 직장가입자 | D63: 지역가입자 | E63: 혼합
A64: 1인 | B64: ='3.소득기준금액계산'!D33 -> 923,000 | C64: =VLOOKUP($G64,'2.사업팀제공'!$A:$D,2,FALSE) -> 28,250 | D64: =VLOOKUP($G64,'2.사업팀제공'!$A:$D,3,FALSE) -> 7,712 | E64: =VLOOKUP($G64,'2.사업팀제공'!$A:$D,4,FALSE) -> 28,788 | G64: =MIN(IF('2.사업팀제공'!$A$6:$A$205>='1.사업팀제공'!B64:B64,'2.사업팀제공'!$A$6:$A$205,"")) -> 943,225
C65: =C64*1.0655 -> 30,100 | D65: =D64*1.0655 -> 8,217 | E65: =E64*1.0655 -> 30,674
A66: 2인 | B66: ='3.소득기준금액계산'!E33 -> 1,747,000 | C66: =VLOOKUP($G66,'2.사업팀제공'!$A:$D,2,FALSE) -> 52,563 | D66: =VLOOKUP($G66,'2.사업팀제공'!$A:$D,3,FALSE) -> 37,994 | E66: =VLOOKUP($G66,'2.사업팀제공'!$A:$D,4,FALSE) -> 53,261 | G66: =MIN(IF('2.사업팀제공'!$A$6:$A$205>='1.사업팀제공'!B66:B66,'2.사업팀제공'!$A$6:$A$205,"")) -> 1,755,011
C67: =C66*1.0655 -> 56,006 | D67: =D66*1.0655 -> 40,483 | E67: =E66*1.0655 -> 56,750
A68: 3인 | B68: ='3.소득기준금액계산'!F33 -> 2,569,000 | C68: =VLOOKUP($G68,'2.사업팀제공'!$A:$D,2,FALSE) -> 77,771 | D68: =VLOOKUP($G68,'2.사업팀제공'!$A:$D,3,FALSE) -> 79,666 | E68: =VLOOKUP($G68,'2.사업팀제공'!$A:$D,4,FALSE) -> 78,595 | G68: =MIN(IF('2.사업팀제공'!$A$6:$A$205>='1.사업팀제공'!B68:B68,'2.사업팀제공'!$A$6:$A$205,"")) -> 2,596,687
C69: =C68*1.0655 -> 82,865 | D69: =D68*1.0655 -> 84,884 | E69: =E68*1.0655 -> 83,743
A70: 4인 | B70: ='3.소득기준금액계산'!G33 -> 2,901,000 | C70: =VLOOKUP($G70,'2.사업팀제공'!$A:$D,2,FALSE) -> 87,604 | D70: =VLOOKUP($G70,'2.사업팀제공'!$A:$D,3,FALSE) -> 93,160 | E70: =VLOOKUP($G70,'2.사업팀제공'!$A:$D,4,FALSE) -> 88,738 | G70: =MIN(IF('2.사업팀제공'!$A$6:$A$205>='1.사업팀제공'!B70:B70,'2.사업팀제공'!$A$6:$A$205,"")) -> 2,925,016
C71: =C70*1.0655 -> 93,342 | D71: =D70*1.0655 -> 99,262 | E71: =E70*1.0655 -> 94,550
A72: 5인 | B72: ='3.소득기준금액계산'!H33 -> 3,025,000 | C72: =VLOOKUP($G72,'2.사업팀제공'!$A:$D,2,FALSE) -> 91,149 | D72: =VLOOKUP($G72,'2.사업팀제공'!$A:$D,3,FALSE) -> 99,031 | E72: =VLOOKUP($G72,'2.사업팀제공'!$A:$D,4,FALSE) -> 92,298 | G72: =MIN(IF('2.사업팀제공'!$A$6:$A$205>='1.사업팀제공'!B72:B72,'2.사업팀제공'!$A$6:$A$205,"")) -> 3,043,368
C73: =C72*1.0655 -> 97,119 | D73: =D72*1.0655 -> 105,518 | E73: =E72*1.0655 -> 98,344
A74: 6인 | B74: ='3.소득기준금액계산'!I33 -> 3,148,000 | C74: =VLOOKUP($G74,'2.사업팀제공'!$A:$D,2,FALSE) -> 94,553 | D74: =VLOOKUP($G74,'2.사업팀제공'!$A:$D,3,FALSE) -> 103,561 | E74: =VLOOKUP($G74,'2.사업팀제공'!$A:$D,4,FALSE) -> 95,661 | G74: =MIN(IF('2.사업팀제공'!$A$6:$A$205>='1.사업팀제공'!B74:B74,'2.사업팀제공'!$A$6:$A$205,"")) -> 3,157,015
C75: =C74*1.0655 -> 100,746 | D75: =D74*1.0655 -> 110,344 | E75: =E74*1.0655 -> 101,927
A76: 7인 | B76: ='3.소득기준금액계산'!J33 -> 3,271,000 | C76: =VLOOKUP($G76,'2.사업팀제공'!$A:$D,2,FALSE) -> 99,038 | D76: =VLOOKUP($G76,'2.사업팀제공'!$A:$D,3,FALSE) -> 109,994 | E76: =VLOOKUP($G76,'2.사업팀제공'!$A:$D,4,FALSE) -> 100,197 | G76: =MIN(IF('2.사업팀제공'!$A$6:$A$205>='1.사업팀제공'!B76:B76,'2.사업팀제공'!$A$6:$A$205,"")) -> 3,306,785
C77: =C76*1.0655 -> 105,525 | D77: =D76*1.0655 -> 117,199 | E77: =E76*1.0655 -> 106,760
A78: 8인 | B78: ='3.소득기준금액계산'!K33 -> 3,395,000 | C78: =VLOOKUP($G78,'2.사업팀제공'!$A:$D,2,FALSE) -> 102,607 | D78: =VLOOKUP($G78,'2.사업팀제공'!$A:$D,3,FALSE) -> 114,979 | E78: =VLOOKUP($G78,'2.사업팀제공'!$A:$D,4,FALSE) -> 103,972 | G78: =MIN(IF('2.사업팀제공'!$A$6:$A$205>='1.사업팀제공'!B78:B78,'2.사업팀제공'!$A$6:$A$205,"")) -> 3,425,959
C79: =C78*1.0655 -> 109,328 | D79: =D78*1.0655 -> 122,510 | E79: =E78*1.0655 -> 110,782
A80: 9인 | B80: ='3.소득기준금액계산'!L33 -> 3,518,000 | C80: =VLOOKUP($G80,'2.사업팀제공'!$A:$D,2,FALSE) -> 106,338 | D80: =VLOOKUP($G80,'2.사업팀제공'!$A:$D,3,FALSE) -> 120,187 | E80: =VLOOKUP($G80,'2.사업팀제공'!$A:$D,4,FALSE) -> 107,731 | G80: =MIN(IF('2.사업팀제공'!$A$6:$A$205>='1.사업팀제공'!B80:B80,'2.사업팀제공'!$A$6:$A$205,"")) -> 3,550,502
C81: =C80*1.0655 -> 113,303 | D81: =D80*1.0655 -> 128,059 | E81: =E80*1.0655 -> 114,787
A82: 10인 | B82: ='3.소득기준금액계산'!M33 -> 3,641,000 | C82: =VLOOKUP($G82,'2.사업팀제공'!$A:$D,2,FALSE) -> 109,153 | D82: =VLOOKUP($G82,'2.사업팀제공'!$A:$D,3,FALSE) -> 123,800 | E82: =VLOOKUP($G82,'2.사업팀제공'!$A:$D,4,FALSE) -> 110,600 | G82: =MIN(IF('2.사업팀제공'!$A$6:$A$205>='1.사업팀제공'!B82:B82,'2.사업팀제공'!$A$6:$A$205,"")) -> 3,644,512
C83: =C82*1.0655 -> 116,303 | D83: =D82*1.0655 -> 131,909 | E83: =E82*1.0655 -> 117,844
A88: 2014년도 기준(전국가구평균소득 65%)
A90: 가구원수 | B90: 소득기준 | C90: 건강보험료 본인부담금 | G90: 소득액(원)
C91: 직장가입자 | D91: 지역가입자 | E91: 혼합
A92: 1인 | B92: ='3.소득기준금액계산'!D39 -> 1,000,000 | C92: =VLOOKUP($G92,'2.사업팀제공'!$A:$D,2,FALSE) -> 29,950 | D92: =VLOOKUP($G92,'2.사업팀제공'!$A:$D,3,FALSE) -> 9,834 | E92: =VLOOKUP($G92,'2.사업팀제공'!$A:$D,4,FALSE) -> 29,951 | G92: =MIN(IF('2.사업팀제공'!$A$6:$A$205>='1.사업팀제공'!B92:B92,'2.사업팀제공'!$A$6:$A$205,"")) -> 1,000,000
C93: =C92*1.0655 -> 31,912 | D93: =D92*1.0655 -> 10,478 | E93: =E92*1.0655 -> 31,913
A94: 2인 | B94: ='3.소득기준금액계산'!E39 -> 1,893,000 | C94: =VLOOKUP($G94,'2.사업팀제공'!$A:$D,2,FALSE) -> 56,905 | D94: =VLOOKUP($G94,'2.사업팀제공'!$A:$D,3,FALSE) -> 44,726 | E94: =VLOOKUP($G94,'2.사업팀제공'!$A:$D,4,FALSE) -> 57,105 | G94: =MIN(IF('2.사업팀제공'!$A$6:$A$205>='1.사업팀제공'!B94:B94,'2.사업팀제공'!$A$6:$A$205,"")) -> 1,900,000
C95: =C94*1.0655 -> 60,632 | D95: =D94*1.0655 -> 47,656 | E95: =E94*1.0655 -> 60,845
A96: 3인 | B96: ='3.소득기준금액계산'!F39 -> 2,783,000 | C96: =VLOOKUP($G96,'2.사업팀제공'!$A:$D,2,FALSE) -> 83,867 | D96: =VLOOKUP($G96,'2.사업팀제공'!$A:$D,3,FALSE) -> 87,592 | E96: =VLOOKUP($G96,'2.사업팀제공'!$A:$D,4,FALSE) -> 84,748 | G96: =MIN(IF('2.사업팀제공'!$A$6:$A$205>='1.사업팀제공'!B96:B96,'2.사업팀제공'!$A$6:$A$205,"")) -> 2,800,245
C97: =C96*1.0655 -> 89,360 | D97: =D96*1.0655 -> 93,329 | E97: =E96*1.0655 -> 90,299
A98: 4인 | B98: ='3.소득기준금액계산'!G39 -> 3,143,000 | C98: =VLOOKUP($G98,'2.사업팀제공'!$A:$D,2,FALSE) -> 94,553 | D98: =VLOOKUP($G98,'2.사업팀제공'!$A:$D,3,FALSE) -> 103,561 | E98: =VLOOKUP($G98,'2.사업팀제공'!$A:$D,4,FALSE) -> 95,661 | G98: =MIN(IF('2.사업팀제공'!$A$6:$A$205>='1.사업팀제공'!B98:B98,'2.사업팀제공'!$A$6:$A$205,"")) -> 3,157,015
C99: =C98*1.0655 -> 100,746 | D99: =D98*1.0655 -> 110,344 | E99: =E98*1.0655 -> 101,927
A100: 5인 | B100: ='3.소득기준금액계산'!H39 -> 3,277,000 | C100: =VLOOKUP($G100,'2.사업팀제공'!$A:$D,2,FALSE) -> 99,038 | D100: =VLOOKUP($G100,'2.사업팀제공'!$A:$D,3,FALSE) -> 109,994 | E100: =VLOOKUP($G100,'2.사업팀제공'!$A:$D,4,FALSE) -> 100,197 | G100: =MIN(IF('2.사업팀제공'!$A$6:$A$205>='1.사업팀제공'!B100:B100,'2.사업팀제공'!$A$6:$A$205,"")) -> 3,306,785
C101: =C100*1.0655 -> 105,525 | D101: =D100*1.0655 -> 117,199 | E101: =E100*1.0655 -> 106,760
A102: 6인 | B102: ='3.소득기준금액계산'!I39 -> 3,410,000 | C102: =VLOOKUP($G102,'2.사업팀제공'!$A:$D,2,FALSE) -> 102,607 | D102: =VLOOKUP($G102,'2.사업팀제공'!$A:$D,3,FALSE) -> 114,979 | E102: =VLOOKUP($G102,'2.사업팀제공'!$A:$D,4,FALSE) -> 103,972 | G102: =MIN(IF('2.사업팀제공'!$A$6:$A$205>='1.사업팀제공'!B102:B102,'2.사업팀제공'!$A$6:$A$205,"")) -> 3,425,959
C103: =C102*1.0655 -> 109,328 | D103: =D102*1.0655 -> 122,510 | E103: =E102*1.0655 -> 110,782
A104: 7인 | B104: ='3.소득기준금액계산'!J39 -> 3,544,000 | C104: =VLOOKUP($G104,'2.사업팀제공'!$A:$D,2,FALSE) -> 106,338 | D104: =VLOOKUP($G104,'2.사업팀제공'!$A:$D,3,FALSE) -> 120,187 | E104: =VLOOKUP($G104,'2.사업팀제공'!$A:$D,4,FALSE) -> 107,731 | G104: =MIN(IF('2.사업팀제공'!$A$6:$A$205>='1.사업팀제공'!B104:B104,'2.사업팀제공'!$A$6:$A$205,"")) -> 3,550,502
C105: =C104*1.0655 -> 113,303 | D105: =D104*1.0655 -> 128,059 | E105: =E104*1.0655 -> 114,787
A106: 8인 | B106: ='3.소득기준금액계산'!K39 -> 3,678,000 | C106: =VLOOKUP($G106,'2.사업팀제공'!$A:$D,2,FALSE) -> 110,600 | D106: =VLOOKUP($G106,'2.사업팀제공'!$A:$D,3,FALSE) -> 125,628 | E106: =VLOOKUP($G106,'2.사업팀제공'!$A:$D,4,FALSE) -> 112,008 | G106: =MIN(IF('2.사업팀제공'!$A$6:$A$205>='1.사업팀제공'!B106:B106,'2.사업팀제공'!$A$6:$A$205,"")) -> 3,692,830
C107: =C106*1.0655 -> 117,844 | D107: =D106*1.0655 -> 133,857 | E107: =E106*1.0655 -> 119,345
A108: 9인 | B108: ='3.소득기준금액계산'!L39 -> 3,811,000 | C108: =VLOOKUP($G108,'2.사업팀제공'!$A:$D,2,FALSE) -> 115,131 | D108: =VLOOKUP($G108,'2.사업팀제공'!$A:$D,3,FALSE) -> 131,228 | E108: =VLOOKUP($G108,'2.사업팀제공'!$A:$D,4,FALSE) -> 116,693 | G108: =MIN(IF('2.사업팀제공'!$A$6:$A$205>='1.사업팀제공'!B108:B108,'2.사업팀제공'!$A$6:$A$205,"")) -> 3,844,106
C109: =C108*1.0655 -> 122,672 | D109: =D108*1.0655 -> 139,823 | E109: =E108*1.0655 -> 124,336
A110: 10인 | B110: ='3.소득기준금액계산'!M39 -> 3,945,000 | C110: =VLOOKUP($G110,'2.사업팀제공'!$A:$D,2,FALSE) -> 118,331 | D110: =VLOOKUP($G110,'2.사업팀제공'!$A:$D,3,FALSE) -> 134,891 | E110: =VLOOKUP($G110,'2.사업팀제공'!$A:$D,4,FALSE) -> 119,848 | G110: =MIN(IF('2.사업팀제공'!$A$6:$A$205>='1.사업팀제공'!B110:B110,'2.사업팀제공'!$A$6:$A$205,"")) -> 3,950,935
C111: =C110*1.0655 -> 126,082 | D111: =D110*1.0655 -> 143,726 | E111: =E110*1.0655 -> 127,698
A116: 2014년도 기준(전국가구평균소득 70%)
A118: 가구원수 | B118: 소득기준 | C118: 건강보험료 본인부담금 | G118: 소득액(원)
C119: 직장가입자 | D119: 지역가입자 | E119: 혼합
A120: 1인 | B120: ='3.소득기준금액계산'!D45 -> 1,076,000 | C120: =VLOOKUP($G120,'2.사업팀제공'!$A:$D,2,FALSE) -> 32,550 | D120: =VLOOKUP($G120,'2.사업팀제공'!$A:$D,3,FALSE) -> 12,299 | E120: =VLOOKUP($G120,'2.사업팀제공'!$A:$D,4,FALSE) -> 32,941 | G120: =MIN(IF('2.사업팀제공'!$A$6:$A$205>='1.사업팀제공'!B120:B120,'2.사업팀제공'!$A$6:$A$205,"")) -> 1,086,821
C121: =C120*1.0655 -> 34,682 | D121: =D120*1.0655 -> 13,105 | E121: =E120*1.0655 -> 35,099
A122: 2인 | B122: ='3.소득기준금액계산'!E45 -> 2,038,000 | C122: =VLOOKUP($G122,'2.사업팀제공'!$A:$D,2,FALSE) -> 61,372 | D122: =VLOOKUP($G122,'2.사업팀제공'!$A:$D,3,FALSE) -> 53,111 | E122: =VLOOKUP($G122,'2.사업팀제공'!$A:$D,4,FALSE) -> 62,121 | G122: =MIN(IF('2.사업팀제공'!$A$6:$A$205>='1.사업팀제공'!B122:B122,'2.사업팀제공'!$A$6:$A$205,"")) -> 2,049,147
C123: =C122*1.0655 -> 65,392 | D123: =D122*1.0655 -> 56,590 | E123: =E122*1.0655 -> 66,190
A124: 3인 | B124: ='3.소득기준금액계산'!F45 -> 2,997,000 | C124: =VLOOKUP($G124,'2.사업팀제공'!$A:$D,2,FALSE) -> 90,059 | D124: =VLOOKUP($G124,'2.사업팀제공'!$A:$D,3,FALSE) -> 97,485 | E124: =VLOOKUP($G124,'2.사업팀제공'!$A:$D,4,FALSE) -> 91,149 | G124: =MIN(IF('2.사업팀제공'!$A$6:$A$205>='1.사업팀제공'!B124:B124,'2.사업팀제공'!$A$6:$A$205,"")) -> 3,006,985
C125: =C124*1.0655 -> 95,958 | D125: =D124*1.0655 -> 103,870 | E125: =E124*1.0655 -> 97,119
A126: 4인 | B126: ='3.소득기준금액계산'!G45 -> 3,385,000 | C126: =VLOOKUP($G126,'2.사업팀제공'!$A:$D,2,FALSE) -> 101,447 | D126: =VLOOKUP($G126,'2.사업팀제공'!$A:$D,3,FALSE) -> 113,256 | E126: =VLOOKUP($G126,'2.사업팀제공'!$A:$D,4,FALSE) -> 102,607 | G126: =MIN(IF('2.사업팀제공'!$A$6:$A$205>='1.사업팀제공'!B126:B126,'2.사업팀제공'!$A$6:$A$205,"")) -> 3,387,221
C127: =C126*1.0655 -> 108,092 | D127: =D126*1.0655 -> 120,674 | E127: =E126*1.0655 -> 109,328
A128: 5인 | B128: ='3.소득기준금액계산'!H45 -> 3,529,000 | C128: =VLOOKUP($G128,'2.사업팀제공'!$A:$D,2,FALSE) -> 106,338 | D128: =VLOOKUP($G128,'2.사업팀제공'!$A:$D,3,FALSE) -> 120,187 | E128: =VLOOKUP($G128,'2.사업팀제공'!$A:$D,4,FALSE) -> 107,731 | G128: =MIN(IF('2.사업팀제공'!$A$6:$A$205>='1.사업팀제공'!B128:B128,'2.사업팀제공'!$A$6:$A$205,"")) -> 3,550,502
C129: =C128*1.0655 -> 113,303 | D129: =D128*1.0655 -> 128,059 | E129: =E128*1.0655 -> 114,787
A130: 6인 | B130: ='3.소득기준금액계산'!I45 -> 3,673,000 | C130: =VLOOKUP($G130,'2.사업팀제공'!$A:$D,2,FALSE) -> 110,600 | D130: =VLOOKUP($G130,'2.사업팀제공'!$A:$D,3,FALSE) -> 125,628 | E130: =VLOOKUP($G130,'2.사업팀제공'!$A:$D,4,FALSE) -> 112,008 | G130: =MIN(IF('2.사업팀제공'!$A$6:$A$205>='1.사업팀제공'!B130:B130,'2.사업팀제공'!$A$6:$A$205,"")) -> 3,692,830
C131: =C130*1.0655 -> 117,844 | D131: =D130*1.0655 -> 133,857 | E131: =E130*1.0655 -> 119,345
A132: 7인 | B132: ='3.소득기준금액계산'!J45 -> 3,817,000 | C132: =VLOOKUP($G132,'2.사업팀제공'!$A:$D,2,FALSE) -> 115,131 | D132: =VLOOKUP($G132,'2.사업팀제공'!$A:$D,3,FALSE) -> 131,228 | E132: =VLOOKUP($G132,'2.사업팀제공'!$A:$D,4,FALSE) -> 116,693 | G132: =MIN(IF('2.사업팀제공'!$A$6:$A$205>='1.사업팀제공'!B132:B132,'2.사업팀제공'!$A$6:$A$205,"")) -> 3,844,106
C133: =C132*1.0655 -> 122,672 | D133: =D132*1.0655 -> 139,823 | E133: =E132*1.0655 -> 124,336
A134: 8인 | B134: ='3.소득기준금액계산'!K45 -> 3,961,000 | C134: =VLOOKUP($G134,'2.사업팀제공'!$A:$D,2,FALSE) -> 119,848 | D134: =VLOOKUP($G134,'2.사업팀제공'!$A:$D,3,FALSE) -> 136,840 | E134: =VLOOKUP($G134,'2.사업팀제공'!$A:$D,4,FALSE) -> 121,403 | G134: =MIN(IF('2.사업팀제공'!$A$6:$A$205>='1.사업팀제공'!B134:B134,'2.사업팀제공'!$A$6:$A$205,"")) -> 4,001,591
C135: =C134*1.0655 -> 127,698 | D135: =D134*1.0655 -> 145,803 | E135: =E134*1.0655 -> 129,355
A136: 9인 | B136: ='3.소득기준금액계산'!L45 -> 4,104,000 | C136: =VLOOKUP($G136,'2.사업팀제공'!$A:$D,2,FALSE) -> 123,163 | D136: =VLOOKUP($G136,'2.사업팀제공'!$A:$D,3,FALSE) -> 140,653 | E136: =VLOOKUP($G136,'2.사업팀제공'!$A:$D,4,FALSE) -> 124,988 | G136: =MIN(IF('2.사업팀제공'!$A$6:$A$205>='1.사업팀제공'!B136:B136,'2.사업팀제공'!$A$6:$A$205,"")) -> 4,112,280
C137: =C136*1.0655 -> 131,230 | D137: =D136*1.0655 -> 149,866 | E137: =E136*1.0655 -> 133,175
A138: 10인 | B138: ='3.소득기준금액계산'!M45 -> 4,248,000 | C138: =VLOOKUP($G138,'2.사업팀제공'!$A:$D,2,FALSE) -> 128,700 | D138: =VLOOKUP($G138,'2.사업팀제공'!$A:$D,3,FALSE) -> 146,611 | E138: =VLOOKUP($G138,'2.사업팀제공'!$A:$D,4,FALSE) -> 130,714 | G138: =MIN(IF('2.사업팀제공'!$A$6:$A$205>='1.사업팀제공'!B138:B138,'2.사업팀제공'!$A$6:$A$205,"")) -> 4,297,149
C139: =C138*1.0655 -> 137,130 | D139: =D138*1.0655 -> 156,214 | E139: =E138*1.0655 -> 139,276
A144: 2014년도 기준(전국가구평균소득 80%)
A146: 가구원수 | B146: 소득기준 | C146: 건강보험료 본인부담금 | G146: 소득액(원)
C147: 직장가입자 | D147: 지역가입자 | E147: 혼합
A148: 1인 | B148: ='3.소득기준금액계산'!D51 -> 1,230,000 | C148: =VLOOKUP($G148,'2.사업팀제공'!$A:$D,2,FALSE) -> 36,947 | D148: =VLOOKUP($G148,'2.사업팀제공'!$A:$D,3,FALSE) -> 18,082 | E148: =VLOOKUP($G148,'2.사업팀제공'!$A:$D,4,FALSE) -> 37,432 | G148: =MIN(IF('2.사업팀제공'!$A$6:$A$205>='1.사업팀제공'!B148:B148,'2.사업팀제공'!$A$6:$A$205,"")) -> 1,233,638
C149: =C148*1.0655 -> 39,367 | D149: =D148*1.0655 -> 19,266 | E149: =E148*1.0655 -> 39,884
A150: 2인 | B150: ='3.소득기준금액계산'!E51 -> 2,329,000 | C150: =VLOOKUP($G150,'2.사업팀제공'!$A:$D,2,FALSE) -> 70,294 | D150: =VLOOKUP($G150,'2.사업팀제공'!$A:$D,3,FALSE) -> 67,703 | E150: =VLOOKUP($G150,'2.사업팀제공'!$A:$D,4,FALSE) -> 71,188 | G150: =MIN(IF('2.사업팀제공'!$A$6:$A$205>='1.사업팀제공'!B150:B150,'2.사업팀제공'!$A$6:$A$205,"")) -> 2,347,059
C151: =C150*1.0655 -> 74,898 | D151: =D150*1.0655 -> 72,138 | E151: =E150*1.0655 -> 75,851
A152: 3인 | B152: ='3.소득기준금액계산'!F51 -> 3,425,000 | C152: =VLOOKUP($G152,'2.사업팀제공'!$A:$D,2,FALSE) -> 102,607 | D152: =VLOOKUP($G152,'2.사업팀제공'!$A:$D,3,FALSE) -> 114,979 | E152: =VLOOKUP($G152,'2.사업팀제공'!$A:$D,4,FALSE) -> 103,972 | G152: =MIN(IF('2.사업팀제공'!$A$6:$A$205>='1.사업팀제공'!B152:B152,'2.사업팀제공'!$A$6:$A$205,"")) -> 3,425,959
C153: =C152*1.0655 -> 109,328 | D153: =D152*1.0655 -> 122,510 | E153: =E152*1.0655 -> 110,782
A154: 4인 | B154: ='3.소득기준금액계산'!G51 -> 3,869,000 | C154: =VLOOKUP($G154,'2.사업팀제공'!$A:$D,2,FALSE) -> 116,693 | D154: =VLOOKUP($G154,'2.사업팀제공'!$A:$D,3,FALSE) -> 133,090 | E154: =VLOOKUP($G154,'2.사업팀제공'!$A:$D,4,FALSE) -> 118,331 | G154: =MIN(IF('2.사업팀제공'!$A$6:$A$205>='1.사업팀제공'!B154:B154,'2.사업팀제공'!$A$6:$A$205,"")) -> 3,896,263
C155: =C154*1.0655 -> 124,336 | D155: =D154*1.0655 -> 141,807 | E155: =E154*1.0655 -> 126,082
A156: 5인 | B156: ='3.소득기준금액계산'!H51 -> 4,033,000 | C156: =VLOOKUP($G156,'2.사업팀제공'!$A:$D,2,FALSE) -> 121,403 | D156: =VLOOKUP($G156,'2.사업팀제공'!$A:$D,3,FALSE) -> 138,704 | E156: =VLOOKUP($G156,'2.사업팀제공'!$A:$D,4,FALSE) -> 123,163 | G156: =MIN(IF('2.사업팀제공'!$A$6:$A$205>='1.사업팀제공'!B156:B156,'2.사업팀제공'!$A$6:$A$205,"")) -> 4,053,530
C157: =C156*1.0655 -> 129,355 | D157: =D156*1.0655 -> 147,789 | E157: =E156*1.0655 -> 131,230
A158: 6인 | B158: ='3.소득기준금액계산'!I51 -> 4,197,000 | C158: =VLOOKUP($G158,'2.사업팀제공'!$A:$D,2,FALSE) -> 126,757 | D158: =VLOOKUP($G158,'2.사업팀제공'!$A:$D,3,FALSE) -> 144,592 | E158: =VLOOKUP($G158,'2.사업팀제공'!$A:$D,4,FALSE) -> 128,700 | G158: =MIN(IF('2.사업팀제공'!$A$6:$A$205>='1.사업팀제공'!B158:B158,'2.사업팀제공'!$A$6:$A$205,"")) -> 4,232,295
C159: =C158*1.0655 -> 135,060 | D159: =D158*1.0655 -> 154,063 | E159: =E158*1.0655 -> 137,130
A160: 7인 | B160: ='3.소득기준금액계산'!J51 -> 4,362,000 | C160: =VLOOKUP($G160,'2.사업팀제공'!$A:$D,2,FALSE) -> 130,714 | D160: =VLOOKUP($G160,'2.사업팀제공'!$A:$D,3,FALSE) -> 148,703 | E160: =VLOOKUP($G160,'2.사업팀제공'!$A:$D,4,FALSE) -> 132,707 | G160: =MIN(IF('2.사업팀제공'!$A$6:$A$205>='1.사업팀제공'!B160:B160,'2.사업팀제공'!$A$6:$A$205,"")) -> 4,364,393
C161: =C160*1.0655 -> 139,276 | D161: =D160*1.0655 -> 158,443 | E161: =E160*1.0655 -> 141,399
A162: 8인 | B162: ='3.소득기준금액계산'!K51 -> 4,526,000 | C162: =VLOOKUP($G162,'2.사업팀제공'!$A:$D,2,FALSE) -> 136,813 | D162: =VLOOKUP($G162,'2.사업팀제공'!$A:$D,3,FALSE) -> 154,998 | E162: =VLOOKUP($G162,'2.사업팀제공'!$A:$D,4,FALSE) -> 138,952 | G162: =MIN(IF('2.사업팀제공'!$A$6:$A$205>='1.사업팀제공'!B162:B162,'2.사업팀제공'!$A$6:$A$205,"")) -> 4,568,031
C163: =C162*1.0655 -> 145,774 | D163: =D162*1.0655 -> 165,150 | E163: =E162*1.0655 -> 148,053
A164: 9인 | B164: ='3.소득기준금액계산'!L51 -> 4,691,000 | C164: =VLOOKUP($G164,'2.사업팀제공'!$A:$D,2,FALSE) -> 141,098 | D164: =VLOOKUP($G164,'2.사업팀제공'!$A:$D,3,FALSE) -> 159,498 | E164: =VLOOKUP($G164,'2.사업팀제공'!$A:$D,4,FALSE) -> 143,354 | G164: =MIN(IF('2.사업팀제공'!$A$6:$A$205>='1.사업팀제공'!B164:B164,'2.사업팀제공'!$A$6:$A$205,"")) -> 4,711,133
C165: =C164*1.0655 -> 150,340 | D165: =D164*1.0655 -> 169,945 | E165: =E164*1.0655 -> 152,744
A166: 10인 | B166: ='3.소득기준금액계산'!M51 -> 4,855,000 | C166: =VLOOKUP($G166,'2.사업팀제공'!$A:$D,2,FALSE) -> 145,747 | D166: =VLOOKUP($G166,'2.사업팀제공'!$A:$D,3,FALSE) -> 164,220 | E166: =VLOOKUP($G166,'2.사업팀제공'!$A:$D,4,FALSE) -> 148,029 | G166: =MIN(IF('2.사업팀제공'!$A$6:$A$205>='1.사업팀제공'!B166:B166,'2.사업팀제공'!$A$6:$A$205,"")) -> 4,866,360
C167: =C166*1.0655 -> 155,293 | D167: =D166*1.0655 -> 174,976 | E167: =E166*1.0655 -> 157,725
A172: 2014년도 기준(전국가구평균소득 100%)
A174: 가구원수 | B174: 소득기준 | C174: 건강보험료 본인부담금 | G174: 소득액(원)
C175: 직장가입자 | D175: 지역가입자 | E175: 혼합
A176: 1인 | B176: ='3.소득기준금액계산'!D55 -> 1,538,000 | C176: =VLOOKUP($G176,'2.사업팀제공'!$A:$D,2,FALSE) -> 46,303 | D176: =VLOOKUP($G176,'2.사업팀제공'!$A:$D,3,FALSE) -> 28,954 | E176: =VLOOKUP($G176,'2.사업팀제공'!$A:$D,4,FALSE) -> 46,837 | G176: =MIN(IF('2.사업팀제공'!$A$6:$A$205>='1.사업팀제공'!B176:B176,'2.사업팀제공'!$A$6:$A$205,"")) -> 1,546,020
C177: =C176*1.0655 -> 49,336 | D177: =D176*1.0655 -> 30,850 | E177: =E176*1.0655 -> 49,905
A178: 2인 | B178: ='3.소득기준금액계산'!E55 -> 2,912,000 | C178: =VLOOKUP($G178,'2.사업팀제공'!$A:$D,2,FALSE) -> 87,604 | D178: =VLOOKUP($G178,'2.사업팀제공'!$A:$D,3,FALSE) -> 93,160 | E178: =VLOOKUP($G178,'2.사업팀제공'!$A:$D,4,FALSE) -> 88,738 | G178: =MIN(IF('2.사업팀제공'!$A$6:$A$205>='1.사업팀제공'!B178:B178,'2.사업팀제공'!$A$6:$A$205,"")) -> 2,925,016
C179: =C178*1.0655 -> 93,342 | D179: =D178*1.0655 -> 99,262 | E179: =E178*1.0655 -> 94,550
A180: 3인 | B180: ='3.소득기준금액계산'!F55 -> 4,281,000 | C180: =VLOOKUP($G180,'2.사업팀제공'!$A:$D,2,FALSE) -> 128,700 | D180: =VLOOKUP($G180,'2.사업팀제공'!$A:$D,3,FALSE) -> 146,611 | E180: =VLOOKUP($G180,'2.사업팀제공'!$A:$D,4,FALSE) -> 130,714 | G180: =MIN(IF('2.사업팀제공'!$A$6:$A$205>='1.사업팀제공'!B180:B180,'2.사업팀제공'!$A$6:$A$205,"")) -> 4,297,149
C181: =C180*1.0655 -> 137,130 | D181: =D180*1.0655 -> 156,214 | E181: =E180*1.0655 -> 139,276
A182: 4인 | B182: ='3.소득기준금액계산'!G55 -> 4,836,000 | C182: =VLOOKUP($G182,'2.사업팀제공'!$A:$D,2,FALSE) -> 145,747 | D182: =VLOOKUP($G182,'2.사업팀제공'!$A:$D,3,FALSE) -> 164,220 | E182: =VLOOKUP($G182,'2.사업팀제공'!$A:$D,4,FALSE) -> 148,029 | G182: =MIN(IF('2.사업팀제공'!$A$6:$A$205>='1.사업팀제공'!B182:B182,'2.사업팀제공'!$A$6:$A$205,"")) -> 4,866,360
C183: =C182*1.0655 -> 155,293 | D183: =D182*1.0655 -> 174,976 | E183: =E182*1.0655 -> 157,725
A184: 5인 | B184: ='3.소득기준금액계산'!H55 -> 5,041,000 | C184: =VLOOKUP($G184,'2.사업팀제공'!$A:$D,2,FALSE) -> 152,509 | D184: =VLOOKUP($G184,'2.사업팀제공'!$A:$D,3,FALSE) -> 171,663 | E184: =VLOOKUP($G184,'2.사업팀제공'!$A:$D,4,FALSE) -> 155,163 | G184: =MIN(IF('2.사업팀제공'!$A$6:$A$205>='1.사업팀제공'!B184:B184,'2.사업팀제공'!$A$6:$A$205,"")) -> 5,092,130
C185: =C184*1.0655 -> 162,498 | D185: =D184*1.0655 -> 182,907 | E185: =E184*1.0655 -> 165,326
A186: 6인 | B186: ='3.소득기준금액계산'!I55 -> 5,247,000 | C186: =VLOOKUP($G186,'2.사업팀제공'!$A:$D,2,FALSE) -> 157,880 | D186: =VLOOKUP($G186,'2.사업팀제공'!$A:$D,3,FALSE) -> 177,007 | E186: =VLOOKUP($G186,'2.사업팀제공'!$A:$D,4,FALSE) -> 160,657 | G186: =MIN(IF('2.사업팀제공'!$A$6:$A$205>='1.사업팀제공'!B186:B186,'2.사업팀제공'!$A$6:$A$205,"")) -> 5,271,449
C187: =C186*1.0655 -> 168,221 | D187: =D186*1.0655 -> 188,601 | E187: =E186*1.0655 -> 171,180
A188: 7인 | B188: ='3.소득기준금액계산'!J55 -> 5,452,000 | C188: =VLOOKUP($G188,'2.사업팀제공'!$A:$D,2,FALSE) -> 163,402 | D188: =VLOOKUP($G188,'2.사업팀제공'!$A:$D,3,FALSE) -> 182,758 | E188: =VLOOKUP($G188,'2.사업팀제공'!$A:$D,4,FALSE) -> 166,261 | G188: =MIN(IF('2.사업팀제공'!$A$6:$A$205>='1.사업팀제공'!B188:B188,'2.사업팀제공'!$A$6:$A$205,"")) -> 5,455,831
C189: =C188*1.0655 -> 174,105 | D189: =D188*1.0655 -> 194,729 | E189: =E188*1.0655 -> 177,151
A190: 8인 | B190: ='3.소득기준금액계산'!K55 -> 5,658,000 | C190: =VLOOKUP($G190,'2.사업팀제공'!$A:$D,2,FALSE) -> 172,378 | D190: =VLOOKUP($G190,'2.사업팀제공'!$A:$D,3,FALSE) -> 192,218 | E190: =VLOOKUP($G190,'2.사업팀제공'!$A:$D,4,FALSE) -> 175,587 | G190: =MIN(IF('2.사업팀제공'!$A$6:$A$205>='1.사업팀제공'!B190:B190,'2.사업팀제공'!$A$6:$A$205,"")) -> 5,755,521
C191: =C190*1.0655 -> 183,669 | D191: =D190*1.0655 -> 204,808 | E191: =E190*1.0655 -> 187,088
A192: 9인 | B192: ='3.소득기준금액계산'!L55 -> 5,863,000 | C192: =VLOOKUP($G192,'2.사업팀제공'!$A:$D,2,FALSE) -> 178,923 | D192: =VLOOKUP($G192,'2.사업팀제공'!$A:$D,3,FALSE) -> 199,293 | E192: =VLOOKUP($G192,'2.사업팀제공'!$A:$D,4,FALSE) -> 182,435 | G192: =MIN(IF('2.사업팀제공'!$A$6:$A$205>='1.사업팀제공'!B192:B192,'2.사업팀제공'!$A$6:$A$205,"")) -> 5,974,066
C193: =C192*1.0655 -> 190,642 | D193: =D192*1.0655 -> 212,347 | E193: =E192*1.0655 -> 194,384
A194: 10인 | B194: ='3.소득기준금액계산'!M55 -> 6,069,000 | C194: =VLOOKUP($G194,'2.사업팀제공'!$A:$D,2,FALSE) -> 182,435 | D194: =VLOOKUP($G194,'2.사업팀제공'!$A:$D,3,FALSE) -> 203,138 | E194: =VLOOKUP($G194,'2.사업팀제공'!$A:$D,4,FALSE) -> 186,361 | G194: =MIN(IF('2.사업팀제공'!$A$6:$A$205>='1.사업팀제공'!B194:B194,'2.사업팀제공'!$A$6:$A$205,"")) -> 6,091,302
C195: =C194*1.0655 -> 194,384 | D195: =D194*1.0655 -> 216,444 | E195: =E194*1.0655 -> 198,568
A200: 2014년도 기준(전국가구평균소득 120%)
A202: 가구원수 | B202: 소득기준 | C202: 건강보험료 본인부담금 | G202: 소득액(원)
C203: 직장가입자 | D203: 지역가입자 | E203: 혼합
A204: 1인 | B204: ='3.소득기준금액계산'!D61 -> 1,845,000 | C204: =VLOOKUP($G204,'2.사업팀제공'!$A:$D,2,FALSE) -> 55,714 | D204: =VLOOKUP($G204,'2.사업팀제공'!$A:$D,3,FALSE) -> 43,030 | E204: =VLOOKUP($G204,'2.사업팀제공'!$A:$D,4,FALSE) -> 56,469 | G204: =MIN(IF('2.사업팀제공'!$A$6:$A$205>='1.사업팀제공'!B204:B204,'2.사업팀제공'!$A$6:$A$205,"")) -> 1,860,229
C205: =C204*1.0655 -> 59,363 | D205: =D204*1.0655 -> 45,848 | E205: =E204*1.0655 -> 60,168
A206: 2인 | B206: ='3.소득기준금액계산'!E61 -> 3,494,000 | C206: =VLOOKUP($G206,'2.사업팀제공'!$A:$D,2,FALSE) -> 105,033 | D206: =VLOOKUP($G206,'2.사업팀제공'!$A:$D,3,FALSE) -> 118,455 | E206: =VLOOKUP($G206,'2.사업팀제공'!$A:$D,4,FALSE) -> 106,338 | G206: =MIN(IF('2.사업팀제공'!$A$6:$A$205>='1.사업팀제공'!B206:B206,'2.사업팀제공'!$A$6:$A$205,"")) -> 3,506,933
C207: =C206*1.0655 -> 111,913 | D207: =D206*1.0655 -> 126,214 | E207: =E206*1.0655 -> 113,303
A208: 3인 | B208: ='3.소득기준금액계산'!F61 -> 5,138,000 | C208: =VLOOKUP($G208,'2.사업팀제공'!$A:$D,2,FALSE) -> 155,163 | D208: =VLOOKUP($G208,'2.사업팀제공'!$A:$D,3,FALSE) -> 174,303 | E208: =VLOOKUP($G208,'2.사업팀제공'!$A:$D,4,FALSE) -> 157,880 | G208: =MIN(IF('2.사업팀제공'!$A$6:$A$205>='1.사업팀제공'!B208:B208,'2.사업팀제공'!$A$6:$A$205,"")) -> 5,180,742
C209: =C208*1.0655 -> 165,326 | D209: =D208*1.0655 -> 185,720 | E209: =E208*1.0655 -> 168,221
A210: 4인 | B210: ='3.소득기준금액계산'!G61 -> 5,803,000 | C210: =VLOOKUP($G210,'2.사업팀제공'!$A:$D,2,FALSE) -> 175,587 | D210: =VLOOKUP($G210,'2.사업팀제공'!$A:$D,3,FALSE) -> 195,664 | E210: =VLOOKUP($G210,'2.사업팀제공'!$A:$D,4,FALSE) -> 178,923 | G210: =MIN(IF('2.사업팀제공'!$A$6:$A$205>='1.사업팀제공'!B210:B210,'2.사업팀제공'!$A$6:$A$205,"")) -> 5,862,677
C211: =C210*1.0655 -> 187,088 | D211: =D210*1.0655 -> 208,480 | E211: =E210*1.0655 -> 190,642
A212: 5인 | B212: ='3.소득기준금액계산'!H61 -> 6,050,000 | C212: =VLOOKUP($G212,'2.사업팀제공'!$A:$D,2,FALSE) -> 182,435 | D212: =VLOOKUP($G212,'2.사업팀제공'!$A:$D,3,FALSE) -> 203,138 | E212: =VLOOKUP($G212,'2.사업팀제공'!$A:$D,4,FALSE) -> 186,361 | G212: =MIN(IF('2.사업팀제공'!$A$6:$A$205>='1.사업팀제공'!B212:B212,'2.사업팀제공'!$A$6:$A$205,"")) -> 6,091,302
C213: =C212*1.0655 -> 194,384 | D213: =D212*1.0655 -> 216,444 | E213: =E212*1.0655 -> 198,568
A214: 6인 | B214: ='3.소득기준금액계산'!I61 -> 6,296,000 | C214: =VLOOKUP($G214,'2.사업팀제공'!$A:$D,2,FALSE) -> 190,523 | D214: =VLOOKUP($G214,'2.사업팀제공'!$A:$D,3,FALSE) -> 211,470 | E214: =VLOOKUP($G214,'2.사업팀제공'!$A:$D,4,FALSE) -> 195,047 | G214: =MIN(IF('2.사업팀제공'!$A$6:$A$205>='1.사업팀제공'!B214:B214,'2.사업팀제공'!$A$6:$A$205,"")) -> 6,361,375
C215: =C214*1.0655 -> 203,002 | D215: =D214*1.0655 -> 225,321 | E215: =E214*1.0655 -> 207,823
A216: 7인 | B216: ='3.소득기준금액계산'!J61 -> 6,543,000 | C216: =VLOOKUP($G216,'2.사업팀제공'!$A:$D,2,FALSE) -> 200,021 | D216: =VLOOKUP($G216,'2.사업팀제공'!$A:$D,3,FALSE) -> 221,111 | E216: =VLOOKUP($G216,'2.사업팀제공'!$A:$D,4,FALSE) -> 205,656 | G216: =MIN(IF('2.사업팀제공'!$A$6:$A$205>='1.사업팀제공'!B216:B216,'2.사업팀제공'!$A$6:$A$205,"")) -> 6,678,504
C217: =C216*1.0655 -> 213,122 | D217: =D216*1.0655 -> 235,594 | E217: =E216*1.0655 -> 219,126
A218: 8인 | B218: ='3.소득기준금액계산'!K61 -> 6,789,000 | C218: =VLOOKUP($G218,'2.사업팀제공'!$A:$D,2,FALSE) -> 205,656 | D218: =VLOOKUP($G218,'2.사업팀제공'!$A:$D,3,FALSE) -> 226,542 | E218: =VLOOKUP($G218,'2.사업팀제공'!$A:$D,4,FALSE) -> 211,711 | G218: =MIN(IF('2.사업팀제공'!$A$6:$A$205>='1.사업팀제공'!B218:B218,'2.사업팀제공'!$A$6:$A$205,"")) -> 6,866,661
C219: =C218*1.0655 -> 219,126 | D219: =D218*1.0655 -> 241,381 | E219: =E218*1.0655 -> 225,578
A220: 9인 | B220: ='3.소득기준금액계산'!L61 -> 7,036,000 | C220: =VLOOKUP($G220,'2.사업팀제공'!$A:$D,2,FALSE) -> 211,711 | D220: =VLOOKUP($G220,'2.사업팀제공'!$A:$D,3,FALSE) -> 232,429 | E220: =VLOOKUP($G220,'2.사업팀제공'!$A:$D,4,FALSE) -> 218,647 | G220: =MIN(IF('2.사업팀제공'!$A$6:$A$205>='1.사업팀제공'!B220:B220,'2.사업팀제공'!$A$6:$A$205,"")) -> 7,068,805
C221: =C220*1.0655 -> 225,578 | D221: =D220*1.0655 -> 247,653 | E221: =E220*1.0655 -> 232,968
A222: 10인 | B222: ='3.소득기준금액계산'!M61 -> 7,283,000 | C222: =VLOOKUP($G222,'2.사업팀제공'!$A:$D,2,FALSE) -> 218,647 | D222: =VLOOKUP($G222,'2.사업팀제공'!$A:$D,3,FALSE) -> 238,939 | E222: =VLOOKUP($G222,'2.사업팀제공'!$A:$D,4,FALSE) -> 226,482 | G222: =MIN(IF('2.사업팀제공'!$A$6:$A$205>='1.사업팀제공'!B222:B222,'2.사업팀제공'!$A$6:$A$205,"")) -> 7,300,417
C223: =C222*1.0655 -> 232,968 | D223: =D222*1.0655 -> 254,590 | E223: =E222*1.0655 -> 241,317
A228: 2014년도 기준(전국가구평균소득 130%)
A230: 가구원수 | B230: 소득기준 | C230: 건강보험료 본인부담금 | G230: 소득액(원)
C231: 직장가입자 | D231: 지역가입자 | E231: 혼합
A232: 1인 | B232: ='3.소득기준금액계산'!D67 -> 1,999,000 | C232: =VLOOKUP($G232,'2.사업팀제공'!$A:$D,2,FALSE) -> 59,893 | D232: =VLOOKUP($G232,'2.사업팀제공'!$A:$D,3,FALSE) -> 49,383 | E232: =VLOOKUP($G232,'2.사업팀제공'!$A:$D,4,FALSE) -> 59,900 | G232: =MIN(IF('2.사업팀제공'!$A$6:$A$205>='1.사업팀제공'!B232:B232,'2.사업팀제공'!$A$6:$A$205,"")) -> 1,999,764
C233: =C232*1.0655 -> 63,816 | D233: =D232*1.0655 -> 52,618 | E233: =E232*1.0655 -> 63,823
A234: 2인 | B234: ='3.소득기준금액계산'!E67 -> 3,785,000 | C234: =VLOOKUP($G234,'2.사업팀제공'!$A:$D,2,FALSE) -> 113,548 | D234: =VLOOKUP($G234,'2.사업팀제공'!$A:$D,3,FALSE) -> 129,345 | E234: =VLOOKUP($G234,'2.사업팀제공'!$A:$D,4,FALSE) -> 115,131 | G234: =MIN(IF('2.사업팀제공'!$A$6:$A$205>='1.사업팀제공'!B234:B234,'2.사업팀제공'!$A$6:$A$205,"")) -> 3,791,237
C235: =C234*1.0655 -> 120,985 | D235: =D234*1.0655 -> 137,817 | E235: =E234*1.0655 -> 122,672
A236: 3인 | B236: ='3.소득기준금액계산'!F67 -> 5,566,000 | C236: =VLOOKUP($G236,'2.사업팀제공'!$A:$D,2,FALSE) -> 169,320 | D236: =VLOOKUP($G236,'2.사업팀제공'!$A:$D,3,FALSE) -> 188,937 | E236: =VLOOKUP($G236,'2.사업팀제공'!$A:$D,4,FALSE) -> 172,378 | G236: =MIN(IF('2.사업팀제공'!$A$6:$A$205>='1.사업팀제공'!B236:B236,'2.사업팀제공'!$A$6:$A$205,"")) -> 5,653,408
C237: =C236*1.0655 -> 180,410 | D237: =D236*1.0655 -> 201,312 | E237: =E236*1.0655 -> 183,669
A238: 4인 | B238: ='3.소득기준금액계산'!G67 -> 6,286,000 | C238: =VLOOKUP($G238,'2.사업팀제공'!$A:$D,2,FALSE) -> 190,523 | D238: =VLOOKUP($G238,'2.사업팀제공'!$A:$D,3,FALSE) -> 211,470 | E238: =VLOOKUP($G238,'2.사업팀제공'!$A:$D,4,FALSE) -> 195,047 | G238: =MIN(IF('2.사업팀제공'!$A$6:$A$205>='1.사업팀제공'!B238:B238,'2.사업팀제공'!$A$6:$A$205,"")) -> 6,361,375
C239: =C238*1.0655 -> 203,002 | D239: =D238*1.0655 -> 225,321 | E239: =E238*1.0655 -> 207,823
A240: 5인 | B240: ='3.소득기준금액계산'!H67 -> 6,554,000 | C240: =VLOOKUP($G240,'2.사업팀제공'!$A:$D,2,FALSE) -> 200,021 | D240: =VLOOKUP($G240,'2.사업팀제공'!$A:$D,3,FALSE) -> 221,111 | E240: =VLOOKUP($G240,'2.사업팀제공'!$A:$D,4,FALSE) -> 205,656 | G240: =MIN(IF('2.사업팀제공'!$A$6:$A$205>='1.사업팀제공'!B240:B240,'2.사업팀제공'!$A$6:$A$205,"")) -> 6,678,504
C241: =C240*1.0655 -> 213,122 | D241: =D240*1.0655 -> 235,594 | E241: =E240*1.0655 -> 219,126
A242: 6인 | B242: ='3.소득기준금액계산'!I67 -> 6,821,000 | C242: =VLOOKUP($G242,'2.사업팀제공'!$A:$D,2,FALSE) -> 205,656 | D242: =VLOOKUP($G242,'2.사업팀제공'!$A:$D,3,FALSE) -> 226,542 | E242: =VLOOKUP($G242,'2.사업팀제공'!$A:$D,4,FALSE) -> 211,711 | G242: =MIN(IF('2.사업팀제공'!$A$6:$A$205>='1.사업팀제공'!B242:B242,'2.사업팀제공'!$A$6:$A$205,"")) -> 6,866,661
C243: =C242*1.0655 -> 219,126 | D243: =D242*1.0655 -> 241,381 | E243: =E242*1.0655 -> 225,578
... 424 more rows

Sheet 2.사업팀제공
A1: *산정표는 소득액(원)이 높은가격 순으로 정렬할것 | E1: *산정표는 소숫점이 없어야 가능함(제거방법 : 전체 복사 > 메모장에 붙여넣기 > 메모장 전체복사 > 엑셀에 붙여넣기)
A2: 건강보험료 산정기준표(2014년) | H2: 건강보험료 산정기준표(2013년) 참고
A4: 소득액(원) (초과~이하) | B4: 건강보험료 본인부담금(원) | F4: 연번 | H4: 소득액(원) (초과~이하) | I4: 건강보험료 본인부담금(원)
B5: 직장 | C5: 지역 | D5: 혼합 | I5: 직장 | J5: 지역 | K5: 혼합
A6: 30,381,623 | B6: 909,930 | C6: 590,327 | D6: - | F6: 200 | H6: 30,066,434 | I6: 885,456 | J6: 563,405 | K6: -
A7: 13,765,603 | B7: 412,280 | C7: 388,559 | D7: 909,930 | F7: 199 | H7: 13,452,592 | I7: 396,179 | J7: 376,995 | K7: 885,456
A8: 11,252,085 | B8: 337,000 | C8: 347,056 | D8: 412,280 | F8: 198 | H8: 11,003,947 | I8: 324,066 | J8: 337,072 | K8: 396,179
A9: 10,115,660 | B9: 302,964 | C9: 320,869 | D9: 337,000 | F9: 197 | H9: 9,906,907 | I9: 291,758 | J9: 311,644 | K9: 324,066
A10: 9,446,851 | B10: 282,933 | C10: 301,713 | D10: 302,964 | F10: 196 | H10: 9,226,680 | I10: 271,726 | J10: 293,097 | K10: 291,758
A11: 8,926,273 | B11: 267,342 | C11: 286,630 | D11: 282,933 | F11: 195 | H11: 8,709,334 | I11: 256,490 | J11: 278,503 | K11: 271,726
A12: 8,503,424 | B12: 254,678 | C12: 274,177 | D12: 267,342 | F12: 194 | H12: 8,299,404 | I12: 244,417 | J12: 266,392 | K12: 256,490
A13: 8,149,781 | B13: 244,086 | C13: 263,557 | D13: 254,678 | F13: 193 | H13: 7,957,594 | I13: 234,351 | J13: 256,108 | K13: 244,417
A14: 7,848,702 | B14: 235,069 | C14: 254,344 | D14: 244,086 | F14: 192 | H14: 7,654,348 | I14: 225,421 | J14: 247,200 | K14: 234,351
A15: 7,562,017 | B15: 226,482 | C15: 246,237 | D15: 235,069 | F15: 191 | H15: 7,380,934 | I15: 217,369 | J15: 239,253 | K15: 225,421
A16: 7,300,417 | B16: 218,647 | C16: 238,939 | D16: 226,482 | F16: 190 | H16: 7,128,611 | I16: 209,938 | J16: 232,302 | K16: 217,369
A17: 7,068,805 | B17: 211,711 | C17: 232,429 | D17: 218,647 | F17: 189 | H17: 6,909,484 | I17: 203,484 | J17: 225,935 | K17: 209,938
A18: 6,866,661 | B18: 205,656 | C18: 226,542 | D18: 211,711 | F18: 188 | H18: 6,703,395 | I18: 197,415 | J18: 220,174 | K18: 203,484
A19: 6,678,504 | B19: 200,021 | C19: 221,111 | D19: 205,656 | F19: 187 | H19: 6,517,591 | I19: 191,943 | J19: 214,961 | K19: 197,415
A20: 6,512,422 | B20: 195,047 | C20: 216,117 | D20: 200,021 | F20: 186 | H20: 6,351,726 | I20: 187,058 | J20: 210,152 | K20: 191,943
A21: 6,361,375 | B21: 190,523 | C21: 211,470 | D21: 195,047 | F21: 185 | H21: 6,204,037 | I21: 182,709 | J21: 205,709 | K21: 187,058
A22: 6,222,410 | B22: 186,361 | C22: 207,173 | D22: 190,523 | F22: 184 | H22: 6,066,051 | I22: 178,645 | J22: 201,519 | K22: 182,709
A23: 6,091,302 | B23: 182,435 | C23: 203,138 | D23: 186,361 | F23: 183 | H23: 5,948,840 | I23: 175,193 | J23: 197,576 | K23: 178,645
A24: 5,974,066 | B24: 178,923 | C24: 199,293 | D24: 182,435 | F24: 182 | H24: 5,830,104 | I24: 171,697 | J24: 193,857 | K24: 175,193
A25: 5,862,677 | B25: 175,587 | C25: 195,664 | D25: 178,923 | F25: 181 | H25: 5,717,280 | I25: 168,374 | J25: 190,350 | K25: 171,697
A26: 5,755,521 | B26: 172,378 | C26: 192,218 | D26: 175,587 | F26: 180 | H26: 5,610,636 | I26: 165,233 | J26: 186,972 | K26: 168,374
A27: 5,653,408 | B27: 169,320 | C27: 188,937 | D27: 172,378 | F27: 179 | H27: 5,509,142 | I27: 162,244 | J27: 183,836 | K27: 165,233
A28: 5,551,270 | B28: 166,261 | C28: 185,715 | D28: 169,320 | F28: 178 | H28: 5,413,324 | I28: 159,422 | J28: 180,805 | K28: 162,244
A29: 5,455,831 | B29: 163,402 | C29: 182,758 | D29: 166,261 | F29: 177 | H29: 5,320,352 | I29: 156,684 | J29: 177,819 | K29: 159,422
A30: 5,364,174 | B30: 160,657 | C30: 179,762 | D30: 163,402 | F30: 176 | H30: 5,229,126 | I30: 153,998 | J30: 175,097 | K30: 156,684
A31: 5,271,449 | B31: 157,880 | C31: 177,007 | D31: 160,657 | F31: 175 | H31: 5,139,576 | I31: 151,361 | J31: 172,301 | K31: 153,998
A32: 5,180,742 | B32: 155,163 | C32: 174,303 | D32: 157,880 | F32: 174 | H32: 5,051,319 | I32: 148,761 | J32: 169,689 | K32: 151,361
A33: 5,092,130 | B33: 152,509 | C33: 171,663 | D33: 155,163 | F33: 173 | H33: 4,981,604 | I33: 146,708 | J33: 167,132 | K33: 148,761
A34: 5,012,369 | B34: 150,120 | C34: 169,126 | D34: 152,509 | F34: 172 | H34: 4,903,715 | I34: 144,414 | J34: 164,716 | K34: 146,708
A35: 4,942,544 | B35: 148,029 | C35: 166,711 | D35: 150,120 | F35: 171 | H35: 4,823,596 | I35: 142,055 | J35: 162,244 | K35: 144,414
A36: 4,866,360 | B36: 145,747 | C36: 164,220 | D36: 148,029 | F36: 170 | H36: 4,741,204 | I36: 139,628 | J36: 160,012 | K36: 142,055
A37: 4,786,459 | B37: 143,354 | C37: 161,920 | D37: 145,747 | F37: 169 | H37: 4,671,997 | I37: 137,590 | J37: 157,615 | K37: 139,628
A38: 4,711,133 | B38: 141,098 | C38: 159,498 | D38: 143,354 | F38: 168 | H38: 4,595,511 | I38: 135,338 | J38: 155,454 | K38: 137,590
A39: 4,639,469 | B39: 138,952 | C39: 157,342 | D39: 141,098 | F39: 167 | H39: 4,521,265 | I39: 133,151 | J39: 153,214 | K39: 135,338
A40: 4,568,031 | B40: 136,813 | C40: 154,998 | D40: 138,952 | F40: 166 | H40: 4,452,668 | I40: 131,131 | J40: 151,059 | K40: 133,151
A41: 4,496,873 | B41: 134,681 | C41: 152,942 | D41: 136,813 | F41: 165 | H41: 4,381,194 | I41: 129,026 | J41: 148,976 | K41: 131,131
A42: 4,430,949 | B42: 132,707 | C42: 150,713 | D42: 134,681 | F42: 164 | H42: 4,312,067 | I42: 126,990 | J42: 146,845 | K42: 129,026
A43: 4,364,393 | B43: 130,714 | C43: 148,703 | D43: 132,707 | F43: 163 | H43: 4,243,865 | I43: 124,982 | J43: 144,885 | K43: 126,990
A44: 4,297,149 | B44: 128,700 | C44: 146,611 | D44: 130,714 | F44: 162 | H44: 4,181,822 | I44: 123,155 | J44: 142,806 | K44: 124,982
A45: 4,232,295 | B45: 126,757 | C45: 144,592 | D45: 128,700 | F45: 161 | H45: 4,117,698 | I45: 121,266 | J45: 140,899 | K45: 123,155
A46: 4,173,210 | B46: 124,988 | C46: 142,640 | D46: 126,757 | F46: 160 | H46: 4,058,690 | I46: 119,528 | J46: 138,956 | K46: 121,266
A47: 4,112,280 | B47: 123,163 | C47: 140,653 | D47: 124,988 | F47: 159 | H47: 4,003,741 | I47: 117,910 | J47: 137,030 | K47: 119,528
A48: 4,053,530 | B48: 121,403 | C48: 138,704 | D48: 123,163 | F48: 158 | H48: 3,951,644 | I48: 116,376 | J48: 135,175 | K48: 117,910
A49: 4,001,591 | B49: 119,848 | C49: 136,840 | D49: 121,403 | F49: 157 | H49: 3,896,739 | I49: 114,759 | J49: 133,252 | K49: 116,376
A50: 3,950,935 | B50: 118,331 | C50: 134,891 | D50: 119,848 | F50: 156 | H50: 3,842,948 | I50: 113,175 | J50: 131,450 | K50: 114,759
A51: 3,896,263 | B51: 116,693 | C51: 133,090 | D51: 118,331 | F51: 155 | H51: 3,789,157 | I51: 111,591 | J51: 129,590 | K51: 113,175
A52: 3,844,106 | B52: 115,131 | C52: 131,228 | D52: 116,693 | F52: 154 | H52: 3,738,380 | I52: 110,095 | J52: 127,723 | K52: 111,591
A53: 3,791,237 | B53: 113,548 | C53: 129,345 | D53: 115,131 | F53: 153 | H53: 3,690,564 | I53: 108,687 | J53: 125,921 | K53: 110,095
A54: 3,739,836 | B54: 112,008 | C54: 127,535 | D54: 113,548 | F54: 152 | H54: 3,641,099 | I54: 107,230 | J54: 124,080 | K54: 108,687
A55: 3,692,830 | B55: 110,600 | C55: 125,628 | D55: 112,008 | F55: 151 | H55: 3,592,059 | I55: 105,786 | J55: 122,270 | K55: 107,230
A56: 3,644,512 | B56: 109,153 | C56: 123,800 | D56: 110,600 | F56: 150 | H56: 3,542,706 | I56: 104,333 | J56: 120,506 | K56: 105,786
A57: 3,597,016 | B57: 107,731 | C57: 122,012 | D57: 109,153 | F57: 149 | H57: 3,502,250 | I57: 103,141 | J57: 118,683 | K57: 104,333
A58: 3,550,502 | B58: 106,338 | C58: 120,187 | D58: 107,731 | F58: 148 | H58: 3,463,430 | I58: 101,998 | J58: 116,970 | K58: 103,141
A59: 3,506,933 | B59: 105,033 | C59: 118,455 | D59: 106,338 | F59: 147 | H59: 3,416,398 | I59: 100,613 | J59: 115,173 | K59: 101,998
A60: 3,471,528 | B60: 103,972 | C60: 116,683 | D60: 105,033 | F60: 146 | H60: 3,377,114 | I60: 99,456 | J60: 113,519 | K60: 100,613
A61: 3,425,959 | B61: 102,607 | C61: 114,979 | D61: 103,972 | F61: 145 | H61: 3,333,924 | I61: 98,184 | J61: 111,830 | K61: 99,456
A62: 3,387,221 | B62: 101,447 | C62: 113,256 | D62: 102,607 | F62: 144 | H62: 3,294,962 | I62: 97,037 | J62: 110,203 | K62: 98,184
A63: 3,345,490 | B63: 100,197 | C63: 111,625 | D63: 101,447 | F63: 143 | H63: 3,254,082 | I63: 95,833 | J63: 108,568 | K63: 97,037
A64: 3,306,785 | B64: 99,038 | C64: 109,994 | D64: 100,197 | F64: 142 | H64: 3,215,062 | I64: 94,684 | J64: 106,918 | K64: 95,833
A65: 3,267,318 | B65: 97,856 | C65: 108,274 | D65: 99,038 | F65: 141 | H65: 3,181,969 | I65: 93,709 | J65: 105,355 | K65: 94,684
A66: 3,228,881 | B66: 96,705 | C66: 106,726 | D66: 97,856 | F66: 140 | H66: 3,141,890 | I66: 92,529 | J66: 103,802 | K66: 93,709
A67: 3,194,032 | B67: 95,661 | C67: 105,129 | D67: 96,705 | F67: 139 | H67: 3,102,800 | I67: 91,377 | J67: 102,208 | K67: 92,529
A68: 3,157,015 | B68: 94,553 | C68: 103,561 | D68: 95,661 | F68: 138 | H68: 3,066,317 | I68: 90,303 | J68: 100,691 | K68: 91,377
A69: 3,117,028 | B69: 93,355 | C69: 101,962 | D69: 94,553 | F69: 137 | H69: 3,026,659 | I69: 89,135 | J69: 99,229 | K69: 90,303
A70: 3,081,739 | B70: 92,298 | C70: 100,511 | D70: 93,355 | F70: 136 | H70: 3,000,491 | I70: 88,364 | J70: 97,727 | K70: 89,135
A71: 3,043,368 | B71: 91,149 | C71: 99,031 | D71: 92,298 | F71: 135 | H71: 2,984,022 | I71: 87,879 | J71: 96,231 | K71: 88,364
A72: 3,006,985 | B72: 90,059 | C72: 97,485 | D72: 91,149 | F72: 134 | H72: 2,945,361 | I72: 86,741 | J72: 94,838 | K72: 87,879
A73: 2,996,127 | B73: 89,734 | C73: 96,103 | D73: 90,059 | F73: 133 | H73: 2,909,688 | I73: 85,690 | J73: 93,422 | K73: 86,741
A74: 2,962,877 | B74: 88,738 | C74: 94,627 | D74: 89,734 | F74: 132 | H74: 2,883,751 | I74: 84,926 | J74: 91,922 | K74: 85,690
A75: 2,925,016 | B75: 87,604 | C75: 93,160 | D75: 88,738 | F75: 131 | H75: 2,846,928 | I75: 83,842 | J75: 90,471 | K75: 84,926
A76: 2,897,240 | B76: 86,772 | C76: 91,674 | D76: 87,604 | F76: 130 | H76: 2,812,205 | I76: 82,819 | J76: 89,204 | K76: 83,842
A77: 2,864,721 | B77: 85,798 | C77: 90,364 | D77: 86,772 | F77: 129 | H77: 2,786,579 | I77: 82,065 | J77: 87,779 | K77: 82,819
A78: 2,829,665 | B78: 84,748 | C78: 88,973 | D78: 85,798 | F78: 128 | H78: 2,752,447 | I78: 81,060 | J78: 86,454 | K78: 82,065
A79: 2,800,245 | B79: 83,867 | C79: 87,592 | D79: 84,748 | F79: 127 | H79: 2,719,832 | I79: 80,099 | J79: 85,215 | K79: 81,060
A80: 2,770,592 | B80: 82,979 | C80: 86,395 | D80: 83,867 | F80: 126 | H80: 2,696,897 | I80: 79,424 | J80: 83,907 | K80: 80,099
A81: 2,738,962 | B81: 82,032 | C81: 85,032 | D81: 82,979 | F81: 125 | H81: 2,669,760 | I81: 78,624 | J81: 82,720 | K81: 79,424
A82: 2,706,757 | B82: 81,067 | C82: 83,809 | D82: 82,032 | F82: 124 | H82: 2,638,719 | I82: 77,710 | J82: 81,424 | K82: 78,624
A83: 2,688,097 | B83: 80,509 | C83: 82,656 | D83: 81,067 | F83: 123 | H83: 2,607,618 | I83: 76,794 | J83: 80,249 | K83: 77,710
A84: 2,656,588 | B84: 79,565 | C84: 82,082 | D84: 80,509 | F84: 122 | H84: 2,581,974 | I84: 76,039 | J84: 79,085 | K84: 76,794
A85: 2,624,208 | B85: 78,595 | C85: 80,839 | D85: 79,565 | F85: 121 | H85: 2,550,167 | I85: 75,102 | J85: 78,372 | K85: 76,039
A86: 2,596,687 | B86: 77,771 | C86: 79,666 | D86: 78,595 | F86: 120 | H86: 2,517,029 | I86: 74,127 | J86: 77,191 | K86: 75,102
A87: 2,567,920 | B87: 76,909 | C87: 78,386 | D87: 77,771 | F87: 119 | H87: 2,500,003 | I87: 73,625 | J87: 76,049 | K87: 74,127
A88: 2,535,908 | B88: 75,950 | C88: 77,176 | D88: 76,909 | F88: 118 | H88: 2,491,481 | I88: 73,374 | J88: 74,991 | K88: 73,625
A89: 2,505,862 | B89: 75,051 | C89: 76,117 | D89: 75,950 | F89: 117 | H89: 2,459,900 | I89: 72,444 | J89: 73,868 | K89: 73,374
A90: 2,499,875 | B90: 74,871 | C90: 74,948 | D90: 75,051 | F90: 116 | H90: 2,428,995 | I90: 71,534 | J90: 72,776 | K90: 72,444
A91: 2,479,675 | B91: 74,266 | C91: 73,837 | D91: 74,871 | F91: 115 | H91: 2,402,788 | I91: 70,762 | J91: 71,421 | K91: 71,534
A92: 2,448,114 | B92: 73,321 | C92: 72,404 | D92: 74,266 | F92: 114 | H92: 2,387,225 | I92: 70,304 | J92: 70,474 | K92: 70,762
A93: 2,417,470 | B93: 72,403 | C93: 71,536 | D93: 73,321 | F93: 113 | H93: 2,356,042 | I93: 69,385 | J93: 69,324 | K93: 70,304
A94: 2,399,405 | B94: 71,862 | C94: 70,282 | D94: 72,403 | F94: 112 | H94: 2,327,498 | I94: 68,545 | J94: 68,235 | K94: 69,385
A95: 2,376,880 | B95: 71,188 | C95: 69,136 | D95: 71,862 | F95: 111 | H95: 2,302,927 | I95: 67,821 | J95: 66,796 | K95: 68,545
A96: 2,347,059 | B96: 70,294 | C96: 67,703 | D96: 71,188 | F96: 110 | H96: 2,286,706 | I96: 67,344 | J96: 65,803 | K96: 67,821
A97: 2,318,995 | B97: 69,454 | C97: 66,705 | D97: 70,294 | F97: 109 | H97: 2,256,901 | I97: 66,466 | J97: 64,742 | K97: 67,344
A98: 2,299,647 | B98: 68,874 | C98: 65,575 | D98: 69,454 | F98: 108 | H98: 2,231,075 | I98: 65,705 | J98: 63,519 | K98: 66,466
A99: 2,277,858 | B99: 68,222 | C99: 64,218 | D99: 68,874 | F99: 107 | H99: 2,204,877 | I99: 64,934 | J99: 62,229 | K99: 65,705
A100: 2,249,084 | B100: 67,360 | C100: 63,038 | D100: 68,222 | F100: 106 | H100: 2,196,578 | I100: 64,689 | J100: 61,060 | K100: 64,934
A101: 2,222,333 | B101: 66,559 | C101: 61,721 | D101: 67,360 | F101: 105 | H101: 2,170,963 | I101: 63,935 | J101: 59,954 | K101: 64,689
A102: 2,201,244 | B102: 65,927 | C102: 60,678 | D102: 66,559 | F102: 104 | H102: 2,145,289 | I102: 63,179 | J102: 58,740 | K102: 63,935
A103: 2,191,994 | B103: 65,650 | C103: 59,374 | D103: 65,927 | F103: 103 | H103: 2,117,160 | I103: 62,350 | J103: 57,800 | K103: 63,179
A104: 2,164,216 | B104: 64,818 | C104: 58,462 | D104: 65,650 | F104: 102 | H104: 2,099,112 | I104: 61,819 | J104: 56,699 | K104: 62,350
A105: 2,139,783 | B105: 64,087 | C105: 57,308 | D105: 64,818 | F105: 101 | H105: 2,079,597 | I105: 61,244 | J105: 55,637 | K105: 61,819
A106: 2,111,042 | B106: 63,226 | C106: 56,203 | D106: 64,087 | F106: 100 | H106: 2,054,867 | I106: 60,516 | J106: 54,472 | K106: 61,244
A107: 2,096,392 | B107: 62,787 | C107: 55,042 | D107: 63,226 | F107: 99 | H107: 2,028,095 | I107: 59,727 | J107: 53,627 | K107: 60,516
A108: 2,074,162 | B108: 62,121 | C108: 54,183 | D108: 62,787 | F108: 98 | H108: 2,003,430 | I108: 59,001 | J108: 52,589 | K108: 59,727
A109: 2,049,147 | B109: 61,372 | C109: 53,111 | D109: 62,121 | F109: 97 | H109: 2,000,000 | I109: 58,900 | J109: 51,640 | K109: 59,001
A110: 2,022,517 | B110: 60,574 | C110: 52,181 | D110: 61,372 | F110: 96 | H110: 1,999,903 | I110: 58,897 | J110: 50,695 | K110: 58,900
A111: 2,001,326 | B111: 59,940 | C111: 51,204 | D111: 60,574 | F111: 95 | H111: 1,984,722 | I111: 58,450 | J111: 49,809 | K111: 58,897
A112: 2,000,000 | B112: 59,900 | C112: 50,359 | D112: 59,940 | F112: 94 | H112: 1,958,103 | I112: 57,666 | J112: 48,989 | K112: 58,450
A113: 1,999,764 | B113: 59,893 | C113: 49,383 | D113: 59,900 | F113: 93 | H113: 1,933,240 | I113: 56,934 | J113: 48,033 | K113: 57,666
A114: 1,982,457 | B114: 59,375 | C114: 48,466 | D114: 59,893 | F114: 92 | H114: 1,908,276 | I114: 56,199 | J114: 47,104 | K114: 56,934
A115: 1,956,276 | B115: 58,590 | C115: 47,492 | D115: 59,375 | F115: 91 | H115: 1,900,000 | I115: 55,955 | J115: 46,225 | K115: 56,199
A116: 1,930,811 | B116: 57,828 | C116: 46,489 | D116: 58,590 | F116: 90 | H116: 1,885,427 | I116: 55,526 | J116: 45,249 | K116: 55,955
A117: 1,906,681 | B117: 57,105 | C117: 45,627 | D117: 57,828 | F117: 89 | H117: 1,859,839 | I117: 54,772 | J117: 44,453 | K117: 55,526
A118: 1,900,000 | B118: 56,905 | C118: 44,726 | D118: 57,105 | F118: 88 | H118: 1,838,744 | I118: 54,151 | J118: 43,572 | K118: 54,772
A119: 1,885,458 | B119: 56,469 | C119: 43,797 | D119: 56,905 | F119: 87 | H119: 1,815,693 | I119: 53,472 | J119: 42,665 | K119: 54,151
A120: 1,860,229 | B120: 55,714 | C120: 43,030 | D120: 56,469 | F120: 86 | H120: 1,800,113 | I120: 53,013 | J120: 42,090 | K120: 53,472
A121: 1,839,724 | B121: 55,100 | C121: 42,223 | D121: 55,714 | F121: 85 | H121: 1,797,753 | I121: 52,944 | J121: 41,084 | K121: 53,013
A122: 1,816,902 | B122: 54,416 | C122: 41,342 | D122: 55,100 | F122: 84 | H122: 1,776,126 | I122: 52,307 | J122: 40,315 | K122: 52,944
A123: 1,800,307 | B123: 53,919 | C123: 40,592 | D123: 54,416 | F123: 83 | H123: 1,753,549 | I123: 51,642 | J123: 39,459 | K123: 52,307
A124: 1,798,687 | B124: 53,871 | C124: 39,647 | D124: 53,919 | F124: 82 | H124: 1,735,505 | I124: 51,111 | J124: 38,748 | K124: 51,642
A125: 1,778,319 | B125: 53,261 | C125: 38,986 | D125: 53,871 | F125: 81 | H125: 1,711,680 | I125: 50,409 | J125: 37,976 | K125: 51,111
A126: 1,755,011 | B126: 52,563 | C126: 37,994 | D126: 53,261 | F126: 80 | H126: 1,700,000 | I126: 50,065 | J126: 36,985 | K126: 50,409
A127: 1,737,596 | B127: 52,041 | C127: 37,208 | D127: 52,563 | F127: 79 | H127: 1,697,663 | I127: 49,996 | J127: 36,330 | K127: 50,065
A128: 1,714,603 | B128: 51,352 | C128: 36,722 | D128: 52,041 | F128: 78 | H128: 1,677,217 | I128: 49,394 | J128: 35,929 | K128: 49,996
A129: 1,700,056 | B129: 50,917 | C129: 35,872 | D129: 51,352 | F129: 77 | H129: 1,657,029 | I129: 48,800 | J129: 34,960 | K129: 49,394
A130: 1,699,177 | B130: 50,890 | C130: 35,024 | D130: 50,917 | F130: 76 | H130: 1,640,810 | I130: 48,322 | J130: 34,229 | K130: 48,800
A131: 1,681,105 | B131: 50,349 | C131: 34,385 | D131: 50,890 | F131: 75 | H131: 1,617,837 | I131: 47,645 | J131: 33,563 | K131: 48,322
A132: 1,659,960 | B132: 49,716 | C132: 33,377 | D132: 50,349 | F132: 74 | H132: 1,600,690 | I132: 47,140 | J132: 32,533 | K132: 47,645
A133: 1,643,981 | B133: 49,237 | C133: 32,573 | D133: 49,716 | F133: 73 | H133: 1,598,354 | I133: 47,072 | J133: 31,873 | K133: 47,140
A134: 1,621,774 | B134: 48,572 | C134: 32,151 | D134: 49,237 | F134: 72 | H134: 1,579,398 | I134: 46,513 | J134: 31,608 | K134: 47,072
A135: 1,602,174 | B135: 47,985 | C135: 31,807 | D135: 48,572 | F135: 71 | H135: 1,558,929 | I135: 45,910 | J135: 30,994 | K135: 46,513
A136: 1,599,605 | B136: 47,908 | C136: 30,823 | D136: 47,985 | F136: 70 | H136: 1,541,768 | I136: 45,405 | J136: 30,169 | K136: 45,910
A137: 1,584,036 | B137: 47,442 | C137: 30,256 | D137: 47,908 | F137: 69 | H137: 1,520,874 | I137: 44,790 | J137: 29,657 | K137: 45,405
A138: 1,563,833 | B138: 46,837 | C138: 29,858 | D138: 47,442 | F138: 68 | H138: 1,501,927 | I138: 44,232 | J138: 29,195 | K138: 44,790
A139: 1,546,020 | B139: 46,303 | C139: 28,954 | D139: 46,837 | F139: 67 | H139: 1,500,000 | I139: 44,175 | J139: 28,318 | K139: 44,232
A140: 1,526,622 | B140: 45,722 | C140: 28,402 | D140: 46,303 | F140: 66 | H140: 1,500,000 | I140: 44,175 | J140: 27,781 | K140: 44,175
A141: 1,506,026 | B141: 45,105 | C141: 27,310 | D141: 45,722 | F141: 65 | H141: 1,500,000 | I141: 44,175 | J141: 26,685 | K141: 44,175
A142: 1,500,000 | B142: 44,925 | C142: 26,519 | D142: 45,105 | F142: 64 | H142: 1,491,746 | I142: 43,932 | J142: 26,005 | K142: 44,175
A143: 1,500,000 | B143: 44,925 | C143: 26,181 | D143: 44,925 | F143: 63 | H143: 1,469,871 | I143: 43,288 | J143: 25,735 | K143: 43,932
A144: 1,500,000 | B144: 44,925 | C144: 26,167 | D144: 44,925 | F144: 62 | H144: 1,450,185 | I144: 42,708 | J144: 25,735 | K144: 43,288
A145: 1,496,531 | B145: 44,821 | C145: 26,013 | D145: 44,925 | F145: 61 | H145: 1,432,270 | I145: 42,180 | J145: 25,481 | K145: 42,708
A146: 1,475,672 | B146: 44,196 | C146: 25,248 | D146: 44,821 | F146: 60 | H146: 1,410,922 | I146: 41,552 | J146: 24,692 | K146: 42,180
A147: 1,454,747 | B147: 43,570 | C147: 24,479 | D147: 44,196 | F147: 59 | H147: 1,400,000 | I147: 41,230 | J147: 23,975 | K147: 41,552
A148: 1,437,975 | B148: 43,067 | C148: 24,066 | D148: 43,570 | F148: 58 | H148: 1,400,000 | I148: 41,230 | J148: 23,663 | K148: 41,230
A149: 1,420,406 | B149: 42,541 | C149: 24,052 | D149: 43,067 | F149: 57 | H149: 1,394,057 | I149: 41,055 | J149: 23,663 | K149: 41,230
A150: 1,402,112 | B150: 41,993 | C150: 24,052 | D150: 42,541 | F150: 56 | H150: 1,375,602 | I150: 40,511 | J150: 23,602 | K150: 41,055
A151: 1,400,000 | B151: 41,930 | C151: 23,527 | D151: 41,993 | F151: 55 | H151: 1,354,749 | I151: 39,897 | J151: 22,833 | K151: 40,511
A152: 1,398,144 | B152: 41,874 | C152: 22,666 | D152: 41,930 | F152: 54 | H152: 1,340,593 | I152: 39,480 | J152: 22,178 | K152: 39,897
A153: 1,380,398 | B153: 41,343 | C153: 22,159 | D153: 41,874 | F153: 53 | H153: 1,319,498 | I153: 38,859 | J153: 21,709 | K153: 39,480
A154: 1,359,106 | B154: 40,705 | C154: 21,850 | D154: 41,343 | F154: 52 | H154: 1,301,975 | I154: 38,343 | J154: 21,292 | K154: 38,859
A155: 1,343,708 | B155: 40,244 | C155: 20,861 | D155: 40,705 | F155: 51 | H155: 1,300,000 | I155: 38,285 | J155: 20,368 | K155: 38,343
A156: 1,324,228 | B156: 39,661 | C156: 20,336 | D156: 40,244 | F156: 50 | H156: 1,298,450 | I156: 38,239 | J156: 19,883 | K156: 38,285
A157: 1,304,925 | B157: 39,083 | C157: 19,633 | D157: 39,661 | F157: 49 | H157: 1,281,117 | I157: 37,729 | J157: 19,057 | K157: 38,239
A158: 1,300,000 | B158: 38,935 | C158: 18,617 | D158: 39,083 | F158: 48 | H158: 1,259,630 | I158: 37,096 | J158: 18,205 | K158: 37,729
A159: 1,299,861 | B159: 38,931 | C159: 18,186 | D159: 38,935 | F159: 47 | H159: 1,246,789 | I159: 36,718 | J159: 17,845 | K159: 37,096
A160: 1,286,237 | B160: 38,523 | C160: 18,082 | D160: 38,931 | F160: 46 | H160: 1,227,515 | I160: 36,150 | J160: 17,790 | K160: 36,718
A161: 1,265,429 | B161: 37,900 | C161: 18,082 | D161: 38,523 | F161: 45 | H161: 1,205,930 | I161: 35,515 | J161: 17,790 | K161: 36,150
A162: 1,249,802 | B162: 37,432 | C162: 18,082 | D162: 37,900 | F162: 44 | H162: 1,200,000 | I162: 35,340 | J162: 17,790 | K162: 35,515
A163: 1,233,638 | B163: 36,947 | C163: 18,082 | D163: 37,432 | F163: 43 | H163: 1,200,000 | I163: 35,340 | J163: 17,790 | K163: 35,340
A164: 1,211,433 | B164: 36,282 | C164: 18,082 | D164: 36,947 | F164: 42 | H164: 1,200,000 | I164: 35,340 | J164: 17,790 | K164: 35,340
A165: 1,200,000 | B165: 35,940 | C165: 17,759 | D165: 36,282 | F165: 41 | H165: 1,199,327 | I165: 35,320 | J165: 17,419 | K165: 35,340
A166: 1,200,000 | B166: 35,940 | C166: 16,738 | D166: 35,940 | F166: 40 | H166: 1,183,610 | I166: 34,857 | J166: 16,434 | K166: 35,320
A167: 1,200,000 | B167: 35,940 | C167: 16,141 | D167: 35,940 | F167: 39 | H167: 1,161,331 | I167: 34,201 | J167: 15,853 | K167: 34,857
A168: 1,200,000 | B168: 35,940 | C168: 15,804 | D168: 35,940 | F168: 38 | H168: 1,145,893 | I168: 33,747 | J168: 15,545 | K168: 34,201
A169: 1,196,332 | B169: 35,830 | C169: 15,804 | D169: 35,940 | F169: 37 | H169: 1,125,266 | I169: 33,139 | J169: 15,545 | K169: 33,747
A170: 1,175,183 | B170: 35,197 | C170: 15,704 | D170: 35,830 | F170: 36 | H170: 1,103,694 | I170: 32,504 | J170: 15,458 | K170: 33,139
A171: 1,154,338 | B171: 34,572 | C171: 14,567 | D171: 35,197 | F171: 35 | H171: 1,100,000 | I171: 32,395 | J171: 14,369 | K171: 32,504
A172: 1,137,381 | B172: 34,065 | C172: 14,180 | D172: 34,572 | F172: 34 | H172: 1,100,000 | I172: 32,395 | J172: 13,967 | K172: 32,395
A173: 1,113,611 | B173: 33,353 | C173: 14,079 | D173: 34,065 | F173: 33 | H173: 1,087,774 | I173: 32,035 | J173: 13,870 | K173: 32,395
A174: 1,100,000 | B174: 32,945 | C174: 13,711 | D174: 33,353 | F174: 32 | H174: 1,064,387 | I174: 31,346 | J174: 13,494 | K174: 32,035
A175: 1,100,000 | B175: 32,945 | C175: 13,617 | D175: 32,945 | F175: 31 | H175: 1,048,895 | I175: 30,890 | J175: 13,458 | K175: 31,346
A176: 1,099,882 | B176: 32,941 | C176: 12,608 | D176: 32,945 | F176: 30 | H176: 1,036,209 | I176: 30,516 | J176: 12,504 | K176: 30,890
A177: 1,086,821 | B177: 32,550 | C177: 12,299 | D177: 32,941 | F177: 29 | H177: 1,017,643 | I177: 29,970 | J177: 12,101 | K177: 30,516
A178: 1,064,120 | B178: 31,870 | C178: 11,957 | D178: 32,550 | F178: 28 | H178: 1,000,917 | I178: 29,477 | J178: 11,790 | K178: 29,970
A179: 1,049,907 | B179: 31,445 | C179: 11,940 | D179: 31,870 | F179: 27 | H179: 1,000,000 | I179: 29,450 | J179: 11,745 | K179: 29,477
A180: 1,036,849 | B180: 31,054 | C180: 11,940 | D180: 31,445 | F180: 26 | H180: 1,000,000 | I180: 29,450 | J180: 11,745 | K180: 29,450
A181: 1,021,230 | B181: 30,586 | C181: 11,549 | D181: 31,054 | F181: 25 | H181: 1,000,000 | I181: 29,450 | J181: 11,411 | K181: 29,450
A182: 1,016,512 | B182: 30,445 | C182: 11,011 | D182: 30,586 | F182: 24 | H182: 1,000,000 | I182: 29,450 | J182: 10,881 | K182: 29,450
A183: 1,012,164 | B183: 30,314 | C183: 10,018 | D183: 30,445 | F183: 23 | H183: 1,000,000 | I183: 29,450 | J183: 9,942 | K183: 29,450
A184: 1,000,022 | B184: 29,951 | C184: 9,834 | D184: 30,314 | F184: 22 | H184: 992,143 | I184: 29,219 | J184: 9,672 | K184: 29,450
A185: 1,000,000 | B185: 29,950 | C185: 9,834 | D185: 29,951 | F185: 21 | H185: 980,068 | I185: 28,863 | J185: 9,672 | K185: 29,219
A186: 1,000,000 | B186: 29,950 | C186: 9,834 | D186: 29,950 | F186: 20 | H186: 971,608 | I186: 28,614 | J186: 9,672 | K186: 28,863
A187: 1,000,000 | B187: 29,950 | C187: 9,473 | D187: 29,950 | F187: 19 | H187: 959,027 | I187: 28,243 | J187: 9,341 | K187: 28,614
A188: 999,408 | B188: 29,932 | C188: 9,136 | D188: 29,950 | F188: 18 | H188: 954,911 | I188: 28,122 | J188: 9,032 | K188: 28,243
A189: 981,998 | B189: 29,411 | C189: 8,467 | D189: 29,932 | F189: 17 | H189: 945,382 | I189: 27,842 | J189: 8,391 | K189: 28,122
A190: 961,213 | B190: 28,788 | C190: 7,864 | D190: 29,411 | F190: 16 | H190: 922,485 | I190: 27,167 | J190: 7,768 | K190: 27,842 | M190: 100*1.017
A191: 943,225 | B191: 28,250 | C191: 7,712 | D191: 28,788 | F191: 15 | H191: 902,556 | I191: 26,580 | J191: 7,592 | K191: 27,167
A192: 912,216 | B192: 27,321 | C192: 7,665 | D192: 28,250 | F192: 14 | H192: 900,000 | I192: 26,505 | J192: 7,540 | K192: 26,580
A193: 900,000 | B193: 26,955 | C193: 6,838 | D193: 27,321 | F193: 13 | H193: 898,930 | I193: 26,474 | J193: 6,770 | K193: 26,505
A194: 895,979 | B194: 26,835 | C194: 6,641 | D194: 26,955 | F194: 12 | H194: 873,228 | I194: 25,717 | J194: 6,533 | K194: 26,474
A195: 859,995 | B195: 25,757 | C195: 6,142 | D195: 26,835 | F195: 11 | H195: 845,453 | I195: 24,899 | J195: 6,038 | K195: 25,717
A196: 822,040 | B196: 24,620 | C196: 5,257 | D196: 25,757 | F196: 10 | H196: 809,728 | I196: 23,846 | J196: 5,167 | K196: 24,899
A197: 800,000 | B197: 23,960 | C197: 4,496 | D197: 24,620 | F197: 9 | H197: 800,000 | I197: 23,560 | J197: 4,395 | K197: 23,846
A198: 783,389 | B198: 23,463 | C198: 3,697 | D198: 23,960 | F198: 8 | H198: 783,225 | I198: 23,066 | J198: 3,632 | K198: 23,560
A199: 735,910 | B199: 22,041 | C199: 3,509 | D199: 23,463 | F199: 7 | H199: 739,382 | I199: 21,775 | J199: 3,454 | K199: 23,066
A200: 700,225 | B200: 20,972 | C200: 3,509 | D200: 22,041 | F200: 6 | H200: 702,481 | I200: 20,688 | J200: 3,454 | K200: 21,775
A201: 657,701 | B201: 19,698 | C201: 3,080 | D201: 20,972 | F201: 5 | H201: 667,694 | I201: 19,664 | J201: 2,979 | K201: 20,688
... 4 more rows

Sheet 3.소득기준금액계산
B2: <전국가구평균소득 : 2012.4/4분기~ 2013.3/4분기 평균금액> | K2: *빨간박스에 노란색 부분만 입력할것
B4: - 자료 : 통계청 통계포털 (www.kosis.kr에서 [주제별 통계]-물가.가계-가계-가계소득지출-가계동향조사(신분류) -전국(명목)-"가구원수별 월평균가계수지(1인이상)" | K4: 5인 - 4인 = | L4: =H13-G13 -> 205,537
B6: 전국가구평균소득 100% | D6: 1인 | E6: 2인 | F6: 3인 | G6: 4인 | H6: 5인이상 | I6: 6인 | J6: 7인 | K6: 8인 | L6: 9인 | M6: 10인
C7: 2012.4/4분기 | D7: 1,534,420 | E7: 2,817,097 | F7: 4,252,197 | G7: 4,739,574 | H7: 4,961,996
C8: 2013.1/4분기 | D8: 1,557,616 | E8: 2,881,660 | F8: 4,327,821 | G8: 4,965,308 | H8: 5,168,212
C9: 2013.2/4분기 | D9: 1,527,689 | E9: 2,898,073 | F9: 4,164,849 | G9: 4,646,835 | H9: 5,003,502
C10: 2013.3/4분기 | D10: 1,531,417 | E10: 3,050,417 | F10: 4,380,746 | G10: 4,991,335 | H10: 5,031,489
C11: 합계 | D11: =SUM(D7:D10) -> 6,151,142 | E11: =SUM(E7:E10) -> 11,647,247 | F11: =SUM(F7:F10) -> 17,125,613 | G11: =SUM(G7:G10) -> 19,343,052 | H11: =SUM(H7:H10) -> 20,165,199
C12: 평균 | D12: =D11/4 -> 1,537,785.50 | E12: =E11/4 -> 2,911,811.75 | F12: =F11/4 -> 4,281,403.25 | G12: =G11/4 -> 4,835,763.00 | H12: =H11/4 -> 5,041,299.75
C13: (소수첫째에서반올림) | D13: =ROUND(D12,0) -> 1,537,786 | E13: =ROUND(E12,0) -> 2,911,812 | F13: =ROUND(F12,0) -> 4,281,403 | G13: =ROUND(G12,0) -> 4,835,763 | H13: =ROUND(H12,0) -> 5,041,300 | I13: =H13+L4 -> 5,246,837 | J13: =I13+L4 -> 5,452,374 | K13: =J13+L4 -> 5,657,911 | L13: =K13+L4 -> 5,863,448 | M13: =L13+L4 -> 6,068,985
C14: (백의자리에서 반올림) | D14: =ROUND(D13,-3) -> 1,538천원 | E14: =ROUND(E13,-3) -> 2,912천원 | F14: =ROUND(F13,-3) -> 4,281천원 | G14: =ROUND(G13,-3) -> 4,836천원 | H14: =ROUND(H13,-3) -> 5,041천원
B17: 전국가구평균소득 40% | D17: 1인 | E17: 2인 | F17: 3인 | G17: 4인 | H17: 5인이상 | I17: 6인 | J17: 7인 | K17: 8인 | L17: 9인 | M17: 10인
C18: 평균(100%) | D18: =D13 -> 1,537,786 | E18: 2,911,812 | F18: 4,281,403 | G18: 4,835,763 | H18: 5,041,300 | I18: 5,246,837 | J18: 5,452,374 | K18: 5,657,911 | L18: 5,863,448 | M18: 6,068,985
C19: 0.4 | D19: =D18*$C19 -> 615,114.4 | E19: 1,164,724.8 | F19: 1,712,561.2 | G19: 1,934,305.2 | H19: 2,016,520.0 | I19: 2,098,734.8 | J19: 2,180,949.6 | K19: 2,263,164.4 | L19: 2,345,379.2 | M19: 2,427,594.0
C20: (소수첫째에서 반올림) | D20: =ROUND(D19,0) -> 615,114 | E20: 1,164,725 | F20: 1,712,561 | G20: 1,934,305 | H20: 2,016,520 | I20: 2,098,735 | J20: 2,180,950 | K20: 2,263,164 | L20: 2,345,379 | M20: 2,427,594
C21: (백의자리에서 반올림) | D21: =ROUND(D20,-3) -> 615천원 | E21: 1,165천원 | F21: 1,713천원 | G21: 1,934천원 | H21: 2,017천원 | I21: 2,099천원 | J21: 2,181천원 | K21: 2,263천원 | L21: 2,345천원 | M21: 2,428천원
B23: 전국가구평균소득 50% | D23: 1인 | E23: 2인 | F23: 3인 | G23: 4인 | H23: 5인이상 | I23: 6인 | J23: 7인 | K23: 8인 | L23: 9인 | M23: 10인
C24: 평균(100%) | D24: =D18 -> 1,537,786 | E24: 2,911,812 | F24: 4,281,403 | G24: 4,835,763 | H24: 5,041,300 | I24: 5,246,837 | J24: 5,452,374 | K24: 5,657,911 | L24: 5,863,448 | M24: 6,068,985
C25: 0.5 | D25: =D24*$C25 -> 768,893.0 | E25: 1,455,906.0 | F25: 2,140,701.5 | G25: 2,417,881.5 | H25: 2,520,650.0 | I25: 2,623,418.5 | J25: 2,726,187.0 | K25: 2,828,955.5 | L25: 2,931,724.0 | M25: 3,034,492.5
C26: (소수첫째에서 반올림) | D26: =ROUND(D25,0) -> 768,893 | E26: 1,455,906 | F26: 2,140,702 | G26: 2,417,882 | H26: 2,520,650 | I26: 2,623,419 | J26: 2,726,187 | K26: 2,828,956 | L26: 2,931,724 | M26: 3,034,493
C27: (백의자리에서 반올림) | D27: =ROUND(D26,-3) -> 769천원 | E27: 1,456천원 | F27: 2,141천원 | G27: 2,418천원 | H27: 2,521천원 | I27: 2,623천원 | J27: 2,726천원 | K27: 2,829천원 | L27: 2,932천원 | M27: 3,034천원
B29: 전국가구평균소득 60% | D29: 1인 | E29: 2인 | F29: 3인 | G29: 4인 | H29: 5인이상 | I29: 6인 | J29: 7인 | K29: 8인 | L29: 9인 | M29: 10인
C30: 평균(100%) | D30: =D24 -> 1,537,786 | E30: 2,911,812 | F30: 4,281,403 | G30: 4,835,763 | H30: 5,041,300 | I30: 5,246,837 | J30: 5,452,374 | K30: 5,657,911 | L30: 5,863,448 | M30: 6,068,985
C31: 0.6 | D31: =D30*$C31 -> 922,671.6 | E31: 1,747,087.2 | F31: 2,568,841.8 | G31: 2,901,457.8 | H31: 3,024,780.0 | I31: 3,148,102.2 | J31: 3,271,424.4 | K31: 3,394,746.6 | L31: 3,518,068.8 | M31: 3,641,391.0
C32: (소수첫째에서 반올림) | D32: =ROUND(D31,0) -> 922,672 | E32: 1,747,087 | F32: 2,568,842 | G32: 2,901,458 | H32: 3,024,780 | I32: 3,148,102 | J32: 3,271,424 | K32: 3,394,747 | L32: 3,518,069 | M32: 3,641,391
C33: (백의자리에서 반올림) | D33: =ROUND(D32,-3) -> 923천원 | E33: 1,747천원 | F33: 2,569천원 | G33: 2,901천원 | H33: 3,025천원 | I33: 3,148천원 | J33: 3,271천원 | K33: 3,395천원 | L33: 3,518천원 | M33: 3,641천원
B35: 전국가구평균소득 65% | D35: 1인 | E35: 2인 | F35: 3인 | G35: 4인 | H35: 5인이상 | I35: 6인 | J35: 7인 | K35: 8인 | L35: 9인 | M35: 10인
C36: 평균(100%) | D36: =D30 -> 1,537,786 | E36: 2,911,812 | F36: 4,281,403 | G36: 4,835,763 | H36: 5,041,300 | I36: 5,246,837 | J36: 5,452,374 | K36: 5,657,911 | L36: 5,863,448 | M36: 6,068,985
C37: 0.65 | D37: =D36*$C37 -> 999,560.9 | E37: 1,892,677.8 | F37: 2,782,912.0 | G37: 3,143,246.0 | H37: 3,276,845.0 | I37: 3,410,444.1 | J37: 3,544,043.1 | K37: 3,677,642.2 | L37: 3,811,241.2 | M37: 3,944,840.3
C38: (소수첫째에서 반올림) | D38: =ROUND(D37,0) -> 999,561 | E38: 1,892,678 | F38: 2,782,912 | G38: 3,143,246 | H38: 3,276,845 | I38: 3,410,444 | J38: 3,544,043 | K38: 3,677,642 | L38: 3,811,241 | M38: 3,944,840
C39: (백의자리에서 반올림) | D39: =ROUND(D38,-3) -> 1,000천원 | E39: 1,893천원 | F39: 2,783천원 | G39: 3,143천원 | H39: 3,277천원 | I39: 3,410천원 | J39: 3,544천원 | K39: 3,678천원 | L39: 3,811천원 | M39: 3,945천원
B41: 전국가구평균소득 70% | D41: 1인 | E41: 2인 | F41: 3인 | G41: 4인 | H41: 5인이상 | I41: 6인 | J41: 7인 | K41: 8인 | L41: 9인 | M41: 10인
C42: 평균(100%) | D42: =D36 -> 1,537,786 | E42: 2,911,812 | F42: 4,281,403 | G42: 4,835,763 | H42: 5,041,300 | I42: 5,246,837 | J42: 5,452,374 | K42: 5,657,911 | L42: 5,863,448 | M42: 6,068,985
C43: 0.7 | D43: =D42*$C43 -> 1,076,450.2 | E43: 2,038,268.4 | F43: 2,996,982.1 | G43: 3,385,034.1 | H43: 3,528,910.0 | I43: 3,672,785.9 | J43: 3,816,661.8 | K43: 3,960,537.7 | L43: 4,104,413.6 | M43: 4,248,289.5
C44: (소수첫째에서 반올림) | D44: =ROUND(D43,0) -> 1,076,450 | E44: 2,038,268 | F44: 2,996,982 | G44: 3,385,034 | H44: 3,528,910 | I44: 3,672,786 | J44: 3,816,662 | K44: 3,960,538 | L44: 4,104,414 | M44: 4,248,290
C45: (백의자리에서 반올림) | D45: =ROUND(D44,-3) -> 1,076천원 | E45: 2,038천원 | F45: 2,997천원 | G45: 3,385천원 | H45: 3,529천원 | I45: 3,673천원 | J45: 3,817천원 | K45: 3,961천원 | L45: 4,104천원 | M45: 4,248천원
B47: 전국가구평균소득 80% | D47: 1인 | E47: 2인 | F47: 3인 | G47: 4인 | H47: 5인이상 | I47: 6인 | J47: 7인 | K47: 8인 | L47: 9인 | M47: 10인
C48: 평균(100%) | D48: =D42 -> 1,537,786 | E48: 2,911,812 | F48: 4,281,403 | G48: 4,835,763 | H48: 5,041,300 | I48: 5,246,837 | J48: 5,452,374 | K48: 5,657,911 | L48: 5,863,448 | M48: 6,068,985
C49: 0.8 | D49: =D48*$C49 -> 1,230,228.8 | E49: 2,329,449.6 | F49: 3,425,122.4 | G49: 3,868,610.4 | H49: 4,033,040.0 | I49: 4,197,469.6 | J49: 4,361,899.2 | K49: 4,526,328.8 | L49: 4,690,758.4 | M49: 4,855,188.0
C50: (소수첫째에서 반올림) | D50: =ROUND(D49,0) -> 1,230,229 | E50: 2,329,450 | F50: 3,425,122 | G50: 3,868,610 | H50: 4,033,040 | I50: 4,197,470 | J50: 4,361,899 | K50: 4,526,329 | L50: 4,690,758 | M50: 4,855,188
C51: (백의자리에서 반올림) | D51: =ROUND(D50,-3) -> 1,230천원 | E51: 2,329천원 | F51: 3,425천원 | G51: 3,869천원 | H51: 4,033천원 | I51: 4,197천원 | J51: 4,362천원 | K51: 4,526천원 | L51: 4,691천원 | M51: 4,855천원
B53: 전국가구평균소득 100% | D53: 1인 | E53: 2인 | F53: 3인 | G53: 4인 | H53: 5인이상 | I53: 6인 | J53: 7인 | K53: 8인 | L53: 9인 | M53: 10인
C54: 평균(100%) | D54: =D48 -> 1,537,786 | E54: 2,911,812 | F54: 4,281,403 | G54: 4,835,763 | H54: 5,041,300 | I54: 5,246,837 | J54: 5,452,374 | K54: 5,657,911 | L54: 5,863,448 | M54: 6,068,985
C55: (백의자리에서 반올림) | D55: =ROUND(D54,-3) -> 1,538천원 | E55: 2,912천원 | F55: 4,281천원 | G55: 4,836천원 | H55: 5,041천원 | I55: 5,247천원 | J55: 5,452천원 | K55: 5,658천원 | L55: 5,863천원 | M55: 6,069천원
B57: 전국가구평균소득 120% | D57: 1인 | E57: 2인 | F57: 3인 | G57: 4인 | H57: 5인이상 | I57: 6인 | J57: 7인 | K57: 8인 | L57: 9인 | M57: 10인
C58: 평균(100%) | D58: =D54 -> 1,537,786 | E58: 2,911,812 | F58: 4,281,403 | G58: 4,835,763 | H58: 5,041,300 | I58: 5,246,837 | J58: 5,452,374 | K58: 5,657,911 | L58: 5,863,448 | M58: 6,068,985
C59: 1.2 | D59: =D58*$C59 -> 1,845,343.2 | E59: 3,494,174.4 | F59: 5,137,683.6 | G59: 5,802,915.6 | H59: 6,049,560.0 | I59: 6,296,204.4 | J59: 6,542,848.8 | K59: 6,789,493.2 | L59: 7,036,137.6 | M59: 7,282,782.0
C60: (소수첫째에서 반올림) | D60: =ROUND(D59,0) -> 1,845,343 | E60: 3,494,174 | F60: 5,137,684 | G60: 5,802,916 | H60: 6,049,560 | I60: 6,296,204 | J60: 6,542,849 | K60: 6,789,493 | L60: 7,036,138 | M60: 7,282,782
C61: (백의자리에서 반올림) | D61: =ROUND(D60,-3) -> 1,845천원 | E61: 3,494천원 | F61: 5,138천원 | G61: 5,803천원 | H61: 6,050천원 | I61: 6,296천원 | J61: 6,543천원 | K61: 6,789천원 | L61: 7,036천원 | M61: 7,283천원
B63: 전국가구평균소득 130% | D63: 1인 | E63: 2인 | F63: 3인 | G63: 4인 | H63: 5인이상 | I63: 6인 | J63: 7인 | K63: 8인 | L63: 9인 | M63: 10인
C64: 평균(100%) | D64: =D13 -> 1,537,786 | E64: 2,911,812 | F64: 4,281,403 | G64: 4,835,763 | H64: 5,041,300 | I64: 5,246,837 | J64: 5,452,374 | K64: 5,657,911 | L64: 5,863,448 | M64: 6,068,985
C65: 1.3 | D65: =D64*$C65 -> 1,999,121.8 | E65: 3,785,355.6 | F65: 5,565,823.9 | G65: 6,286,491.9 | H65: 6,553,690.0 | I65: 6,820,888.1 | J65: 7,088,086.2 | K65: 7,355,284.3 | L65: 7,622,482.4 | M65: 7,889,680.5
C66: (소수첫째에서 반올림) | D66: =ROUND(D65,0) -> 1,999,122 | E66: 3,785,356 | F66: 5,565,824 | G66: 6,286,492 | H66: 6,553,690 | I66: 6,820,888 | J66: 7,088,086 | K66: 7,355,284 | L66: 7,622,482 | M66: 7,889,681
C67: (백의자리에서 반올림) | D67: =ROUND(D66,-3) -> 1,999천원 | E67: 3,785천원 | F67: 5,566천원 | G67: 6,286천원 | H67: 6,554천원 | I67: 6,821천원 | J67: 7,088천원 | K67: 7,355천원 | L67: 7,622천원 | M67: 7,890천원
B69: 전국가구평균소득 150% | D69: 1인 | E69: 2인 | F69: 3인 | G69: 4인 | H69: 5인이상 | I69: 6인 | J69: 7인 | K69: 8인 | L69: 9인 | M69: 10인
C70: 평균(100%) | D70: =D58 -> 1,537,786 | E70: 2,911,812 | F70: 4,281,403 | G70: 4,835,763 | H70: 5,041,300 | I70: 5,246,837 | J70: 5,452,374 | K70: 5,657,911 | L70: 5,863,448 | M70: 6,068,985
C71: 1.5 | D71: =D70*$C71 -> 2,306,679.0 | E71: 4,367,718.0 | F71: 6,422,104.5 | G71: 7,253,644.5 | H71: 7,561,950.0 | I71: 7,870,255.5 | J71: 8,178,561.0 | K71: 8,486,866.5 | L71: 8,795,172.0 | M71: 9,103,477.5
C72: (소수첫째에서 반올림) | D72: =ROUND(D71,0) -> 2,306,679 | E72: 4,367,718 | F72: 6,422,105 | G72: 7,253,645 | H72: 7,561,950 | I72: 7,870,256 | J72: 8,178,561 | K72: 8,486,867 | L72: 8,795,172 | M72: 9,103,478
C73: (백의자리에서 반올림) | D73: =ROUND(D72,-3) -> 2,307천원 | E73: 4,368천원 | F73: 6,422천원 | G73: 7,254천원 | H73: 7,562천원 | I73: 7,870천원 | J73: 8,179천원 | K73: 8,487천원 | L73: 8,795천원 | M73: 9,103천원
B75: 전국가구평균소득 160% | D75: 1인 | E75: 2인 | F75: 3인 | G75: 4인 | H75: 5인이상 | I75: 6인 | J75: 7인 | K75: 8인 | L75: 9인 | M75: 10인
C76: 평균(100%) | D76: =D70 -> 1,537,786 | E76: 2,911,812 | F76: 4,281,403 | G76: 4,835,763 | H76: 5,041,300 | I76: 5,246,837 | J76: 5,452,374 | K76: 5,657,911 | L76: 5,863,448 | M76: 6,068,985
C77: 1.6 | D77: =D76*$C77 -> 2,460,457.6 | E77: 4,658,899.2 | F77: 6,850,244.8 | G77: 7,737,220.8 | H77: 8,066,080.0 | I77: 8,394,939.2 | J77: 8,723,798.4 | K77: 9,052,657.6 | L77: 9,381,516.8 | M77: 9,710,376.0
C78: (소수첫째에서 반올림) | D78: =ROUND(D77,0) -> 2,460,458 | E78: 4,658,899 | F78: 6,850,245 | G78: 7,737,221 | H78: 8,066,080 | I78: 8,394,939 | J78: 8,723,798 | K78: 9,052,658 | L78: 9,381,517 | M78: 9,710,376
C79: (백의자리에서 반올림) | D79: =ROUND(D78,-3) -> 2,460천원 | E79: 4,659천원 | F79: 6,850천원 | G79: 7,737천원 | H79: 8,066천원 | I79: 8,395천원 | J79: 8,724천원 | K79: 9,053천원 | L79: 9,382천원 | M79: 9,710천원
B81: 전국가구평균소득 180% | D81: 1인 | E81: 2인 | F81: 3인 | G81: 4인 | H81: 5인이상 | I81: 6인 | J81: 7인 | K81: 8인 | L81: 9인 | M81: 10인
C82: 평균(100%) | D82: =D76 -> 1,537,786 | E82: 2,911,812 | F82: 4,281,403 | G82: 4,835,763 | H82: 5,041,300 | I82: 5,246,837 | J82: 5,452,374 | K82: 5,657,911 | L82: 5,863,448 | M82: 6,068,985
C83: 1.8 | D83: =D82*$C83 -> 2,768,014.8 | E83: 5,241,261.6 | F83: 7,706,525.4 | G83: 8,704,373.4 | H83: 9,074,340.0 | I83: 9,444,306.6 | J83: 9,814,273.2 | K83: 10,184,239.8 | L83: 10,554,206.4 | M83: 10,924,173.0
C84: (소수첫째에서 반올림) | D84: =ROUND(D83,0) -> 2,768,015 | E84: 5,241,262 | F84: 7,706,525 | G84: 8,704,373 | H84: 9,074,340 | I84: 9,444,307 | J84: 9,814,273 | K84: 10,184,240 | L84: 10,554,206 | M84: 10,924,173
C85: (백의자리에서 반올림) | D85: =ROUND(D84,-3) -> 2,768천원 | E85: 5,241천원 | F85: 7,707천원 | G85: 8,704천원 | H85: 9,074천원 | I85: 9,444천원 | J85: 9,814천원 | K85: 10,184천원 | L85: 10,554천원 | M85: 10,924천원
B87: 전국가구평균소득 200% | D87: 1인 | E87: 2인 | F87: 3인 | G87: 4인 | H87: 5인이상 | I87: 6인 | J87: 7인 | K87: 8인 | L87: 9인 | M87: 10인
C88: 평균(100%) | D88: =D82 -> 1,537,786 | E88: 2,911,812 | F88: 4,281,403 | G88: 4,835,763 | H88: 5,041,300 | I88: 5,246,837 | J88: 5,452,374 | K88: 5,657,911 | L88: 5,863,448 | M88: 6,068,985
C89: 2.0 | D89: =D88*$C89 -> 3,075,572.0 | E89: 5,823,624.0 | F89: 8,562,806.0 | G89: 9,671,526.0 | H89: 10,082,600.0 | I89: 10,493,674.0 | J89: 10,904,748.0 | K89: 11,315,822.0 | L89: 11,726,896.0 | M89: 12,137,970.0
C90: (소수첫째에서 반올림) | D90: =ROUND(D89,0) -> 3,075,572 | E90: 5,823,624 | F90: 8,562,806 | G90: 9,671,526 | H90: 10,082,600 | I90: 10,493,674 | J90: 10,904,748 | K90: 11,315,822 | L90: 11,726,896 | M90: 12,137,970
C91: (백의자리에서 반올림) | D91: =ROUND(D90,-3) -> 3,076천원 | E91: 5,824천원 | F91: 8,563천원 | G91: 9,672천원 | H91: 10,083천원 | I91: 10,494천원 | J91: 10,905천원 | K91: 11,316천원 | L91: 11,727천원 | M91: 12,138천원
B93: 전국가구평균소득 220% | D93: 1인 | E93: 2인 | F93: 3인 | G93: 4인 | H93: 5인이상 | I93: 6인 | J93: 7인 | K93: 8인 | L93: 9인 | M93: 10인
C94: 평균(100%) | D94: =D88 -> 1,537,786 | E94: 2,911,812 | F94: 4,281,403 | G94: 4,835,763 | H94: 5,041,300 | I94: 5,246,837 | J94: 5,452,374 | K94: 5,657,911 | L94: 5,863,448 | M94: 6,068,985
C95: 2.2 | D95: =D94*$C95 -> 3,383,129.2 | E95: 6,405,986.4 | F95: 9,419,086.6 | G95: 10,638,678.6 | H95: 11,090,860.0 | I95: 11,543,041.4 | J95: 11,995,222.8 | K95: 12,447,404.2 | L95: 12,899,585.6 | M95: 13,351,767.0
C96: (소수첫째에서 반올림) | D96: =ROUND(D95,0) -> 3,383,129 | E96: 6,405,986 | F96: 9,419,087 | G96: 10,638,679 | H96: 11,090,860 | I96: 11,543,041 | J96: 11,995,223 | K96: 12,447,404 | L96: 12,899,586 | M96: 13,351,767
C97: (백의자리에서 반올림) | D97: =ROUND(D96,-3) -> 3,383천원 | E97: 6,406천원 | F97: 9,419천원 | G97: 10,639천원 | H97: 11,091천원 | I97: 11,543천원 | J97: 11,995천원 | K97: 12,447천원 | L97: 12,900천원 | M97: 13,352천원
B100: <최저생계비 : 2014년기준> | K100: 7인 - 6인 = | L100: =J103-I103 -> 301,702
B102: 최저생계비 100% | D102: 1인 | E102: 2인 | F102: 3인 | G102: 4인 | H102: 5인 | I102: 6인 | J102: 7인 | K102: 8인 | L102: 9인 | M102: 10인
C103: 100% | D103: 603,403 | E103: 1,027,417 | F103: 1,329,118 | G103: 1,630,820 | H103: 1,932,522 | I103: 2,234,223 | J103: 2,535,925 | K103: =J103+L100 -> 2,837,627 | L103: =K103+L100 -> 3,139,329 | M103: =L103+L100 -> 3,441,031
B105: 최저생계비 110% | D105: 1인 | E105: 2인 | F105: 3인 | G105: 4인 | H105: 5인 | I105: 6인 | J105: 7인 | K105: 8인 | L105: 9인 | M105: 10인
C106: 1.1 | D106: =D103*$C$106 -> 663,743.3 | E106: =E103*$C$106 -> 1,130,158.7 | F106: 1,462,029.8 | G106: 1,793,902.0 | H106: 2,125,774.2 | I106: 2,457,645.3 | J106: 2,789,517.5 | K106: 3,121,389.7 | L106: 3,453,261.9 | M106: 3,785,134.1
C107: (소수첫째에서 반올림) | D107: =ROUND(D106,0) -> 663,743 | E107: 1,130,159 | F107: 1,462,030 | G107: 1,793,902 | H107: 2,125,774 | I107: 2,457,645 | J107: 2,789,518 | K107: =ROUND(K106,0) -> 3,121,390 | L107: =ROUND(L106,0) -> 3,453,262 | M107: =ROUND(M106,0) -> 3,785,134
C108: (백의자리에서 반올림) | D108: =ROUND(D107,-3) -> 664천원 | E108: =ROUND(E107,-3) -> 1,130천원 | F108: 1,462천원 | G108: 1,794천원 | H108: 2,126천원 | I108: 2,458천원 | J108: 2,790천원 | K108: =ROUND(K107,-3) -> 3,121천원 | L108: =ROUND(L107,-3) -> 3,453천원 | M108: =ROUND(M107,-3) -> 3,785천원
B110: 최저생계비 120% | D110: 1인 | E110: 2인 | F110: 3인 | G110: 4인 | H110: 5인 | I110: 6인 | J110: 7인 | K110: 8인 | L110: 9인 | M110: 10인
C111: 1.2 | D111: =D103*$C$111 -> 724,083.6 | E111: =E103*$C$111 -> 1,232,900.4 | F111: =F103*$C$111 -> 1,594,941.6 | G111: =G103*$C$111 -> 1,956,984.0 | H111: 2,319,026.4 | I111: 2,681,067.6 | J111: 3,043,110.0 | K111: 3,405,152.4 | L111: 3,767,194.8 | M111: 4,129,237.2
C112: (소수첫째에서 반올림) | D112: =ROUND(D111,0) -> 724,084 | E112: 1,232,900 | F112: 1,594,942 | G112: 1,956,984 | H112: 2,319,026 | I112: 2,681,068 | J112: 3,043,110 | K112: =ROUND(K111,0) -> 3,405,152 | L112: =ROUND(L111,0) -> 3,767,195 | M112: =ROUND(M111,0) -> 4,129,237
C113: (백의자리에서 반올림) | D113: =ROUND(D112,-3) -> 724천원 | E113: =ROUND(E112,-3) -> 1,233천원 | F113: 1,595천원 | G113: 1,957천원 | H113: =ROUND(H112,-3) -> 2,319천원 | I113: 2,681천원 | J113: 3,043천원 | K113: =ROUND(K112,-3) -> 3,405천원 | L113: =ROUND(L112,-3) -> 3,767천원 | M113: =ROUND(M112,-3) -> 4,129천원
B115: 최저생계비 130% | D115: 1인 | E115: 2인 | F115: 3인 | G115: 4인 | H115: 5인 | I115: 6인 | J115: 7인 | K115: 8인 | L115: 9인 | M115: 10인
C116: 1.3 | D116: =D103*$C$116 -> 784,423.9 | E116: =E103*$C$116 -> 1,335,642.1 | F116: =F103*$C$116 -> 1,727,853.4 | G116: =G103*$C$116 -> 2,120,066.0 | H116: 2,512,278.6 | I116: 2,904,489.9 | J116: 3,296,702.5 | K116: 3,688,915.1 | L116: 4,081,127.7 | M116: 4,473,340.3
C117: (소수첫째에서 반올림) | D117: =ROUND(D116,0) -> 784,424 | E117: 1,335,642 | F117: 1,727,853 | G117: 2,120,066 | H117: 2,512,279 | I117: 2,904,490 | J117: 3,296,703 | K117: =ROUND(K116,0) -> 3,688,915 | L117: =ROUND(L116,0) -> 4,081,128 | M117: =ROUND(M116,0) -> 4,473,340
C118: (백의자리에서 반올림) | D118: =ROUND(D117,-3) -> 784천원 | E118: 1,336천원 | F118: 1,728천원 | G118: 2,120천원 | H118: 2,512천원 | I118: 2,904천원 | J118: 3,297천원 | K118: =ROUND(K117,-3) -> 3,689천원 | L118: =ROUND(L117,-3) -> 4,081천원 | M118: =ROUND(M117,-3) -> 4,473천원
B120: 최저생계비 140% | D120: 1인 | E120: 2인 | F120: 3인 | G120: 4인 | H120: 5인 | I120: 6인 | J120: 7인 | K120: 8인 | L120: 9인 | M120: 10인
C121: 1.4 | D121: =D103*$C$121 -> 844,764.2 | E121: =E103*$C$121 -> 1,438,383.8 | F121: 1,860,765.2 | G121: 2,283,148.0 | H121: 2,705,530.8 | I121: 3,127,912.2 | J121: 3,550,295.0 | K121: 3,972,677.8 | L121: 4,395,060.6 | M121: 4,817,443.4
C122: (소수첫째에서 반올림) | D122: =ROUND(D121,0) -> 844,764 | E122: 1,438,384 | F122: 1,860,765 | G122: 2,283,148 | H122: 2,705,531 | I122: 3,127,912 | J122: 3,550,295 | K122: =ROUND(K121,0) -> 3,972,678 | L122: =ROUND(L121,0) -> 4,395,061 | M122: =ROUND(M121,0) -> 4,817,443
C123: (백의자리에서 반올림) | D123: =ROUND(D122,-3) -> 845천원 | E123: =ROUND(E122,-3) -> 1,438천원 | F123: 1,861천원 | G123: 2,283천원 | H123: 2,706천원 | I123: 3,128천원 | J123: 3,550천원 | K123: =ROUND(K122,-3) -> 3,973천원 | L123: =ROUND(L122,-3) -> 4,395천원 | M123: =ROUND(M122,-3) -> 4,817천원
B125: 최저생계비 150% | D125: 1인 | E125: 2인 | F125: 3인 | G125: 4인 | H125: 5인 | I125: 6인 | J125: 7인 | K125: 8인 | L125: 9인 | M125: 10인
C126: 1.5 | D126: =D103*$C$126 -> 905,104.5 | E126: =E103*$C$126 -> 1,541,125.5 | F126: 1,993,677.0 | G126: 2,446,230.0 | H126: 2,898,783.0 | I126: 3,351,334.5 | J126: 3,803,887.5 | K126: 4,256,440.5 | L126: 4,708,993.5 | M126: 5,161,546.5
C127: (소수첫째에서 반올림) | D127: =ROUND(D126,0) -> 905,105 | E127: 1,541,126 | F127: 1,993,677 | G127: 2,446,230 | H127: 2,898,783 | I127: 3,351,335 | J127: 3,803,888 | K127: =ROUND(K126,0) -> 4,256,441 | L127: =ROUND(L126,0) -> 4,708,994 | M127: =ROUND(M126,0) -> 5,161,547
C128: (백의자리에서 반올림) | D128: =ROUND(D127,-3) -> 905천원 | E128: =ROUND(E127,-3) -> 1,541천원 | F128: 1,994천원 | G128: 2,446천원 | H128: 2,899천원 | I128: 3,351천원 | J128: 3,804천원 | K128: =ROUND(K127,-3) -> 4,256천원 | L128: =ROUND(L127,-3) -> 4,709천원 | M128: =ROUND(M127,-3) -> 5,162천원
B130: 최저생계비 160% | D130: 1인 | E130: 2인 | F130: 3인 | G130: 4인 | H130: 5인 | I130: 6인 | J130: 7인 | K130: 8인 | L130: 9인 | M130: 10인
C131: 1.6 | D131: =D103*$C$131 -> 965,444.8 | E131: =E103*$C$131 -> 1,643,867.2 | F131: 2,126,588.8 | G131: 2,609,312.0 | H131: 3,092,035.2 | I131: 3,574,756.8 | J131: 4,057,480.0 | K131: 4,540,203.2 | L131: 5,022,926.4 | M131: 5,505,649.6
C132: (소수첫째에서 반올림) | D132: =ROUND(D131,0) -> 965,445 | E132: 1,643,867 | F132: 2,126,589 | G132: 2,609,312 | H132: 3,092,035 | I132: 3,574,757 | J132: 4,057,480 | K132: =ROUND(K131,0) -> 4,540,203 | L132: =ROUND(L131,0) -> 5,022,926 | M132: =ROUND(M131,0) -> 5,505,650
C133: (백의자리에서 반올림) | D133: =ROUND(D132,-3) -> 965천원 | E133: =ROUND(E132,-3) -> 1,644천원 | F133: 2,127천원 | G133: 2,609천원 | H133: 3,092천원 | I133: 3,575천원 | J133: 4,057천원 | K133: =ROUND(K132,-3) -> 4,540천원 | L133: =ROUND(L132,-3) -> 5,023천원 | M133: =ROUND(M132,-3) -> 5,506천원
B135: 최저생계비 170% | D135: 1인 | E135: 2인 | F135: 3인 | G135: 4인 | H135: 5인 | I135: 6인 | J135: 7인 | K135: 8인 | L135: 9인 | M135: 10인
C136: 1.7 | D136: =D103*$C$136 -> 1,025,785.1 | E136: =E103*$C$136 -> 1,746,608.9 | F136: =F103*$C$136 -> 2,259,500.6 | G136: 2,772,394.0 | H136: 3,285,287.4 | I136: 3,798,179.1 | J136: 4,311,072.5 | K136: 4,823,965.9 | L136: 5,336,859.3 | M136: 5,849,752.7
C137: (소수첫째에서 반올림) | D137: =ROUND(D136,0) -> 1,025,785 | E137: 1,746,609 | F137: 2,259,501 | G137: 2,772,394 | H137: 3,285,287 | I137: 3,798,179 | J137: 4,311,073 | K137: =ROUND(K136,0) -> 4,823,966 | L137: =ROUND(L136,0) -> 5,336,859 | M137: =ROUND(M136,0) -> 5,849,753
C138: (백의자리에서 반올림) | D138: =ROUND(D137,-3) -> 1,026천원 | E138: =ROUND(E137,-3) -> 1,747천원 | F138: 2,260천원 | G138: 2,772천원 | H138: 3,285천원 | I138: 3,798천원 | J138: 4,311천원 | K138: =ROUND(K137,-3) -> 4,824천원 | L138: =ROUND(L137,-3) -> 5,337천원 | M138: =ROUND(M137,-3) -> 5,850천원
B140: 최저생계비 180% | D140: 1인 | E140: 2인 | F140: 3인 | G140: 4인 | H140: 5인 | I140: 6인 | J140: 7인 | K140: 8인 | L140: 9인 | M140: 10인
C141: 1.8 | D141: =D103*$C$141 -> 1,086,125.4 | E141: =E103*$C$141 -> 1,849,350.6 | F141: 2,392,412.4 | G141: 2,935,476.0 | H141: 3,478,539.6 | I141: 4,021,601.4 | J141: 4,564,665.0 | K141: 5,107,728.6 | L141: 5,650,792.2 | M141: 6,193,855.8
C142: (소수첫째에서 반올림) | D142: =ROUND(D141,0) -> 1,086,125 | E142: 1,849,351 | F142: 2,392,412 | G142: 2,935,476 | H142: 3,478,540 | I142: 4,021,601 | J142: 4,564,665 | K142: =ROUND(K141,0) -> 5,107,729 | L142: =ROUND(L141,0) -> 5,650,792 | M142: =ROUND(M141,0) -> 6,193,856
C143: (백의자리에서 반올림) | D143: =ROUND(D142,-3) -> 1,086천원 | E143: =ROUND(E142,-3) -> 1,849천원 | F143: 2,392천원 | G143: 2,935천원 | H143: 3,479천원 | I143: 4,022천원 | J143: 4,565천원 | K143: =ROUND(K142,-3) -> 5,108천원 | L143: =ROUND(L142,-3) -> 5,651천원 | M143: =ROUND(M142,-3) -> 6,194천원
B145: 최저생계비 190% | D145: 1인 | E145: 2인 | F145: 3인 | G145: 4인 | H145: 5인 | I145: 6인 | J145: 7인 | K145: 8인 | L145: 9인 | M145: 10인
C146: 1.9 | D146: =D103*$C$146 -> 1,146,465.7 | E146: =E103*$C$146 -> 1,952,092.3 | F146: 2,525,324.2 | G146: 3,098,558.0 | H146: 3,671,791.8 | I146: 4,245,023.7 | J146: 4,818,257.5 | K146: 5,391,491.3 | L146: 5,964,725.1 | M146: 6,537,958.9
C147: (소수첫째에서 반올림) | D147: =ROUND(D146,0) -> 1,146,466 | E147: 1,952,092 | F147: 2,525,324 | G147: 3,098,558 | H147: 3,671,792 | I147: 4,245,024 | J147: 4,818,258 | K147: =ROUND(K146,0) -> 5,391,491 | L147: =ROUND(L146,0) -> 5,964,725 | M147: =ROUND(M146,0) -> 6,537,959
C148: (백의자리에서 반올림) | D148: =ROUND(D147,-3) -> 1,146천원 | E148: =ROUND(E147,-3) -> 1,952천원 | F148: 2,525천원 | G148: 3,099천원 | H148: 3,672천원 | I148: 4,245천원 | J148: 4,818천원 | K148: =ROUND(K147,-3) -> 5,391천원 | L148: =ROUND(L147,-3) -> 5,965천원 | M148: =ROUND(M147,-3) -> 6,538천원
B150: 최저생계비 200% | D150: 1인 | E150: 2인 | F150: 3인 | G150: 4인 | H150: 5인 | I150: 6인 | J150: 7인 | K150: 8인 | L150: 9인 | M150: 10인
C151: 2.0 | D151: =D103*$C$151 -> 1,206,806.0 | E151: =E103*$C$151 -> 2,054,834.0 | F151: 2,658,236.0 | G151: 3,261,640.0 | H151: =H103*$C$151 -> 3,865,044.0 | I151: 4,468,446.0 | J151: 5,071,850.0 | K151: 5,675,254.0 | L151: 6,278,658.0 | M151: 6,882,062.0
C152: (소수첫째에서 반올림) | D152: =ROUND(D151,0) -> 1,206,806 | E152: 2,054,834 | F152: 2,658,236 | G152: 3,261,640 | H152: 3,865,044 | I152: 4,468,446 | J152: 5,071,850 | K152: =ROUND(K151,0) -> 5,675,254 | L152: =ROUND(L151,0) -> 6,278,658 | M152: =ROUND(M151,0) -> 6,882,062
C153: (백의자리에서 반올림) | D153: =ROUND(D152,-3) -> 1,207천원 | E153: =ROUND(E152,-3) -> 2,055천원 | F153: 2,658천원 | G153: 3,262천원 | H153: 3,865천원 | I153: 4,468천원 | J153: 5,072천원 | K153: =ROUND(K152,-3) -> 5,675천원 | L153: =ROUND(L152,-3) -> 6,279천원 | M153: =ROUND(M152,-3) -> 6,882천원
B155: 최저생계비 300% | D155: 1인 | E155: 2인 | F155: 3인 | G155: 4인 | H155: 5인 | I155: 6인 | J155: 7인 | K155: 8인 | L155: 9인 | M155: 10인
C156: 3.0 | D156: =D103*$C$156 -> 1,810,209.0 | E156: =E103*$C$156 -> 3,082,251.0 | F156: 3,987,354.0 | G156: 4,892,460.0 | H156: 5,797,566.0 | I156: 6,702,669.0 | J156: 7,607,775.0 | K156: 8,512,881.0 | L156: 9,417,987.0 | M156: 10,323,093.0
C157: (소수첫째에서 반올림) | D157: =ROUND(D156,0) -> 1,810,209 | E157: 3,082,251 | F157: 3,987,354 | G157: 4,892,460 | H157: 5,797,566 | I157: 6,702,669 | J157: 7,607,775 | K157: =ROUND(K156,0) -> 8,512,881 | L157: =ROUND(L156,0) -> 9,417,987 | M157: =ROUND(M156,0) -> 10,323,093
C158: (백의자리에서 반올림) | D158: =ROUND(D157,-3) -> 1,810천원 | E158: =ROUND(E157,-3) -> 3,082천원 | F158: 3,987천원 | G158: 4,892천원 | H158: 5,798천원 | I158: 6,703천원 | J158: 7,608천원 | K158: =ROUND(K157,-3) -> 8,513천원 | L158: =ROUND(L157,-3) -> 9,418천원 | M158: =ROUND(M157,-3) -> 10,323천원
B160: 최저생계비 350% | D160: 1인 | E160: 2인 | F160: 3인 | G160: 4인 | H160: 5인 | I160: 6인 | J160: 7인 | K160: 8인 | L160: 9인 | M160: 10인
C161: 3.5 | D161: =D103*$C$161 -> 2,111,910.5 | E161: =E103*$C$161 -> 3,595,959.5 | F161: 4,651,913.0 | G161: 5,707,870.0 | H161: 6,763,827.0 | I161: 7,819,780.5 | J161: 8,875,737.5 | K161: 9,931,694.5 | L161: 10,987,651.5 | M161: 12,043,608.5
C162: (소수첫째에서 반올림) | D162: =ROUND(D161,0) -> 2,111,911 | E162: 3,595,960 | F162: 4,651,913 | G162: 5,707,870 | H162: 6,763,827 | I162: 7,819,781 | J162: 8,875,738 | K162: =ROUND(K161,0) -> 9,931,695 | L162: =ROUND(L161,0) -> 10,987,652 | M162: =ROUND(M161,0) -> 12,043,609
C163: (백의자리에서 반올림) | D163: =ROUND(D162,-3) -> 2,112천원 | E163: =ROUND(E162,-3) -> 3,596천원 | F163: 4,652천원 | G163: 5,708천원 | H163: 6,764천원 | I163: 7,820천원 | J163: 8,876천원 | K163: =ROUND(K162,-3) -> 9,932천원 | L163: =ROUND(L162,-3) -> 10,988천원 | M163: =ROUND(M162,-3) -> 12,044천원

Sheet 4.건보료자료
Q3: 2014 보험요율 5.99% | R3: 2014 증가율 1.7%
A4: <작성기준> | P4: 2013년도 | Q4: 2014년도 | R4: 2014년도
A5: 1. 구성비 : 보험료가 낮은 순서로 정렬, 구간 : 초과~이하 | P5: 현재 보험요율 | Q5: 보험요율/2(본인부담금) | R5: 건강보험료증가율
A6: 2. 보험료기준 : 2013년 11월 보험료 기준, 본인부담액 기준 | P6: 0.02945 | Q6: 0.02995 | R6: 1.017
A7: 3. 최고보험료 : 각 구간별로 가장 높은 보험료 금액
K8: (단위: 가입(세대)수, 원) | R8: *자동계산(만지지 마세요)
A9: 구성비 | B9: 직장가입자 | H9: 지역가입자 | N9: 비고 | R9: 2014년도 직장 | S9: 2014년도 지역 | T9: 2014년도 혼합
B10: 가입자수(a) | C10: 총보험료(b) | D10: 평균소득 | E10: 평균보험료(b/a) | F10: 최고소득 | G10: 최고보험료 | H10: 세대수(a) | I10: 총보험료(b) | J10: 평균점수 | K10: 평균보험료(b/a) | L10: 최고점수 | M10: 최고 보험료 | R10: 평균보험료 산출 | S10: 평균보험료 산출 | T10: 보험료 산출
A11: 합계
A12: ~0.5% | B12: 69091 | C12: 710776140 | D12: 341,716 | E12: 10287.53586 | F12: 403400 | G12: 11880 | H12: 37147 | I12: 74294000 | J12: 20.34629984 | K12: 2000 | L12: 312 | M12: 2000 | R12: =ROUND(D12*$Q$6,0) -> 10,234 | S12: =ROUND(K12*$R$6,0) -> 2,034 | T12: =R13 -> 13,953
A13: ~1% | B13: 69092 | C13: 947625080 | D13: 465,881 | E13: 13715.4096 | F13: 500000 | G13: 14720 | H13: 37148 | I13: 88547970 | J13: 21.38023581 | K13: 2383.653763 | L13: 1893 | M13: 2420 | R13: 13,953 | S13: =ROUND(K13*$R$6,0) -> 2,424 | T13: =R14 -> 15,741
A14: ~1.5% | B14: 69091 | C14: 1070104010 | D14: 525,592 | E14: 15488.32713 | F14: 568620 | G14: 16740 | H14: 37147 | I14: 91236940 | J14: 31.3914448 | K14: 2456.105204 | L14: 3771 | M14: 2700 | R14: 15,741 | S14: 2,498 | T14: 17,935
A15: ~2% | B15: 69092 | C15: 1218333590 | D15: 598,841 | E15: 17633.49722 | F15: 625296 | G15: 18410 | H15: 37148 | I15: 101296860 | J15: 28.70859804 | K15: 2726.845591 | L15: 2524 | M15: 2760 | R15: 17,935 | S15: 2,773 | T15: 19,698
A16: ~2.5% | B16: 69092 | C16: 1337945580 | D16: 657,701 | E16: 19364.69606 | F16: 1000000 | G16: 20510 | H16: 37147 | I16: 112504230 | J16: 28.0732226 | K16: 3028.622231 | L16: 1907 | M16: 3450 | R16: 19,698 | S16: 3,080 | T16: 20,972
A17: ~3% | B17: 69091 | C17: 1424619910 | D17: 700,225 | E17: 20619.47157 | F17: 708333 | G17: 20860 | H17: 37148 | I17: 128160600 | J17: 20 | K17: 3450 | L17: 20 | M17: 3450 | R17: 20,972 | S17: 3,509 | T17: 22,041
A18: ~3.5% | B18: 69092 | C18: 1497013390 | D18: 735,910 | E18: 21666.95696 | F18: 758335 | G18: 22330 | H18: 37147 | I18: 128157150 | J18: 20 | K18: 3450 | L18: 20 | M18: 3450 | R18: 22,041 | S18: 3,509 | T18: 23,463
A19: ~4% | B19: 69092 | C19: 1594042790 | D19: 783,389 | E19: 23071.30768 | F19: 800000 | G19: 23560 | H19: 37148 | I19: 135026930 | J19: 76.34507914 | K19: 3634.837138 | L19: 6924 | M19: 3870 | R19: 23,463 | S19: 3,697 | T19: 23,960
A20: ~4.5% | B20: 69091 | C20: 1627783960 | D20: 800,000 | E20: 23560 | F20: 800000 | G20: 23560 | H20: 37147 | I20: 164228730 | J20: 49.07637225 | K20: 4421.049614 | L20: 3205 | M20: 4660 | R20: 23,960 | S20: 4,496 | T20: 24,620
A21: ~5% | B21: 69092 | C21: 1672444910 | D21: 822,040 | E21: 24206.05729 | F21: 847844 | G21: 24960 | H21: 37148 | I21: 192023850 | J21: 53.66278131 | K21: 5169.157155 | L21: 12915 | M21: 5700 | R21: 24,620 | S21: 5,257 | T21: 25,757
A22: ~5.5% | B22: 69091 | C22: 1749703800 | D22: 859,995 | E22: 25324.62694 | F22: 880000 | G22: 25910 | H22: 37147 | I22: 224349120 | J22: 56.59579508 | K22: 6039.494979 | L22: 1430 | M22: 6530 | R22: 25,757 | S22: 6,142 | T22: 26,835
A23: ~6% | B23: 69092 | C23: 1822760630 | D23: 895,979 | E23: 26381.6452 | F23: 900000 | G23: 26500 | H23: 37148 | I23: 242576440 | J23: 54 | K23: 6530 | L23: 54 | M23: 6530 | R23: 26,835 | S23: 6,641 | T23: 26,955
A24: ~6.5% | B24: 69092 | C24: 1830938000 | D24: 900,000 | E24: 26500 | F24: 900000 | G24: 26500 | H24: 37147 | I24: 249772890 | J24: 63.33808921 | K24: 6723.904757 | L24: 2732 | M24: 7460 | R24: 26,955 | S24: 6,838 | T24: 27,321
A25: ~7% | B25: 69091 | C25: 1855883750 | D25: 912,216 | E25: 26861.43998 | F25: 930000 | G25: 27380 | H25: 37148 | I25: 279979870 | J25: 55.73476365 | K25: 7536.876009 | L25: 521 | M25: 7550 | R25: 27,321 | S25: 7,665 | T25: 28,250
A26: ~7.5% | B26: 69092 | C26: 1918794860 | D26: 943,225 | E26: 27771.59237 | F26: 950000 | G26: 27970 | H26: 37147 | I26: 281677250 | J26: 50.57003257 | K26: 7582.772498 | L26: 2746 | M26: 7590 | R26: 28,250 | S26: 7,712 | T26: 28,788
A27: ~8% | B27: 69092 | C27: 1955564390 | D27: 961,213 | E27: 28303.77453 | F27: 972566 | G27: 28640 | H27: 37148 | I27: 287263360 | J27: 67.44955314 | K27: 7732.942823 | L27: 12141 | M27: 7980 | R27: 28,788 | S27: 7,864 | T27: 29,411
A28: ~8.5% | B28: 69091 | C28: 1997845370 | D28: 981,998 | E28: 28916.14494 | F28: 992989 | G28: 29240 | H28: 37147 | I28: 309263200 | J28: 74.35717555 | K28: 8325.388322 | L28: 2398 | M28: 8640 | R28: 29,411 | S28: 8,467 | T28: 29,932
A29: ~9% | B29: 69092 | C29: 2033501110 | D29: 999,408 | E29: 29431.7882 | F29: 1000000 | G29: 29450 | H29: 37148 | I29: 333710800 | J29: 81.63736944 | K29: 8983.2777 | L29: 1099 | M29: 9160 | R29: 29,932 | S29: 9,136 | T29: 29,950
A30: ~9.5% | B30: 69091 | C30: 2034729950 | D30: 1,000,000 | E30: 29450 | F30: 1000000 | G30: 29450 | H30: 37147 | I30: 346003800 | J30: 72.11220287 | K30: 9314.448004 | L30: 1819 | M30: 9670 | R30: 29,950 | S30: 9,473 | T30: 29,950
A31: ~10% | B31: 69092 | C31: 2034759400 | D31: 1,000,000 | E31: 29450 | F31: 1000000 | G31: 29450 | H31: 37148 | I31: 359221160 | J31: 56 | K31: 9670 | L31: 56 | M31: 9670 | R31: 29,950 | S31: 9,834 | T31: 29,950
A32: ~10.5% | B32: 69092 | C32: 2034759400 | D32: 1,000,000 | E32: 29450 | F32: 1000000 | G32: 29450 | H32: 37147 | I32: 359211490 | J32: 56 | K32: 9670 | L32: 56 | M32: 9670 | R32: 29,950 | S32: 9,834 | T32: 29,951
A33: ~11% | B33: 69091 | C33: 2034762960 | D33: 1,000,022 | E33: 29450.47778 | F33: 1001250 | G33: 29480 | H33: 37148 | I33: 359221160 | J33: 56 | K33: 9670 | L33: 56 | M33: 9670 | R33: 29,951 | S33: 9,834 | T33: 30,314
A34: ~11.5% | B34: 69092 | C34: 2059226830 | D34: 1,012,164 | E34: 29804.12826 | F34: 1015740 | G34: 29910 | H34: 37147 | I34: 365904240 | J34: 117.0461141 | K34: 9850.169327 | L34: 7816 | M34: 10510 | R34: 30,314 | S34: 10,018 | T34: 30,445
A35: ~12% | B35: 69092 | C35: 2068095530 | D35: 1,016,512 | E35: 29932.489 | F35: 1020000 | G35: 30030 | H35: 37148 | I35: 402198230 | J35: 87.53940993 | K35: 10826.91477 | L35: 1162 | M35: 10910 | R35: 30,445 | S35: 11,011 | T35: 30,586
A36: ~12.5% | B36: 69091 | C36: 2077373830 | D36: 1,021,230 | E36: 30067.21324 | F36: 1028000 | G36: 30270 | H36: 37148 | I36: 421841060 | J36: 94.3773016 | K36: 11355.68698 | L36: 1984 | M36: 11740 | R36: 30,586 | S36: 11,549 | T36: 31,054
A37: ~13% | B37: 69092 | C37: 2109392460 | D37: 1,036,849 | E37: 30530.19829 | F37: 1046770 | G37: 30820 | H37: 37147 | I37: 436105780 | J37: 68 | K37: 11740 | L37: 68 | M37: 11740 | R37: 31,054 | S37: 11,940 | T37: 31,445
A38: ~13.5% | B38: 69091 | C38: 2136082630 | D38: 1,049,907 | E38: 30916.94475 | F38: 1051760 | G38: 30970 | H38: 37148 | I38: 436117520 | J38: 68 | K38: 11740 | L38: 68 | M38: 11740 | R38: 31,445 | S38: 11,940 | T38: 31,870
A39: ~14% | B39: 69092 | C39: 2164994370 | D39: 1,064,120 | E39: 31334.95007 | F39: 1075695 | G39: 31670 | H39: 37147 | I39: 436725950 | J39: 119.9239508 | K39: 11756.69502 | L39: 2858 | M39: 12090 | R39: 31,870 | S39: 11,957 | T39: 32,550
A40: ~14.5% | B40: 69092 | C40: 2211071770 | D40: 1,086,821 | E40: 32001.84927 | F40: 1098360 | G40: 32340 | H40: 37148 | I40: 449263200 | J40: 99.89520297 | K40: 12093.87316 | L40: 2518 | M40: 12130 | R40: 32,550 | S40: 12,299 | T40: 32,941
A41: ~15% | B41: 69091 | C41: 2237612500 | D41: 1,099,882 | E41: 32386.4541 | F41: 1100000 | G41: 32390 | H41: 37147 | I41: 460504960 | J41: 105.4020513 | K41: 12396.82774 | L41: 1505 | M41: 12700 | R41: 32,941 | S41: 12,608 | T41: 32,945
A42: ~15.5% | B42: 69092 | C42: 2237889880 | D42: 1,100,000 | E42: 32390 | F42: 1100000 | G42: 32390 | H42: 37148 | I42: 497388660 | J42: 87.6093464 | K42: 13389.37924 | L42: 2650 | M42: 13470 | R42: 32,945 | S42: 13,617 | T42: 32,945
A43: ~16% | B43: 69092 | C43: 2237889880 | D43: 1,100,000 | E43: 32390 | F43: 1100000 | G43: 32390 | H43: 37147 | I43: 500795290 | J43: 87.26575497 | K43: 13481.44642 | L43: 1396 | M43: 13540 | R43: 32,945 | S43: 13,711 | T43: 33,353
A44: ~16.5% | B44: 69091 | C44: 2265749970 | D44: 1,113,611 | E44: 32793.70642 | F44: 1125204 | G44: 33130 | H44: 37148 | I44: 514251690 | J44: 106.6026973 | K44: 13843.32104 | L44: 2089 | M44: 13870 | R44: =ROUND(D44*$Q$6,0) -> 33,353 | S44: 14,079 | T44: 34,065
A45: ~17% | B45: 69092 | C45: 2313940500 | D45: 1,137,381 | E45: 33490.71528 | F45: 1150000 | G45: 33860 | H45: 37147 | I45: 517926060 | J45: 94.70447142 | K45: 13942.60802 | L45: 912 | M45: 13980 | R45: 34,065 | S45: 14,180 | T45: 34,572
A46: ~17.5% | B46: 69091 | C46: 2348361080 | D46: 1,154,338 | E46: 33989.39196 | F46: 1164847 | G46: 34300 | H46: 37148 | I46: 532083570 | J46: 118.6341391 | K46: 14323.34365 | L46: 3113 | M46: 15110 | R46: 34,572 | S46: 14,567 | T46: 35,197
A47: ~18% | B47: 69092 | C47: 2390946790 | D47: 1,175,183 | E47: 34605.2624 | F47: 1187099 | G47: 34960 | H47: 37147 | I47: 573592700 | J47: 108.8695722 | K47: 15441.1581 | L47: 1893 | M47: 15540 | R47: 35,197 | S47: 15,704 | T47: 35,830
A48: ~18.5% | B48: 69092 | C48: 2434227410 | D48: 1,196,332 | E48: 35231.68254 | F48: 1200000 | G48: 35340 | H48: 37148 | I48: 577279920 | J48: 90 | K48: 15540 | L48: 90 | M48: 15540 | R48: 35,830 | S48: 15,804 | T48: 35,940
A49: ~19% | B49: 69091 | C49: 2441675940 | D49: 1,200,000 | E49: 35340 | F49: 1200000 | G49: 35340 | H49: 37147 | I49: 577264380 | J49: 90.6153929 | K49: 15540 | L49: 151 | M49: 15540 | R49: 35,940 | S49: 15,804 | T49: 35,940
A50: ~19.5% | B50: 69092 | C50: 2441711280 | D50: 1,200,000 | E50: 35340 | F50: 1200000 | G50: 35340 | H50: 37148 | I50: 589567190 | J50: 109.4276408 | K50: 15870.76532 | L50: 5171 | M50: 16060 | R50: 35,940 | S50: 16,141 | T50: 35,940
A51: ~20% | B51: 69092 | C51: 2441711280 | D51: 1,200,000 | E51: 35340 | F51: 1200000 | G51: 35340 | H51: 37147 | I51: 611367100 | J51: 150.2959055 | K51: 16458.04776 | L51: 3880 | M51: 16980 | R51: 35,940 | S51: 16,738 | T51: 35,940
A52: ~20.5% | B52: 69091 | C52: 2441675940 | D52: 1,200,000 | E52: 35340 | F52: 1200000 | G52: 35340 | H52: 37148 | I52: 648665730 | J52: 127.3837622 | K52: 17461.65958 | L52: 2946 | M52: 17780 | R52: 35,940 | S52: 17,759 | T52: 36,282
A53: ~21% | B53: 69092 | C53: 2464627950 | D53: 1,211,433 | E53: 35671.68341 | F53: 1223316 | G53: 36020 | H53: 37147 | I53: 660473660 | J53: 103 | K53: 17780 | L53: 103 | M53: 17780 | R53: 36,282 | S53: 18,082 | T53: 36,947
A54: ~21.5% | B54: 69091 | C54: 2510221220 | D54: 1,233,638 | E54: 36332.10143 | F54: 1244363 | G54: 36640 | H54: 37148 | I54: 660491440 | J54: 103 | K54: 17780 | L54: 103 | M54: 17780 | R54: 36,947 | S54: 18,082 | T54: 37,432
A55: ~22% | B55: 69092 | C55: 2542818820 | D55: 1,249,802 | E55: 36803.3755 | F55: 1254153 | G55: 36930 | H55: 37147 | I55: 660473660 | J55: 103 | K55: 17780 | L55: 103 | M55: 17780 | R55: 37,432 | S55: 18,082 | T55: 37,900
A56: ~22.5% | B56: 69092 | C56: 2574499100 | D56: 1,265,429 | E56: 37261.89863 | F56: 1275833 | G56: 37570 | H56: 37148 | I56: 660491440 | J56: 103 | K56: 17780 | L56: 103 | M56: 17780 | R56: 37,900 | S56: 18,082 | T56: 38,523
A57: ~23% | B57: 69091 | C57: 2616823730 | D57: 1,286,237 | E57: 37875.03047 | F57: 1297553 | G57: 38210 | H57: 37147 | I57: 660473660 | J57: 103 | K57: 17780 | L57: 103 | M57: 17780 | R57: 38,523 | S57: 18,082 | T57: 38,931
A58: ~23.5% | B58: 69092 | C58: 2644653080 | D58: 1,299,861 | E58: 38277.26915 | F58: 1300000 | G58: 38280 | H58: 37148 | I58: 664298930 | J58: 129.5842306 | K58: 17882.49515 | L58: 1604 | M58: 18050 | R58: 38,931 | S58: 18,186 | T58: 38,935
A59: ~24% | B59: 69092 | C59: 2644841760 | D59: 1,300,000 | E59: 38280 | F59: 1300000 | G59: 38280 | H59: 37147 | I59: 680022680 | J59: 146.2753385 | K59: 18306.26107 | L59: 12575 | M59: 18570 | R59: 38,935 | S59: 18,617 | T59: 39,083
A60: ~24.5% | B60: 69091 | C60: 2654825170 | D60: 1,304,925 | E60: 38425.05059 | F60: 1314575 | G60: 38710 | H60: 37148 | I60: 717150160 | J60: 157.2554108 | K60: 19305.21589 | L60: 2070 | M60: 19860 | R60: 39,083 | S60: 19,633 | T60: 39,661
A61: ~25% | B61: 69092 | C61: 2694150240 | D61: 1,324,228 | E61: 38993.6641 | F61: 1333333 | G61: 39260 | H61: 37148 | I61: 742799550 | J61: 131.4353397 | K61: 19995.68079 | L61: 1183 | M61: 20200 | R61: 39,661 | S61: 20,336 | T61: 40,244
A62: ~25.5% | B62: 69091 | C62: 2733683390 | D62: 1,343,708 | E62: 39566.41806 | F62: 1350000 | G62: 39750 | H62: 37147 | I62: 761978170 | J62: 176.9133443 | K62: 20512.50895 | L62: 3949 | M62: 21030 | R62: 40,244 | S62: 20,861 | T62: 40,705
A63: ~26% | B63: 69092 | C63: 2765086210 | D63: 1,359,106 | E63: 40020.35272 | F63: 1370000 | G63: 40340 | H63: 37148 | I63: 798110340 | J63: 138.7198503 | K63: 21484.61128 | L63: 1999 | M63: 21580 | R63: 40,705 | S63: 21,850 | T63: 41,343
A64: ~26.5% | B64: 69092 | C64: 2808439610 | D64: 1,380,398 | E64: 40647.82623 | F64: 1391600 | G64: 40980 | H64: 37147 | I64: 809391360 | J64: 147.1886559 | K64: 21788.87555 | L64: 2361 | M64: 22100 | R64: 41,343 | S64: 22,159 | T64: 41,874
A65: ~27% | B65: 69091 | C65: 2844874570 | D65: 1,398,144 | E65: 41175.76197 | F65: 1400000 | G65: 41230 | H65: 37148 | I65: 827916940 | J65: 162.8267471 | K65: 22286.98557 | L65: 2177 | M65: 22710 | R65: 41,874 | S65: 22,666 | T65: 41,930
A66: ~27.5% | B66: 69092 | C66: 2848663160 | D66: 1,400,000 | E66: 41230 | F66: 1400000 | G66: 41230 | H66: 37147 | I66: 859342060 | J66: 181.6079899 | K66: 23133.5521 | L66: 1478 | M66: 23650 | R66: 41,930 | S66: 23,527 | T66: 41,993
A67: ~28% | B67: 69092 | C67: 2852819950 | D67: 1,402,112 | E67: 41290.16312 | F67: 1410000 | G67: 41520 | H67: 37148 | I67: 878550200 | J67: 137 | K67: 23650 | L67: 137 | M67: 23650 | R67: 41,993 | S67: 24,052 | T67: 42,541
A68: ~28.5% | B68: 69091 | C68: 2889799010 | D68: 1,420,406 | E68: 41825.98327 | F68: 1430000 | G68: 42110 | H68: 37147 | I68: 878526550 | J68: 137 | K68: 23650 | L68: 137 | M68: 23650 | R68: 42,541 | S68: 24,052 | T68: 43,067
A69: ~29% | B69: 69092 | C69: 2925595670 | D69: 1,437,975 | E69: 42343.47927 | F69: 1448750 | G69: 42660 | H69: 37148 | I69: 879060000 | J69: 150.2614676 | K69: 23663.72348 | L69: 1888 | M69: 23820 | R69: 43,067 | S69: 24,066 | T69: 43,570
A70: ~29.5% | B70: 69091 | C70: 2959728850 | D70: 1,454,747 | E70: 42838.12436 | F70: 1465000 | G70: 43140 | H70: 37147 | I70: 894113480 | J70: 160.5158425 | K70: 24069.60131 | L70: 1989 | M70: 24350 | R70: 43,570 | S70: 24,479 | T70: 44,196
A71: ~30% | B71: 69092 | C71: 3002582630 | D71: 1,475,672 | E71: 43457.74663 | F71: 1486500 | G71: 43770 | H71: 37148 | I71: 922220320 | J71: 190.014698 | K71: 24825.57123 | L71: 12334 | M71: 25210 | R71: 44,196 | S71: 25,248 | T71: 44,821
A72: ~30.5% | B72: 69092 | C72: 3044732780 | D72: 1,496,531 | E72: 44067.80496 | F72: 1500000 | G72: 44170 | H72: 37147 | I72: 950154950 | J72: 166.1097801 | K72: 25578.24185 | L72: 2967 | M72: 25730 | R72: 44,821 | S72: 26,013 | T72: 44,925
A73: ~31% | B73: 69091 | C73: 3051749470 | D73: 1,500,000 | E73: 44170 | F73: 1500000 | G73: 44170 | H73: 37148 | I73: 955818040 | J73: 149 | K73: 25730 | L73: 149 | M73: 25730 | R73: 44,925 | S73: 26,167 | T73: 44,925
A74: ~31.5% | B74: 69092 | C74: 3051793640 | D74: 1,500,000 | E74: 44170 | F74: 1500000 | G74: 44170 | H74: 37147 | I74: 956279090 | J74: 163.5610413 | K74: 25743.10415 | L74: 2445 | M74: 25870 | R74: 44,925 | S74: 26,181 | T74: 44,925
A75: ~32% | B75: 69092 | C75: 3051793640 | D75: 1,500,000 | E75: 44170 | F75: 1500000 | G75: 44170 | H75: 37148 | I75: 968652690 | J75: 185.686928 | K75: 26075.50043 | L75: 1390 | M75: 26420 | R75: 44,925 | S75: 26,519 | T75: 45,105
A76: ~32.5% | B76: 69091 | C76: 3064004680 | D76: 1,506,026 | E76: 44347.37781 | F76: 1516666 | G76: 44660 | H76: 37147 | I76: 997534090 | J76: 210.3289633 | K76: 26853.69182 | L76: 1651 | M76: 27460 | R76: =ROUND(D76*$Q$6,0) -> 45,105 | S76: 27,310 | T76: 45,722
A77: ~33% | B77: 69092 | C77: 3106090630 | D77: 1,526,622 | E77: 44955.86508 | F77: 1537086 | G77: 45260 | H77: 37148 | I77: 1037438990 | J77: 197.7463659 | K77: 27927.18289 | L77: 2070 | M77: 28150 | R77: 45,722 | S77: =ROUND(K77*$R$6,0) -> 28,402 | T77: =R78 -> 46,303
A78: ~33.5% | B78: 69091 | C78: 3145343920 | D78: 1,546,020 | E78: 45524.65473 | F78: 1553333 | G78: 45740 | H78: 37147 | I78: 1057590620 | J78: 211.2994589 | K78: 28470.41807 | L78: 2352 | M78: 28890 | R78: 46,303 | S78: 28,954 | T78: 46,837
A79: ~34% | B79: 69092 | C79: 3181663660 | D79: 1,563,833 | E79: 46049.66798 | F79: 1573040 | G79: 46320 | H79: 37148 | I79: 1090620380 | J79: 204.4918434 | K79: 29358.79132 | L79: 3035 | M79: 29530 | R79: 46,837 | S79: 29,858 | T79: 47,442
A80: ~34.5% | B80: 69092 | C80: 3222791030 | D80: 1,584,036 | E80: 46644.92315 | F80: 1595352 | G80: 46980 | H80: 37147 | I80: 1105118670 | J80: 194.7097208 | K80: 29749.87671 | L80: 1466 | M80: 30050 | R80: 47,442 | S80: 30,256 | T80: 47,908
A81: ~35% | B81: 69091 | C81: 3254785860 | D81: 1,599,605 | E81: 47108.68073 | F81: 1600000 | G81: 47120 | H81: 37148 | I81: 1125882820 | J81: 222.5989824 | K81: 30308.03327 | L81: 1203 | M81: 30740 | R81: 47,908 | S81: 30,823 | T81: 47,985
A82: ~35.5% | B82: 69092 | C82: 3259901020 | D82: 1,602,174 | E82: 47182.03294 | F82: 1610273 | G82: 47420 | H82: 37147 | I82: 1161794410 | J82: 221.8596926 | K82: 31275.59184 | L82: 3802 | M82: 31600 | R82: 47,985 | S82: 31,807 | T82: 48,572
A83: ~36% | B83: 69092 | C83: 3299670650 | D83: 1,621,774 | E83: 47757.63692 | F83: 1633313 | G83: 48100 | H83: 37148 | I83: 1174374120 | J83: 195.4695004 | K83: 31613.38753 | L83: 1169 | M83: 31780 | R83: 48,572 | S83: 32,151 | T83: 49,237
A84: ~36.5% | B84: 69091 | C84: 3344766520 | D84: 1,643,981 | E84: 48411.03067 | F84: 1650000 | G84: 48590 | H84: 37147 | I84: 1189774160 | J84: 232.870003 | K84: 32028.80879 | L84: 1487 | M84: 32290 | R84: 49,237 | S84: 32,573 | T84: 49,716
A85: ~37% | B85: 69092 | C85: 3377297490 | D85: 1,659,960 | E85: 48881.16555 | F85: 1669298 | G85: 49160 | H85: 37148 | I85: 1219173680 | J85: 249.3842199 | K85: 32819.36255 | L85: 1475 | M85: 33270 | R85: 49,716 | S85: 33,377 | T85: 50,349
A86: ~37.5% | B86: 69091 | C86: 3420465450 | D86: 1,681,105 | E86: 49506.67164 | F86: 1692980 | G86: 49850 | H86: 37148 | I86: 1255972160 | J86: 224.5882416 | K86: 33809.9537 | L86: 2257 | M86: 34020 | R86: 50,349 | S86: 34,385 | T86: 50,890
A87: ~38% | B87: 69092 | C87: 3457065980 | D87: 1,699,177 | E87: 50035.69125 | F87: 1700000 | G87: 50060 | H87: 37147 | I87: 1279282380 | J87: 256.6570113 | K87: 34438.37672 | L87: 1569 | M87: 34880 | R87: 50,890 | S87: 35,024 | T87: 50,917
A88: ~38.5% | B88: 69092 | C88: 3458858200 | D88: 1,700,056 | E88: 50061.63087 | F88: 1701809 | G88: 50110 | H88: 37148 | I88: 1310295090 | J88: 254.0623183 | K88: 35272.29164 | L88: 1566 | M88: 35740 | R88: 50,917 | S88: 35,872 | T88: 51,352
A89: ~39% | B89: 69091 | C89: 3488699620 | D89: 1,714,603 | E89: 50494.27017 | F89: 2371599 | G89: 50860 | H89: 37147 | I89: 1341313700 | J89: 234.8670418 | K89: 36108.26446 | L89: 1241 | M89: 36260 | R89: 51,352 | S89: 36,722 | T89: 52,041
A90: ~39.5% | B90: 69092 | C90: 3535226690 | D90: 1,737,596 | E90: 51166.94682 | F90: 1749570 | G90: 51520 | H90: 37148 | I90: 1359083830 | J90: 268.3921611 | K90: 36585.65279 | L90: 2367 | M90: 36950 | R90: 52,041 | S90: 37,208 | T90: 52,563
A91: ~40% | B91: 69092 | C91: 3570623970 | D91: 1,755,011 | E91: 51679.26779 | F91: 1766363 | G91: 52010 | H91: 37147 | I91: 1387760580 | J91: 277.1573209 | K91: 37358.61792 | L91: 1397 | M91: 37820 | R91: 52,563 | S91: 37,994 | T91: 53,261
A92: ~40.5% | B92: 69091 | C92: 3618042760 | D92: 1,778,319 | E92: 52366.33947 | F92: 1791503 | G92: 52750 | H92: 37148 | I92: 1424042150 | J92: 268.2141434 | K92: 38334.28852 | L92: 1218 | M92: 38680 | R92: 53,261 | S92: 38,986 | T92: 53,871
A93: ~41% | B93: 69092 | C93: 3659852420 | D93: 1,798,687 | E93: 52970.7118 | F93: 1800000 | G93: 53010 | H93: 37147 | I93: 1448143130 | J93: 278.4256333 | K93: 38984.12066 | L93: 5205 | M93: 39370 | R93: 53,871 | S93: 39,647 | T93: 53,919
A94: ~41.5% | B94: 69091 | C94: 3663090510 | D94: 1,800,307 | E94: 53018.34552 | F94: 1804228 | G94: 53130 | H94: 37148 | I94: 1482692400 | J94: 286.1299397 | K94: 39913.11511 | L94: 2255 | M94: 40410 | R94: 53,919 | S94: 40,592 | T94: 54,416
A95: ~42% | B95: 69092 | C95: 3696610130 | D95: 1,816,902 | E95: 53502.72289 | F95: 1829206 | G95: 53870 | H95: 37147 | I95: 1510078310 | J95: 315.1536059 | K95: 40651.4203 | L95: 40560 | M95: 41100 | R95: 54,416 | S95: 41,342 | T95: 55,100
A96: ~42.5% | B96: 69092 | C96: 3743084550 | D96: 1,839,724 | E96: 54175.36835 | F96: 1850000 | G96: 54480 | H96: 37148 | I96: 1542290720 | J96: 302.8223054 | K96: 41517.46312 | L96: 1589 | M96: 42130 | R96: 55,100 | S96: 42,223 | T96: 55,714
A97: ~43% | B97: 69091 | C97: 3784757900 | D97: 1,860,229 | E97: 54779.31858 | F97: 1872222 | G97: 55130 | H97: 37147 | I97: 1571729190 | J97: 269.9819905 | K97: 42311.06657 | L97: 975 | M97: 42480 | R97: 55,714 | S97: 43,030 | T97: 56,469
A98: ~43.5% | B98: 69092 | C98: 3836094760 | D98: 1,885,458 | E98: 55521.5475 | F98: 1900000 | G98: 55950 | H98: 37148 | I98: 1599791230 | J98: 303.5970443 | K98: 43065.33945 | L98: 13235 | M98: 43520 | R98: 56,469 | S98: 43,797 | T98: 56,905
A99: ~44% | B99: 69092 | C99: 3865697400 | D99: 1,900,000 | E99: 55950 | F99: 1900000 | G99: 55950 | H99: 37147 | I99: 1633680290 | J99: 318.0562899 | K99: 43978.79479 | L99: 1984 | M99: 44460 | R99: 56,905 | S99: 44,726 | T99: 57,105
A100: ~44.5% | B100: 69091 | C100: 3879233080 | D100: 1,906,681 | E100: 56146.7207 | F100: 1917977 | G100: 56480 | H100: 37148 | I100: 1666607850 | J100: 328.1814364 | K100: 44863.99941 | L100: 1493 | M100: 45260 | R100: 57,105 | S100: 45,627 | T100: 57,828
A101: ~45% | B101: 69092 | C101: 3928402970 | D101: 1,930,811 | E101: 56857.56629 | F101: 1944547 | G101: 57260 | H101: 37147 | I101: 1698074620 | J101: 322.0152906 | K101: 45712.29494 | L101: 1948 | M101: 46300 | R101: 57,828 | S101: 46,489 | T101: 58,590
A102: ~45.5% | B102: 69091 | C102: 3980115820 | D102: 1,956,276 | E102: 57606.8637 | F102: 1969833 | G102: 58010 | H102: 37148 | I102: 1734734140 | J102: 342.0079681 | K102: 46697.91483 | L102: 3320 | M102: 47150 | R102: 58,590 | S102: 47,492 | T102: 59,375
A103: ~46% | B103: 69092 | C103: 4033463440 | D103: 1,982,457 | E103: 58378.15434 | F103: 1995933 | G103: 58780 | H103: 37147 | I103: 1770270480 | J103: 341.5630334 | K103: 47655.81285 | L103: 1902 | M103: 48180 | R103: 59,375 | S103: 48,466 | T103: 59,893
A104: ~46.5% | B104: 69092 | C104: 4069001080 | D104: 1,999,764 | E104: 58892.5068 | F104: 2000000 | G104: 58900 | H104: 37148 | I104: 1803809210 | J104: 348.7745235 | K104: 48557.37079 | L104: 1536 | M104: 49080 | R104: 59,893 | S104: 49,383 | T104: 59,900
A105: ~47% | B105: 69091 | C105: 4069459900 | D105: 2,000,000 | E105: 58900 | F105: 2000000 | G105: 58900 | H105: 37147 | I105: 1839397770 | J105: 336.2689854 | K105: 49516.72463 | L105: 1367 | M105: 49740 | R105: 59,900 | S105: 50,359 | T105: 59,940
A106: ~47.5% | B106: 69092 | C106: 4072112100 | D106: 2,001,326 | E106: 58937.53401 | F106: 2008373 | G106: 59140 | H106: 37148 | I106: 1870341890 | J106: 349.1510714 | K106: 50348.38726 | L106: 1633 | M106: 50770 | R106: 59,940 | S106: 51,204 | T106: 60,574
A107: ~48% | B107: 69092 | C107: 4115005210 | D107: 2,022,517 | E107: 59558.34554 | F107: 2036100 | G107: 59960 | H107: 37147 | I107: 1905951590 | J107: 381.2329394 | K107: 51308.35841 | L107: 1224 | M107: 51810 | R107: 60,574 | S107: 52,181 | T107: 61,372
A108: ~48.5% | B108: 69091 | C108: 4169119900 | D108: 2,049,147 | E108: 60342.44547 | F108: 2061792 | G108: 60710 | H108: 37148 | I108: 1939993990 | J108: 368.5028535 | K108: 52223.37649 | L108: 3641 | M108: 52670 | R108: =ROUND(D108*$Q$6,0) -> 61,372 | S108: 53,111 | T108: 62,121
A109: ~49% | B109: 69092 | C109: 4220089480 | D109: 2,074,162 | E109: 61079.27806 | F109: 2085000 | G109: 61400 | H109: 37147 | I109: 1979090230 | J109: 380.2858104 | K109: 53277.25604 | L109: 1790 | M109: 53700 | R109: 62,121 | S109: 54,183 | T109: 62,787
A110: ~49.5% | B110: 69091 | C110: 4265246690 | D110: 2,096,392 | E110: 61733.75244 | F110: 2100000 | G110: 61840 | H110: 37148 | I110: 2010522420 | J110: 392.7603101 | K110: 54121.95596 | L110: 1925 | M110: 54660 | R110: 62,787 | S110: 55,042 | T110: 63,226
A111: ~50% | B111: 69092 | C111: 4295130510 | D111: 2,111,042 | E111: 62165.38109 | F111: 2125000 | G111: 62580 | H111: 37148 | I111: 2052943520 | J111: 411.3805858 | K111: 55263.90438 | L111: 1811 | M111: 55870 | R111: 63,226 | S111: 56,203 | T111: 64,087
A112: ~50.5% | B112: 69092 | C112: 4353564530 | D112: 2,139,783 | E112: 63011.12328 | F112: 2150382 | G112: 63320 | H112: 37147 | I112: 2093224150 | J112: 399.4359975 | K112: 56349.74964 | L112: 56780 | M112: 56820 | R112: 64,087 | S112: 57,308 | T112: 64,818
A113: ~51% | B113: 69091 | C113: 4403242610 | D113: 2,164,216 | E113: 63731.05918 | F113: 2177770 | G113: 64130 | H113: 37148 | I113: 2135457320 | J113: 409.2705664 | K113: 57485.12221 | L113: 2715 | M113: 58020 | R113: 64,818 | S113: 58,462 | T113: 65,650
A114: ~51.5% | B114: 69092 | C114: 4459936030 | D114: 2,191,994 | E114: 64550.68648 | F114: 2200000 | G114: 64790 | H114: 37147 | I114: 2168690310 | J114: 414.5549035 | K114: 58381.30428 | L114: 1852 | M114: 59000 | R114: 65,650 | S114: 59,374 | T114: 65,927
A115: ~52% | B115: 69092 | C115: 4478903030 | D115: 2,201,244 | E115: 64825.20451 | F115: 2208013 | G115: 65020 | H115: 37148 | I115: 2216391260 | J115: 417.141515 | K115: 59663.81124 | L115: 1344 | M115: 60090 | R115: 65,927 | S115: 60,678 | T115: 66,559
A116: ~52.5% | B116: 69091 | C116: 4521525380 | D116: 2,222,333 | E116: 65443.04439 | F116: 2235544 | G116: 65830 | H116: 37147 | I116: 2254426130 | J116: 440.9850055 | K116: 60689.31892 | L116: 1368 | M116: 61420 | R116: 66,559 | S116: 61,721 | T116: 67,360
A117: ~53% | B117: 69092 | C117: 4576019650 | D117: 2,249,084 | E117: 66230.81761 | F117: 2261984 | G117: 66610 | H117: 37148 | I117: 2302604170 | J117: 426.9660816 | K117: 61984.60671 | L117: 12696 | M117: 62340 | R117: 67,360 | S117: 63,038 | T117: 68,222
A118: ~53.5% | B118: 69091 | C118: 4634476080 | D118: 2,277,858 | E118: 67077.855 | F118: 2293145 | G118: 67530 | H118: 37147 | I118: 2345621310 | J118: 480.1383961 | K118: 63144.29994 | L118: 1977 | M118: 63950 | R118: 68,222 | S118: 64,218 | T118: 68,874
A119: ~54% | B119: 69092 | C119: 4678881470 | D119: 2,299,647 | E119: 67719.5836 | F119: 2304600 | G119: 67870 | H119: 37148 | I119: 2395263060 | J119: 448.7350598 | K119: 64478.92376 | L119: 1656 | M119: 65110 | R119: 68,874 | S119: 65,575 | T119: 69,454
A120: ~54.5% | B120: 69092 | C120: 4718390670 | D120: 2,318,995 | E120: 68291.41825 | F120: 2333333 | G120: 68710 | H120: 37147 | I120: 2436471330 | J120: 456.2917059 | K120: 65589.98923 | L120: 3243 | M120: 66140 | R120: 69,454 | S120: 66,705 | T120: 70,294
A121: ~55% | B121: 69091 | C121: 4775342940 | D121: 2,347,059 | E121: 69116.71477 | F121: 2361312 | G121: 69530 | H121: 37148 | I121: 2473001420 | J121: 459.3505169 | K121: 66571.58986 | L121: 1531 | M121: 67090 | R121: 70,294 | S121: 67,703 | T121: 71,188
A122: ~55.5% | B122: 69092 | C122: 4836023300 | D122: 2,376,880 | E122: 69993.96891 | F122: 2393167 | G122: 70470 | H122: 37147 | I122: 2525279520 | J122: 487.700245 | K122: 67980.71231 | L122: 1074 | M122: 68560 | R122: 71,188 | S122: 69,136 | T122: 71,862
A123: ~56% | B123: 69092 | C123: 4882136630 | D123: 2,399,405 | E123: 70661.38815 | F123: 2401549 | G123: 70720 | H123: 37148 | I123: 2567183080 | J123: 488.8906536 | K123: 69106.89889 | L123: 1538 | M123: 69770 | R123: 71,862 | S123: 70,282 | T123: 72,403
A124: ~56.5% | B124: 69091 | C124: 4918590970 | D124: 2,417,470 | E124: 71190.03879 | F124: 2433000 | G124: 71650 | H124: 37147 | I124: 2612931160 | J124: 475.1839987 | K124: 70340.30097 | L124: 1405 | M124: 70630 | R124: 72,403 | S124: 71,536 | T124: 73,321
A125: ~57% | B125: 69092 | C125: 4980995490 | D125: 2,448,114 | E125: 72092.21748 | F125: 2463055 | G125: 72530 | H125: 37148 | I125: 2644698380 | J125: 513.7932056 | K125: 71193.56035 | L125: 8291 | M125: 72010 | R125: 73,321 | S125: 72,404 | T125: 74,266
A126: ~57.5% | B126: 69091 | C126: 5045120400 | D126: 2,479,675 | E126: 73021.38339 | F126: 2496803 | G126: 73530 | H126: 37147 | I126: 2696982200 | J126: 508.1532829 | K126: 72602.96121 | L126: 1993 | M126: 73150 | R126: 74,266 | S126: 73,837 | T126: 74,871
A127: ~58% | B127: 69092 | C127: 5086298460 | D127: 2,499,875 | E127: 73616.31535 | F127: 2500000 | G127: 73620 | H127: 37148 | I127: 2737624810 | J127: 518.4136696 | K127: 73695.07941 | L127: 2461 | M127: 74430 | R127: 74,871 | S127: 74,948 | T127: 75,051
A128: ~58.5% | B128: 69092 | C128: 5098481080 | D128: 2,505,862 | E128: 73792.63996 | F128: 2520000 | G128: 74210 | H128: 37147 | I128: 2780265200 | J128: 513.6192963 | K128: 74844.94576 | L128: 2679 | M128: 75440 | R128: 75,051 | S128: 76,117 | T128: 75,950
A129: ~59% | B129: 69091 | C129: 5159862220 | D129: 2,535,908 | E129: 74682.11808 | F129: 2550715 | G129: 75110 | H129: 37148 | I129: 2819018370 | J129: 531.6890815 | K129: 75886.14111 | L129: 2038 | M129: 76670 | R129: 75,950 | S129: 77,176 | T129: 76,909
A130: ~59.5% | B130: 69092 | C130: 5224737840 | D130: 2,567,920 | E130: 75620.01158 | F130: 2583400 | G130: 76080 | H130: 37147 | I130: 2863121160 | J130: 511.9932431 | K130: 77075.43436 | L130: 2752 | M130: 77590 | R130: 76,909 | S130: 78,386 | T130: 77,771
A131: ~60% | B131: 69092 | C131: 5283682420 | D131: 2,596,687 | E131: 76473.14335 | F131: 2607327 | G131: 76780 | H131: 37148 | I131: 2909961110 | J131: 556.0584419 | K131: 78334.26053 | L131: 2365 | M131: 79060 | R131: 77,771 | S131: 79,666 | T131: 78,595
A132: ~60.5% | B132: 69091 | C132: 5339212200 | D132: 2,624,208 | E132: 77277.96963 | F132: 2641328 | G132: 77780 | H132: 37147 | I132: 2952715500 | J132: 538.3146687 | K132: 79487.32065 | L132: 1627 | M132: 80130 | R132: 78,595 | S132: 80,839 | T132: 79,565
A133: ~61% | B133: 69092 | C133: 5405199460 | D133: 2,656,588 | E133: 78231.91484 | F133: 2670945 | G133: 78650 | H133: 37148 | I133: 2998220820 | J133: 519.6387962 | K133: 80710.15452 | L133: 1532 | M133: 81120 | R133: 79,565 | S133: 82,082 | T133: 80,509
A134: ~61.5% | B134: 69091 | C134: 5470144750 | D134: 2,688,097 | E134: 79173.04352 | F134: 2700000 | G134: 79510 | H134: 37147 | I134: 3019091090 | J134: 1280.291598 | K134: 81274.15646 | L134: 81120 | M134: 81680 | R134: 80,509 | S134: 82,656 | T134: 81,067
A135: ~62% | B135: 69092 | C135: 5507258620 | D135: 2,706,757 | E135: 79709.06357 | F135: 2722185 | G135: 80160 | H135: 37148 | I135: 3061287190 | J135: 569.9270486 | K135: 82407.86018 | L135: 8611 | M135: 83060 | R135: 81,067 | S135: 83,809 | T135: 82,032
A136: ~62.5% | B136: 69092 | C136: 5572753050 | D136: 2,738,962 | E136: 80656.9943 | F136: 2752271 | G136: 81050 | H136: 37148 | I136: 3105949520 | J136: 564.9054862 | K136: 83610.14106 | L136: 2243 | M136: 84270 | R136: 82,032 | S136: 85,032 | T136: 82,979
A137: ~63% | B137: 69091 | C137: 5637064240 | D137: 2,770,592 | E137: 81588.98033 | F137: 2788723 | G137: 82120 | H137: 37147 | I137: 3155664840 | J137: 569.0006999 | K137: 84950.73196 | L137: 1788 | M137: 85400 | R137: 82,979 | S137: 86,395 | T137: 83,867
A138: ~63.5% | B138: 69092 | C138: 5697820730 | D138: 2,800,245 | E138: 82467.15582 | F138: 2812541 | G138: 82820 | H138: 37148 | I138: 3199492220 | J138: 594.7210348 | K138: 86128.2497 | L138: 2296 | M138: 86860 | R138: 83,867 | S138: 87,592 | T138: 84,748
A139: ~64% | B139: 69092 | C139: 5757361410 | D139: 2,829,665 | E139: 83328.91521 | F139: 2847781 | G139: 83860 | H139: 37147 | I139: 3249814890 | J139: 580.4442351 | K139: 87485.2583 | L139: 2089 | M139: 88070 | R139: 84,748 | S139: 88,973 | T139: 85,798
A140: ~64.5% | B140: 69091 | C140: 5828591280 | D140: 2,864,721 | E140: 84361.07858 | F140: 2883333 | G140: 84910 | H140: 37148 | I140: 3300727060 | J140: 603.9427156 | K140: 88853.42576 | L140: 1611 | M140: 89450 | R140: =ROUND(D140*$Q$6,0) -> 85,798 | S140: 90,364 | T140: 86,772
A141: ~65% | B141: 69092 | C141: 5894841480 | D141: 2,897,240 | E141: 85318.72691 | F141: 2907532 | G141: 85620 | H141: 37147 | I141: 3348484050 | J141: 611.6403747 | K141: 90141.43942 | L141: 2814 | M141: 90840 | R141: 86,772 | S141: =ROUND(K141*$R$6,0) -> 91,674 | T141: =R142 -> 87,604
A142: ~65.5% | B142: 69091 | C142: 5951705610 | D142: 2,925,016 | E142: 86142.99417 | F142: 2943840 | G142: 86690 | H142: 37148 | I142: 3402844730 | J142: 615.6583665 | K142: 91602.36702 | L142: 1789 | M142: 92220 | R142: 87,604 | S142: 93,160 | T142: 88,738
A143: ~66% | B143: 69092 | C143: 6028657120 | D143: 2,962,877 | E143: 87255.50165 | F143: 2982643 | G143: 87830 | H143: 37147 | I143: 3456348690 | J143: 631.6667833 | K143: 93045.16354 | L143: 2113 | M143: 93770 | R143: 88,738 | S143: 94,627 | T143: 89,734
A144: ~66.5% | B144: 69092 | C144: 6096244300 | D144: 2,996,127 | E144: 88233.7217 | F144: 3000000 | G144: 88350 | H144: 37148 | I144: 3510362590 | J144: 630.1430225 | K144: 94496.67788 | L144: 13100 | M144: 95150 | R144: 89,734 | S144: 96,103 | T144: 90,059
A145: ~67% | B145: 69091 | C145: 6118203120 | D145: 3,006,985 | E145: 88552.82338 | F145: 3024334 | G145: 89060 | H145: 37147 | I145: 3560748870 | J145: 638.7663876 | K145: 95855.62414 | L145: 2994 | M145: 96530 | R145: 90,059 | S145: 97,485 | T145: 91,149
A146: ~67.5% | B146: 69092 | C146: 6192186800 | D146: 3,043,368 | E146: 89622.34123 | F146: 3063205 | G146: 90210 | H146: 37148 | I146: 3617292480 | J146: 647.0670561 | K146: 97375.16098 | L146: 2095 | M146: 97960 | R146: 91,149 | S146: 99,031 | T146: 92,298
A147: ~68% | B147: 69092 | C147: 6270707260 | D147: 3,081,739 | E147: 90758.80362 | F147: 3100000 | G147: 91290 | H147: 37147 | I147: 3671281240 | J147: 669.6248957 | K147: 98831.16375 | L147: 2235 | M147: 99640 | R147: 92,298 | S147: 100,511 | T147: 93,355
A148: ~68.5% | B148: 69091 | C148: 6342294130 | D148: 3,117,028 | E148: 91796.24162 | F148: 3137436 | G148: 92390 | H148: 37148 | I148: 3724380980 | J148: 657.0530311 | K148: 100257.9138 | L148: 1941 | M148: 101030 | R148: 93,355 | S148: 101,962 | T148: 94,553
A149: ~69% | B149: 69092 | C149: 6423439020 | D149: 3,157,015 | E149: 92969.35998 | F149: 3175755 | G149: 93520 | H149: 37147 | I149: 3782683880 | J149: 670.6457318 | K149: 101830.1311 | L149: 1978 | M149: 102510 | R149: 94,553 | S149: 103,561 | T149: 95,661
A150: ~69.5% | B150: 69091 | C150: 6498747810 | D150: 3,194,032 | E150: 94060.6998 | F150: 3207963 | G150: 94470 | H150: 37148 | I150: 3840037260 | J150: 682.9969043 | K150: 103371.3056 | L150: 2212 | M150: 104130 | R150: 95,661 | S150: 105,129 | T150: 96,705
A151: ~70% | B151: 69092 | C151: 6569659290 | D151: 3,228,881 | E151: 95085.67258 | F151: 3249996 | G151: 95710 | H151: 37147 | I151: 3898263440 | J151: 685.3508224 | K151: 104941.5414 | L151: 2164 | M151: 105690 | R151: 96,705 | S151: 106,726 | T151: 97,856
A152: ~70.5% | B152: 69092 | C152: 6649741890 | D152: 3,267,318 | E152: 96244.74454 | F152: 3290000 | G152: 96890 | H152: 37148 | I152: 3954933890 | J152: 698.0834231 | K152: 106464.2481 | L152: 2882 | M152: 107250 | R152: 97,856 | S152: 108,274 | T152: 99,038
A153: ~71% | B153: 69091 | C153: 6728073100 | D153: 3,306,785 | E153: 97379.87726 | F153: 3326763 | G153: 97970 | H153: 37147 | I153: 4017630410 | J153: 705.8877971 | K153: 108154.9091 | L153: 1832 | M153: 108970 | R153: 99,038 | S153: 109,994 | T153: 100,197
A154: ~71.5% | B154: 69092 | C154: 6806906900 | D154: 3,345,490 | E154: 98519.46535 | F154: 3366660 | G154: 99140 | H154: 37148 | I154: 4077335350 | J154: 709.9163885 | K154: 109759.2158 | L154: 2696 | M154: 110520 | R154: 100,197 | S154: 111,625 | T154: 101,447
A155: ~72% | B155: 69092 | C155: 6891901330 | D155: 3,387,221 | E155: 99749.62847 | F155: 3403358 | G155: 100220 | H155: 37147 | I155: 4136782100 | J155: 723.7369101 | K155: 111362.4815 | L155: 2428 | M155: 112250 | R155: 101,447 | S155: 113,256 | T155: 102,607
A156: ~72.5% | B156: 69091 | C156: 6970565820 | D156: 3,425,959 | E156: 100889.6357 | F156: 3449990 | G156: 101600 | H156: 37148 | I156: 4199860580 | J156: 729.0254657 | K156: 113057.5153 | L156: 2462 | M156: 113980 | R156: 102,607 | S156: 114,979 | T156: 103,972
A157: ~73% | B157: 69092 | C157: 7063390670 | D157: 3,471,528 | E157: 102231.6718 | F157: 3495960 | G157: 102950 | H157: 37147 | I157: 4261971560 | J157: 729.9970388 | K157: 114732.5911 | L157: 1899 | M157: 115530 | R157: 103,972 | S157: 116,683 | T157: 105,033
A158: ~73.5% | B158: 69091 | C158: 7135319050 | D158: 3,506,933 | E158: 103274.2188 | F158: 3526190 | G158: 103840 | H158: 37148 | I158: 4326796460 | J158: 743.1090772 | K158: 116474.5467 | L158: 6199 | M158: 117260 | R158: 105,033 | S158: 118,455 | T158: 106,338
A159: ~74% | B159: 69092 | C159: 7224065110 | D159: 3,550,502 | E159: 104557.1862 | F159: 3574970 | G159: 105280 | H159: 37147 | I159: 4389942080 | J159: 752.3161224 | K159: 118177.567 | L159: 2516 | M159: 118990 | R159: 106,338 | S159: 120,187 | T159: 107,731
A160: ~74.5% | B160: 69092 | C160: 7318758140 | D160: 3,597,016 | E160: 105927.7216 | F160: 3619485 | G160: 106590 | H160: 37148 | I160: 4456742730 | J160: 766.3627113 | K160: 119972.6158 | L160: 2057 | M160: 120890 | R160: 107,731 | S160: 122,012 | T160: 109,153
A161: ~75% | B161: 69091 | C161: 7415257920 | D161: 3,644,512 | E161: 107325.9603 | F161: 3668854 | G161: 108040 | H161: 37148 | I161: 4522055300 | J161: 764.1244212 | K161: 121730.7877 | L161: 1989 | M161: 122610 | R161: 109,153 | S161: 123,800 | T161: 110,600
A162: ~75.5% | B162: 69092 | C162: 7513669640 | D162: 3,692,830 | E162: 108748.7645 | F162: 3714065 | G162: 109370 | H162: 37147 | I162: 4588702670 | J162: 780.1179368 | K162: 123528.2168 | L162: 1833 | M162: 124510 | R162: 110,600 | S162: 125,628 | T162: 112,008
A163: ~76% | B163: 69092 | C163: 7610406810 | D163: 3,739,836 | E163: 110148.8857 | F163: 3764850 | G163: 110870 | H163: 37148 | I163: 4658465860 | J163: 782.8149295 | K163: 125402.8712 | L163: 2461 | M163: 126240 | R163: 112,008 | S163: 127,535 | T163: 113,548
A164: ~76.5% | B164: 69091 | C164: 7713831970 | D164: 3,791,237 | E164: 111647.4211 | F164: 3816666 | G164: 112400 | H164: 37147 | I164: 4724472140 | J164: 789.8519127 | K164: 127183.141 | L164: 4078 | M164: 127970 | R164: 113,548 | S164: 129,345 | T164: 115,131
A165: ~77% | B165: 69092 | C165: 7821496090 | D165: 3,844,106 | E165: 113204.077 | F165: 3870775 | G165: 113990 | H165: 37148 | I165: 4793376160 | J165: 805.5117638 | K165: 129034.5688 | L165: 2714 | M165: 129870 | R165: 115,131 | S165: 131,228 | T165: 116,693
A166: ~77.5% | B166: 69091 | C166: 7927954390 | D166: 3,896,263 | E166: 114746.5573 | F166: 3920890 | G166: 115470 | H166: 37147 | I166: 4861240730 | J166: 813.7212696 | K166: 130864.9616 | L166: 1720 | M166: 131770 | R166: 116,693 | S166: 133,090 | T166: 118,331
A167: ~78% | B167: 69092 | C167: 8038914960 | D167: 3,950,935 | E167: 116350.8794 | F167: 3980618 | G167: 117220 | H167: 37148 | I167: 4927152330 | J167: 819.7445354 | K167: 132635.7362 | L167: 2296 | M167: 133660 | R167: 118,331 | S167: 134,891 | T167: 119,848
A168: ~78.5% | B168: 69092 | C168: 8142032440 | D168: 4,001,591 | E168: 117843.3457 | F168: 4023545 | G168: 118490 | H168: 37147 | I168: 4998219700 | J168: 828.9442485 | K168: 134552.4457 | L168: 2187 | M168: 135560 | R168: 119,848 | S168: 136,840 | T168: 121,403
A169: ~79% | B169: 69091 | C169: 8247499870 | D169: 4,053,530 | E169: 119371.5516 | F169: 4082830 | G169: 120230 | H169: 37148 | I169: 5066454930 | J169: 840.239663 | K169: 136385.6716 | L169: 12591 | M169: 137460 | R169: 121,403 | S169: 138,704 | T169: 123,163
A170: ~79.5% | B170: 69092 | C170: 8367156620 | D170: 4,112,280 | E170: 121101.6705 | F170: 4143474 | G170: 122020 | H170: 37147 | I170: 5137502200 | J170: 846.2969823 | K170: 138301.9409 | L170: 12306 | M170: 139260 | R170: 123,163 | S170: 140,653 | T170: 124,988
A171: ~80% | B171: 69092 | C171: 8491144360 | D171: 4,173,210 | E171: 122896.2016 | F171: 4200000 | G171: 123690 | H171: 37148 | I171: 5210211950 | J171: 858.1533057 | K171: 140255.5171 | L171: 2221 | M171: 141260 | R171: 124,988 | S171: 142,640 | T171: 126,757
A172: ~80.5% | B172: 69091 | C172: 8611553010 | D172: 4,232,295 | E172: 124640.7348 | F172: 4265420 | G172: 125610 | H172: 37147 | I172: 5281393510 | J172: 864.7126551 | K172: 142175.5057 | L172: 5525 | M172: 143160 | R172: =ROUND(D172*$Q$6,0) -> 126,757 | S172: 144,592 | T172: 128,700
A173: ~81% | B173: 69092 | C173: 8745015030 | D173: 4,297,149 | E173: 126570.5875 | F173: 4330434 | G173: 127530 | H173: 37148 | I173: 5355262160 | J173: 878.8252396 | K173: 144160.1744 | L173: 2626 | M173: 145220 | R173: 128,700 | S173: 146,611 | T173: 130,714
A174: ~81.5% | B174: 69091 | C174: 8880010530 | D174: 4,364,393 | E174: 128526.2991 | F174: 4399998 | G174: 129570 | H174: 37147 | I174: 5431517480 | J174: 883.4914529 | K174: 146216.8541 | L174: 2140 | M174: 147140 | R174: 130,714 | S174: 148,703 | T174: 132,707
A175: ~82% | B175: 69092 | C175: 9016642280 | D175: 4,430,949 | E175: 130501.9724 | F175: 4467066 | G175: 131550 | H175: 37148 | I175: 5505116870 | J175: 897.8240013 | K175: 148194.1658 | L175: 3764 | M175: 149210 | R175: 132,707 | S175: 150,713 | T175: 134,681
A176: ~82.5% | B176: 69092 | C176: 9154497140 | D176: 4,496,873 | E176: 132497.2086 | F176: 4531700 | G176: 133450 | H176: 37147 | I176: 5586379470 | J176: 906.6103319 | K176: 150385.7504 | L176: 12331 | M176: 151280 | R176: 134,681 | S176: 152,942 | T176: 136,813
A177: ~83% | B177: 69091 | C177: 9294368940 | D177: 4,568,031 | E177: 134523.584 | F177: 4602070 | G177: 135530 | H177: 37148 | I177: 5661602760 | J177: 918.3933994 | K177: 152406.6642 | L177: 2321 | M177: 153530 | R177: 136,813 | S177: 154,998 | T177: 138,952
A178: ~83.5% | B178: 69092 | C178: 9441025740 | D178: 4,639,469 | E178: 136644.2676 | F178: 4678030 | G178: 137760 | H178: 37147 | I178: 5747073920 | J178: 933.2616093 | K178: 154711.6569 | L178: 2649 | M178: 155770 | R178: 138,952 | S178: 157,342 | T178: 141,098
A179: ~84% | B179: 69092 | C179: 9585677560 | D179: 4,711,133 | E179: 138737.8793 | F179: 4747637 | G179: 139810 | H179: 37148 | I179: 5825995750 | J179: 940.7523689 | K179: 156832.0165 | L179: 2493 | M179: 158020 | R179: 141,098 | S179: 159,498 | T179: 143,354
A180: ~84.5% | B180: 69091 | C180: 9738822920 | D180: 4,786,459 | E180: 140956.4621 | F180: 4825233 | G180: 142100 | H180: 37147 | I180: 5914298990 | J180: 955.4697553 | K180: 159213.3682 | L180: 2751 | M180: 160430 | R180: 143,354 | S180: 161,920 | T180: 145,747
A181: ~85% | B181: 69092 | C181: 9901529310 | D181: 4,866,360 | E181: 143309.3457 | F181: 4900709 | G181: 144320 | H181: 37148 | I181: 5998470430 | J181: 964.7068483 | K181: 161474.9227 | L181: 3349 | M181: 162680 | R181: 145,747 | S181: 164,220 | T181: 148,029
A182: ~85.5% | B182: 69091 | C182: 10056392890 | D182: 4,942,544 | E182: 145552.8635 | F182: 4985478 | G182: 146820 | H182: 37147 | I182: 6089310880 | J182: 977.9403451 | K182: 163924.7013 | L182: 13204 | M182: 165100 | R182: 148,029 | S182: 166,711 | T182: 150,120
A183: ~86% | B183: 69092 | C183: 10198716720 | D183: 5,012,369 | E183: 147610.6745 | F183: 5048913 | G183: 148690 | H183: 37148 | I183: 6177686870 | J183: 990.8066652 | K183: 166299.3127 | L183: 1989 | M183: 167510 | R183: 150,120 | S183: 169,126 | T183: 152,509
A184: ~86.5% | B184: 69092 | C184: 10360914330 | D184: 5,092,130 | E184: 149958.2344 | F184: 5136006 | G184: 151250 | H184: 37147 | I184: 6270190770 | J184: 1004.579697 | K184: 168794.0014 | L184: 5345 | M184: 169930 | R184: 152,509 | S184: 171,663 | T184: 155,163
A185: ~87% | B185: 69091 | C185: 10541074090 | D185: 5,180,742 | E185: 152567.9769 | F185: 5225472 | G185: 153890 | H185: 37148 | I185: 6366757320 | J185: 1019.330193 | K185: 171388.9663 | L185: 2975 | M185: 172700 | R185: 155,163 | S185: 174,303 | T185: 157,880
A186: ~87.5% | B186: 69092 | C186: 10725787550 | D186: 5,271,449 | E186: 155239.2108 | F186: 5316670 | G186: 156570 | H186: 37148 | I186: 6465531850 | J186: 1034.791187 | K186: 174047.9124 | L186: 2225 | M186: 175630 | R186: 157,880 | S186: 177,007 | T186: 160,657
A187: ~88% | B187: 69092 | C187: 10914546120 | D187: 5,364,174 | E187: 157971.1996 | F187: 5410416 | G187: 159330 | H187: 37147 | I187: 6565986660 | J187: 1044.249845 | K187: 176756.8487 | L187: 4319 | M187: 178050 | R187: 160,657 | S187: 179,762 | T187: 163,402
A188: ~88.5% | B188: 69091 | C188: 11104032810 | D188: 5,455,831 | E188: 160716.0529 | F188: 5500990 | G188: 162000 | H188: 37148 | I188: 6675604980 | J188: 1064.654894 | K188: 179702.9444 | L188: 2779 | M188: 180980 | R188: 163,402 | S188: 182,758 | T188: 166,261
A189: ~89% | B189: 69092 | C189: 11295808380 | D189: 5,551,270 | E189: 163489.382 | F189: 5601153 | G189: 164950 | H189: 37147 | I189: 6783424700 | J189: 1082.308343 | K189: 182610.2969 | L189: 2431 | M189: 184270 | R189: 166,261 | S189: 185,715 | T189: 169,320
A190: ~89.5% | B190: 69091 | C190: 11502814170 | D190: 5,653,408 | E190: 166487.8808 | F190: 5702150 | G190: 167920 | H190: 37148 | I190: 6901300770 | J190: 1097.072198 | K190: 185778.5283 | L190: 2507 | M190: 187370 | R190: 169,320 | S190: 188,937 | T190: 172,378
A191: ~90% | B191: 69092 | C191: 11710758040 | D191: 5,755,521 | E191: 169495.1375 | F191: 5808613 | G191: 171060 | H191: 37147 | I191: 7020949400 | J191: 1116.225806 | K191: 189004.4795 | L191: 3949 | M191: 190660 | R191: 172,378 | S191: 192,218 | T191: 175,587
A192: ~90.5% | B192: 69092 | C192: 11928796180 | D192: 5,862,677 | E192: 172650.9029 | F192: 5917000 | G192: 174250 | H192: 37148 | I192: 7147029900 | J192: 1134.687224 | K192: 192393.3967 | L192: 9180 | M192: 194110 | R192: 175,587 | S192: 195,664 | T192: 178,923
A193: ~91% | B193: 69091 | C193: 12155347150 | D193: 5,974,066 | E193: 175932.4246 | F193: 6027224 | G193: 177500 | H193: 37147 | I193: 7279398120 | J193: 1155.291464 | K193: 195961.9382 | L193: 2938 | M193: 197740 | R193: 178,923 | S193: 199,293 | T193: 182,435
A194: ~91.5% | B194: 69092 | C194: 12394094100 | D194: 6,091,302 | E194: 179385.3717 | F194: 6155797 | G194: 181280 | H194: 37148 | I194: 7420013980 | J194: 1177.224104 | K194: 199741.9506 | L194: 13158 | M194: 201710 | R194: 182,435 | S194: 203,138 | T194: 186,361
A195: ~92% | B195: 69092 | C195: 12661312500 | D195: 6,222,410 | E195: 183252.9453 | F195: 6290158 | G195: 185240 | H195: 37147 | I195: 7567222300 | J195: 1198.002584 | K195: 203710.1866 | L195: 2657 | M195: 205850 | R195: 186,361 | S195: 207,173 | T195: 190,523
A196: ~92.5% | B196: 69091 | C196: 12943337890 | D196: 6,361,375 | E196: 187337.5388 | F196: 6434677 | G196: 189500 | H196: 37148 | I196: 7724358340 | J196: 1222.2528 | K196: 207934.7028 | L196: 2455 | M196: 210340 | R196: 190,523 | S196: 211,470 | T196: 195,047
A197: ~93% | B197: 69092 | C197: 13251250980 | D197: 6,512,422 | E197: 191791.3938 | F197: 6592771 | G197: 194150 | H197: 37147 | I197: 7893900500 | J197: 1249.164105 | K197: 212504.388 | L197: 2558 | M197: 215010 | R197: 195,047 | S197: 216,117 | T197: 200,021
A198: ~93.5% | B198: 69091 | C198: 13588727020 | D198: 6,678,504 | E198: 196678.6849 | F198: 6768320 | G198: 199320 | H198: 37148 | I198: 8076514830 | J198: 1277.481103 | K198: 217414.5265 | L198: 13254 | M198: 220190 | R198: 200,021 | S198: 221,111 | T198: 205,656
A199: ~94% | B199: 69092 | C199: 13971661250 | D199: 6,866,661 | E199: 202218.2199 | F199: 6969193 | G199: 205240 | H199: 37147 | I199: 8274687340 | J199: 1307.348184 | K199: 222755.198 | L199: 12882 | M199: 225710 | R199: 205,656 | S199: 226,542 | T199: 211,711
A200: ~94.5% | B200: 69092 | C200: 14382992910 | D200: 7,068,805 | E200: 208171.6105 | F200: 7180944 | G200: 211470 | H200: 37148 | I200: 8489934440 | J200: 1340.105012 | K200: 228543.5135 | L200: 2736 | M200: 231590 | R200: 211,711 | S200: 232,429 | T200: 218,647
A201: ~95% | B201: 69091 | C201: 14857539440 | D201: 7,300,417 | E201: 215043.051 | F201: 7429266 | G201: 218790 | H201: 37147 | I201: 8727485950 | J201: 1377.142407 | K201: 234944.5702 | L201: 13681 | M201: 238490 | R201: 218,647 | S201: 238,939 | T201: 226,482
A202: ~95.5% | B202: 69092 | C202: 15389186610 | D202: 7,562,017 | E202: 222734.7104 | F202: 7700252 | G202: 226770 | H202: 37148 | I202: 8994325450 | J202: 1416.10337 | K202: 242121.3915 | L202: 12882 | M202: 245920 | R202: 226,482 | S202: 246,237 | T202: 235,069
... 13 more rows
